Body Name,Service Area,Expenses Type,Invoice Payment Date,Transaction Number,Net Amount,Supplier Name
Manchester City Council,Childrens & Education Services,General Payments not otherwise categorised,02.08.2021,5105770691,"4,040.36",Cheshire East Borough Council
Manchester City Council,Childrens & Education Services,General Payments not otherwise categorised,02.08.2021,5105770692,"2,503.14",Cheshire East Borough Council
Manchester City Council,Childrens & Education Services,General Payments not otherwise categorised,02.08.2021,5105770693,"2,503.14",Cheshire East Borough Council
Manchester City Council,Childrens & Education Services,General Payments not otherwise categorised,02.08.2021,5105770694,"2,503.14",Cheshire East Borough Council
Manchester City Council,Childrens & Education Services,General Payments not otherwise categorised,02.08.2021,5105770695,"2,063.93",Cheshire East Borough Council
Manchester City Council,Adult Social Care,Rents,02.08.2021,5105770702,"5,095.95",Riverside ECHG
Manchester City Council,Adult Social Care,Rents,02.08.2021,5105770703,"2,734.87",Riverside ECHG
Manchester City Council,Childrens & Education Services,Contract Cleaning External,02.08.2021,5105770688,638.00,Freshwave Cleaning Services Ltd
Manchester City Council,Hospitality + Trading Services,Vehicle Fuel Costs,02.08.2021,5105770757,579.20,Standard Fuels Oils
Manchester City Council,Hospitality + Trading Services,Vehicle Hire Costs,02.08.2021,5105770696,"71,261.54",Winners Contract Hire Ltd
Manchester City Council,Manchester Leisure,Equipment,02.08.2021,5105770718,"2,500.00",Durham Foundry (Sheffield) Ltd
Manchester City Council,Chief Executives,Payments to Sub-Contractors,02.08.2021,5105770751,"1,084.63",Redacted Personal Information
Manchester City Council,Chief Executives,Payments to Sub-Contractors,02.08.2021,5105770748,536.95,Redacted Personal Information
Manchester City Council,Highways Services,Payments to Sub-Contractors,02.08.2021,1907307198,657.53,Redacted Personal Information
Manchester City Council,Highways Services,Hire of Machinery,02.08.2021,5105770704,550.00,MTK Breaker Hire and Sales Ltd
Manchester City Council,Highways Services,Hire of Equipment,02.08.2021,5105770704,770.00,MTK Breaker Hire and Sales Ltd
Manchester City Council,Chief Executives,Printing,02.08.2021,5105770831,"1,070.00",Astra Signs
Manchester City Council,Manchester Leisure,Professional fees,02.08.2021,5105770756,"2,784.64",Redacted Personal Information
Manchester City Council,Manchester Leisure,Professional fees,02.08.2021,1907308182,"12,187.00",M.E.E.N
Manchester City Council,Manchester Leisure,Professional fees,02.08.2021,1907308183,"11,060.00",Redacted Personal Information
Manchester City Council,Manchester Leisure,Professional fees,02.08.2021,5105770761,552.74,Redacted Personal Information
Manchester City Council,Manchester Leisure,Professional fees,02.08.2021,5105770723,500.00,Redacted Personal Information
Manchester City Council,Childrens & Education Services,Professional fees,02.08.2021,5105770701,950.00,Hollinshead Education Consultancy
Manchester City Council,Chief Executives,Professional fees,02.08.2021,1700122048,-625.00,St Johns Buildings-Barristers
Manchester City Council,Chief Executives,Professional fees,02.08.2021,1700122047,"-2,687.50",St Johns Buildings-Barristers
Manchester City Council,Chief Executives,Licences Purchase,02.08.2021,5105770689,"5,000.04",Rightmove Group Limited
Manchester City Council,Adult Social Care,Bed & Breakfast Acc,02.08.2021,5105770791,"17,256.00",Redacted Personal Information
Manchester City Council,Adult Social Care,Bed & Breakfast Acc,02.08.2021,5105770779,"-17,256.00",Redacted Personal Information
Manchester City Council,Childrens & Education Services,Third party payments to other Local Authorities,02.08.2021,5105770690,"7,466.00",Marlborough Road Academy
Manchester City Council,Childrens & Education Services,Payments for services,02.08.2021,5105770716,"41,927.99",The Together Trust
Manchester City Council,Childrens & Education Services,Payments for services,02.08.2021,5105770713,"39,849.23",The Together Trust
Manchester City Council,Childrens & Education Services,Payments for services,02.08.2021,5105770711,"20,998.28",The Together Trust
Manchester City Council,Childrens & Education Services,Payments for services,02.08.2021,5105770598,"9,811.67",Trafford College
Manchester City Council,Childrens & Education Services,Payments for services,02.08.2021,5105770719,"6,958.01",The Together Trust
Manchester City Council,Childrens & Education Services,Payments for services,02.08.2021,5105770720,"4,767.67",The Together Trust
Manchester City Council,Childrens & Education Services,Payments for services,02.08.2021,5105770597,"3,200.00",Holy Cross Catholic Sixth Form
Manchester City Council,Childrens & Education Services,Payments for services,02.08.2021,5105770763,"1,128.00",Citywall
Manchester City Council,Adult Social Care,Personal needs of client,02.08.2021,5105770752,"3,006.00",James Leckey Design Ltd
Manchester City Council,Manchester Leisure,Child Service,02.08.2021,1907308567,"10,337.00",Women Support Group
Manchester City Council,Chief Executives,Works and associated costs for Land and Buildings,02.08.2021,5105770687,"1,855.00",NJL Consulting Ltd
Manchester City Council,Chief Executives,Works and associated costs for Land and Buildings,02.08.2021,5105770686,920.00,NJL Consulting Ltd
Manchester City Council,Chief Executives,Works and associated costs for Land and Buildings,02.08.2021,5105770697,"-9,750.00",Buro Happold Limited
Manchester City Council,Manchester Leisure,Agency staff provision,03.08.2021,5105770897,"16,374.71",University Of Manchester
Manchester City Council,Chief Executives,Agency staff provision,03.08.2021,5105770801,"6,187.50",Sanctuary Social Care
Manchester City Council,Chief Executives,Agency staff provision,03.08.2021,5105770802,"2,062.50",Sanctuary Social Care
Manchester City Council,Libraries and Theatres,Training and Development,03.08.2021,5105770799,600.00,Public Sector Software Ltd
Manchester City Council,Regeneration Finance,Training and Development,03.08.2021,1907307591,"1,500.00",Blue Book Artist Management LTD
Manchester City Council,Insurance Fund,Insurance,03.08.2021,1907272818,"5,550.00",Simpsons Solicitors
Manchester City Council,Adult Social Care,External repairs and maintenance for buildings,03.08.2021,5105771037,"3,623.80",UPS Building & Maintenance Ltd
Manchester City Council,Regeneration Finance,External repairs and maintenance for buildings,03.08.2021,5105770847,874.00,AVOIRA Limited
Manchester City Council,Adult Social Care,Rents,03.08.2021,5105770838,"4,430.40",Houses4Homes 4U Ltd
Manchester City Council,Adult Social Care,Rents,03.08.2021,5105770953,"3,072.25",Great Places Housing Association
Manchester City Council,Regeneration Finance,Rents,03.08.2021,1907305532,"3,373.28",Threadneedle Curtis Limited
Manchester City Council,Regeneration Finance,Rents,03.08.2021,1907305531,917.07,Threadneedle Curtis Limited
Manchester City Council,Regeneration Finance,Rents,03.08.2021,1907305530,840.80,Threadneedle Curtis Limited
Manchester City Council,Highways Services,Refuse Collection,03.08.2021,5105770941,"1,200.39",Balfour Beatty Living Places Ltd
Manchester City Council,Manchester Leisure,Security,03.08.2021,5105770827,"21,538.03",Showsec International Ltd
Manchester City Council,Hospitality + Trading Services,Vehicle Fuel Costs,03.08.2021,5105770932,"15,648.04",Standard Fuels Oils
Manchester City Council,Hospitality + Trading Services,Vehicle Fuel Costs,03.08.2021,5105770936,"15,648.04",Standard Fuels Oils
Manchester City Council,Hospitality + Trading Services,Vehicle Fuel Costs,03.08.2021,5105770937,"15,626.27",Standard Fuels Oils
Manchester City Council,Hospitality + Trading Services,Vehicle Fuel Costs,03.08.2021,5105770788,"2,831.00",Standard Fuels Oils
Manchester City Council,Childrens & Education Services,Transport Coach Hire,03.08.2021,5105770933,"103,073.00",APTSL
Manchester City Council,Childrens & Education Services,Transport Coach Hire,03.08.2021,5105770786,"1,819.00",Saltax Ltd
Manchester City Council,Childrens & Education Services,Transport Coach Hire,03.08.2021,5105770916,"-103,073.00",APTSL
Manchester City Council,Corporate Services,Car Parking Permits,03.08.2021,5105770917,"3,824.00",Flowbird Smart City Uk Ltd
Manchester City Council,Hospitality + Trading Services,Equipment,03.08.2021,1907309028,"3,878.46",Stapletons Tyre Services
Manchester City Council,Hospitality + Trading Services,Equipment,03.08.2021,1907309025,"2,772.86",Stapletons Tyre Services
Manchester City Council,Adult Social Care,Equipment,03.08.2021,5105770796,"5,400.00",Mangar International Ltd/Winncare
Manchester City Council,Adult Social Care,Equipment,03.08.2021,5105771032,"2,860.80",NRS Healthcare
Manchester City Council,Adult Social Care,Equipment,03.08.2021,5105771017,968.50,R82 Uk Ltd
Manchester City Council,Regeneration Finance,Equipment,03.08.2021,5105770770,569.43,XXXEzitracker
Manchester City Council,Adult Social Care,Furniture,03.08.2021,5105771019,524.47,Furniture Resource Centre Ltd
Manchester City Council,Manchester Leisure,Building Materials for direct delivery,03.08.2021,5105770816,"2,000.00",E Smith & Son (Nurserymen)
Manchester City Council,Manchester Leisure,Building Materials for direct delivery,03.08.2021,5105770814,"1,834.25",E Smith & Son (Nurserymen)
Manchester City Council,Manchester Leisure,Building Materials for direct delivery,03.08.2021,5105770812,"1,562.50",E Smith & Son (Nurserymen)
Manchester City Council,Manchester Leisure,Building Materials for direct delivery,03.08.2021,5105770810,"1,125.00",E Smith & Son (Nurserymen)
Manchester City Council,Manchester Leisure,Building Materials for direct delivery,03.08.2021,5105770971,660.00,Rigby Taylor Ltd
Manchester City Council,Manchester Leisure,Building Materials for direct delivery,03.08.2021,5105770813,600.00,E Smith & Son (Nurserymen)
Manchester City Council,Manchester Leisure,Building Materials for direct delivery,03.08.2021,5105770817,500.00,E Smith & Son (Nurserymen)
Manchester City Council,Adult Social Care,Building Materials for direct delivery,03.08.2021,5105770924,"5,771.04",Supra UK Ltd
Manchester City Council,Highways Services,Building Materials for direct delivery,03.08.2021,5105770991,591.00,O'Connor Concrete Ltd
Manchester City Council,Manchester Leisure,Payments to Sub-Contractors,03.08.2021,5105770858,963.00,E Smith & Son (Nurserymen)
Manchester City Council,Highways Services,Payments to Sub-Contractors,03.08.2021,5105770825,"7,915.97",Rosgal Ltd
Manchester City Council,Chief Executives,Hire of Equipment,03.08.2021,5105770907,"1,027.80",Universal Live
Manchester City Council,Regeneration Finance,ClothsUniformLaundry,03.08.2021,5105770954,"1,368.04",Corprotex Apparel Ltd
Manchester City Council,Regeneration Finance,Training and Development,03.08.2021,5105771047,852.50,NW RFCA
Manchester City Council,Hospitality + Trading Services,Floral Decorations,03.08.2021,5105770872,"7,461.75",E Smith & Son (Nurserymen)
Manchester City Council,Childrens & Education Services,Catering,03.08.2021,5105770876,"14,276.15",Spie Limited
Manchester City Council,Chief Executives,Printing,03.08.2021,5105770790,"-1,070.00",Astra Signs
Manchester City Council,Chief Executives,Paper & Envelopes,03.08.2021,5105770845,986.15,Premier Paper Group Ltd
Manchester City Council,Chief Executives,Paper & Envelopes,03.08.2021,5105770853,548.97,Premier Paper Group Ltd
Manchester City Council,Manchester Leisure,Legal Fees,03.08.2021,1907298708,"19,700.00",Savas & Savage Solicitors Ltd
Manchester City Council,Manchester Leisure,Legal Fees,03.08.2021,1907300030,"3,200.00",Scott Rees & Co
Manchester City Council,Manchester Leisure,Legal Fees,03.08.2021,1907300032,"1,170.00",Scott Rees & Co
Manchester City Council,Childrens & Education Services,Legal Fees,03.08.2021,5105770909,"5,641.48",Warwickshire County Council
Manchester City Council,Childrens & Education Services,Legal Fees,03.08.2021,5105770910,"1,020.09",Warwickshire County Council
Manchester City Council,Chief Executives,Legal Fees,03.08.2021,1907308759,650.00,18 St John Street Chambers
Manchester City Council,Highways Services,Legal Fees,03.08.2021,1907309360,"10,918.00",Redacted Personal Information
Manchester City Council,Highways Services,Legal Fees,03.08.2021,1907272818,"9,450.00",Simpsons Solicitors
Manchester City Council,Highways Services,Legal Fees,03.08.2021,1907307590,"4,212.00",Fletchers Solicitors Ltd
Manchester City Council,Corporate Services,Professional fees,03.08.2021,5105770964,"1,070.44",Lucion Environmental Ltd
Manchester City Council,Corporate Services,Professional fees,03.08.2021,5105770996,"1,047.02",Lucion Environmental Ltd
Manchester City Council,Corporate Services,Professional fees,03.08.2021,5105770993,791.52,Lucion Environmental Ltd
Manchester City Council,Corporate Services,Professional fees,03.08.2021,5105770992,593.07,Lucion Environmental Ltd
Manchester City Council,Corporate Services,Professional fees,03.08.2021,5105770994,524.52,Lucion Environmental Ltd
Manchester City Council,Regeneration Finance,Professional fees,03.08.2021,5105771045,"6,000.00",C & W (U.K.) LLP
Manchester City Council,Regeneration Finance,Professional fees,03.08.2021,5105771044,"3,000.00",C & W (U.K.) LLP
Manchester City Council,Regeneration Finance,Professional fees,03.08.2021,5105771043,"2,250.00",C & W (U.K.) LLP
Manchester City Council,Highways Services,Professional fees,03.08.2021,5105771075,"-25,385.00",Balfour Beatty Living Places Ltd
Manchester City Council,Childrens & Education Services,Signers/Interpreters,03.08.2021,5105770920,844.00,Language Line Ltd
Manchester City Council,Chief Executives,CRB Fees,03.08.2021,5105770766,"1,210.50",United Medicare Ltd
Manchester City Council,Manchester Leisure,Professional fees,03.08.2021,1907309079,"1,303.87",OCS GROUP UK LIMITED
Manchester City Council,Manchester Leisure,Professional fees,03.08.2021,5105770806,500.00,Common Practices Ltd
Manchester City Council,Childrens & Education Services,Professional fees,03.08.2021,1907308589,"2,451.24",Millennium Translations Ltd
Manchester City Council,Childrens & Education Services,Professional fees,03.08.2021,5105770828,"2,400.00",Paramount Care Solutions Limited
Manchester City Council,Childrens & Education Services,Professional fees,03.08.2021,5105770819,"1,661.30",Advanced Child Care Assessments
Manchester City Council,Childrens & Education Services,Professional fees,03.08.2021,5105770955,"1,106.00",Paramount Care Solutions Limited
Manchester City Council,Corporate Services,Professional fees,03.08.2021,5105770871,"6,918.75",Turner & Townsend Cost
Manchester City Council,Chief Executives,Professional fees,03.08.2021,1907308129,"3,075.00",Redacted Personal Information
Manchester City Council,Chief Executives,Professional fees,03.08.2021,1907308127,625.00,Redacted Personal Information
Manchester City Council,Regeneration Finance,Professional fees,03.08.2021,1907308766,"10,431.00",DWF LLP
Manchester City Council,Regeneration Finance,Professional fees,03.08.2021,1907298580,598.00,Big People Music
Manchester City Council,Regeneration Finance,Professional fees,03.08.2021,1907298583,500.00,Redacted Personal Information
Manchester City Council,Corporate Services,Tracing fees,03.08.2021,5105770873,"2,117.45",Experian Limited
Manchester City Council,Manchester Leisure,Courier Costs,03.08.2021,5105770999,"1,200.00",Tadtu Distribution Ltd
Manchester City Council,Chief Executives,Telecoms Equip,03.08.2021,1907309151,972.49,Apple UK (CARD ONLY)
Manchester City Council,Adult Social Care,I T Provision,03.08.2021,5105770978,586.94,Back Care Solutions Ltd
Manchester City Council,Adult Social Care,I T Provision,03.08.2021,5105770977,-586.94,Back Care Solutions Ltd
Manchester City Council,Chief Executives,ICT Sup & Maintnance,03.08.2021,5105770874,"139,998.26",Liquidlogic Ltd
Manchester City Council,Adult Social Care,I T Provision,03.08.2021,5105770899,"10,230.10",Real Systems
Manchester City Council,Chief Executives,I T Provision,03.08.2021,5105770880,"10,000.00",ICT Revolutions Ltd
Manchester City Council,Manchester Leisure,Grant and subscriptions awarded,03.08.2021,1907308754,"22,234.00",Bowen Education
Manchester City Council,Manchester Leisure,Grant and subscriptions awarded,03.08.2021,1907308761,"5,846.00",Ensemble Manchester
Manchester City Council,Manchester Leisure,Grant and subscriptions awarded,03.08.2021,1907308767,"5,160.00",Manchester Young Community Champion
Manchester City Council,Manchester Leisure,Grant and subscriptions awarded,03.08.2021,1907308768,"5,160.00",Manchester Young Community Champion
Manchester City Council,Chief Executives,Grant and subscriptions awarded,03.08.2021,5105770913,"120,833.33",National Football Museum
Manchester City Council,Chief Executives,Grant and subscriptions awarded,03.08.2021,5105770914,"120,833.33",National Football Museum
Manchester City Council,Regeneration Finance,Grant and subscriptions awarded,03.08.2021,5105771051,"7,000.00",Sonder Radio Ltd
Manchester City Council,Chief Executives,Advertising,03.08.2021,1907308974,700.00,Facebook (CARD ONLY)
Manchester City Council,Chief Executives,Advertising,03.08.2021,1907309054,700.00,Facebook (CARD ONLY)
Manchester City Council,Chief Executives,Advertising,03.08.2021,1907309100,700.00,Facebook (CARD ONLY)
Manchester City Council,Adult Social Care,Bed & Breakfast Acc,03.08.2021,5105771036,"31,885.50",Redacted Personal Information
Manchester City Council,Adult Social Care,Bed & Breakfast Acc,03.08.2021,5105770794,"20,469.00",Redacted Personal Information
Manchester City Council,Adult Social Care,Bed & Breakfast Acc,03.08.2021,5105770780,"17,256.00",Redacted Personal Information
Manchester City Council,Adult Social Care,Bed & Breakfast Acc,03.08.2021,5105770773,"16,908.00",Redacted Personal Information
Manchester City Council,Adult Social Care,Bed & Breakfast Acc,03.08.2021,5105770793,"16,026.00",Redacted Personal Information
Manchester City Council,Adult Social Care,Bed & Breakfast Acc,03.08.2021,5105770852,"11,130.00",Redacted Personal Information
Manchester City Council,Adult Social Care,Bed & Breakfast Acc,03.08.2021,5105770926,"11,130.00",Redacted Personal Information
Manchester City Council,Adult Social Care,Bed & Breakfast Acc,03.08.2021,5105770923,"-11,130.00",Redacted Personal Information
Manchester City Council,Adult Social Care,Bed & Breakfast Acc,03.08.2021,5105770792,"-18,118.80",Redacted Personal Information
Manchester City Council,Childrens & Education Services,Third party payments to other Local Authorities,03.08.2021,5105770961,"7,195.00",Vale View Primary School
Manchester City Council,Childrens & Education Services,Third party payments to other Local Authorities,03.08.2021,5105770841,"5,361.00",Stretford High School
Manchester City Council,Childrens & Education Services,Third party payments to other Local Authorities,03.08.2021,5105770844,"2,333.00",Wolverley CE Secondary School
Manchester City Council,Childrens & Education Services,Third party payments to other Local Authorities,03.08.2021,5105770811,"2,105.00",St Hilda's CE Primary School
Manchester City Council,Childrens & Education Services,Third party payments relating to Voluntary Organisations,03.08.2021,5105770875,"98,551.49",Family Action
Manchester City Council,Adult Social Care,Third party payments relating to Voluntary Organisations,03.08.2021,5105770979,"6,831.33",Great Places Housing Association
Manchester City Council,Childrens & Education Services,Payments for services,03.08.2021,5105770768,"34,477.50",The Together Trust
Manchester City Council,Childrens & Education Services,Payments for services,03.08.2021,5105770764,"20,998.28",The Together Trust
Manchester City Council,Childrens & Education Services,Payments for services,03.08.2021,5105770974,"17,652.25",Time Specialist Support Ltd
Manchester City Council,Childrens & Education Services,Payments for services,03.08.2021,5105770765,"8,192.71",The Together Trust
Manchester City Council,Childrens & Education Services,Payments for services,03.08.2021,5105770958,"5,929.00",Time Specialist Support Ltd
Manchester City Council,Childrens & Education Services,Payments for services,03.08.2021,5105770856,"3,582.00",Keys PCE Limited
Manchester City Council,Childrens & Education Services,Payments for services,03.08.2021,5105770902,"1,091.58",Reed Employment Plc
Manchester City Council,Childrens & Education Services,Payments for services,03.08.2021,5105770904,727.72,Reed Employment Plc
Manchester City Council,Childrens & Education Services,Payments for services,03.08.2021,5105770862,623.76,Reed Employment Plc
Manchester City Council,Childrens & Education Services,Payments for services,03.08.2021,5105770861,584.78,Reed Employment Plc
Manchester City Council,Childrens & Education Services,Payments for services,03.08.2021,5105770867,519.80,Reed Employment Plc
Manchester City Council,Adult Social Care,Payments for services,03.08.2021,5105770836,"2,975.00",FoodSync CIC
Manchester City Council,Adult Social Care,Payments for services,03.08.2021,5105771007,"2,097.00",Turning Point
Manchester City Council,Adult Social Care,Supporting People Payments,03.08.2021,5105770835,"13,375.00",Jigsaw Homes North
Manchester City Council,Adult Social Care,Supporting People Payments,03.08.2021,5105770835,"2,875.00",Jigsaw Homes North
Manchester City Council,Adult Social Care,Supported Accommodation,03.08.2021,1907309004,854.00,IBIS STYLES MANCHESTER
Manchester City Council,Adult Social Care,Personal needs of client,03.08.2021,5105770824,"2,510.50",R82 Uk Ltd
Manchester City Council,Adult Social Care,Personal needs of client,03.08.2021,5105770915,"2,106.00",Accora
Manchester City Council,Adult Social Care,Personal needs of client,03.08.2021,5105770998,649.00,Astor-Bannerman (Medical) Ltd
Manchester City Council,Childrens & Education Services,PNOR-Other Amenities,03.08.2021,1907308731,"1,140.00",Redacted Personal Information
Manchester City Council,Manchester Leisure,Works and associated costs for Land and Buildings,03.08.2021,5105770823,"1,604.90",E Smith & Son (Nurserymen)
Manchester City Council,Housing General Fund,Works and associated costs for Land and Buildings,03.08.2021,5105770795,"2,500.00",JV North Ltd
Manchester City Council,Childrens Services,Works and associated costs for Land and Buildings,03.08.2021,5105770848,"166,810.05",John Turner Construction Group
Manchester City Council,Corporate Services,Works and associated costs for Land and Buildings,03.08.2021,5105770894,"7,112.06",Ameresco Limited
Manchester City Council,Corporate Services,Works and associated costs for Land and Buildings,03.08.2021,5105770893,"-7,122.06",Ameresco Limited
Manchester City Council,Environment and Operations,Construction Works,03.08.2021,5105770946,"310,347.63",Balfour Beatty Living Places Ltd
Manchester City Council,Environment and Operations,Construction Works,03.08.2021,5105770948,"19,000.00",Balfour Beatty Living Places Ltd
Manchester City Council,Environment and Operations,Construction Works,03.08.2021,5105770949,"13,322.10",Balfour Beatty Living Places Ltd
Manchester City Council,Environment and Operations,Construction Works,03.08.2021,5105770886,"12,260.40",Balfour Beatty Living Places Ltd
Manchester City Council,Environment and Operations,Construction Works,03.08.2021,5105770888,"8,375.78",Balfour Beatty Living Places Ltd
Manchester City Council,Environment and Operations,Construction Works,03.08.2021,5105770942,"4,418.50",Balfour Beatty Living Places Ltd
Manchester City Council,Environment and Operations,Construction Works,03.08.2021,5105770885,"4,350.35",Balfour Beatty Living Places Ltd
Manchester City Council,Environment and Operations,Construction Works,03.08.2021,5105770890,"4,036.47",Balfour Beatty Living Places Ltd
Manchester City Council,Environment and Operations,Construction Works,03.08.2021,5105770889,"3,643.28",Balfour Beatty Living Places Ltd
Manchester City Council,Environment and Operations,Construction Works,03.08.2021,5105770944,"1,851.20",Balfour Beatty Living Places Ltd
Manchester City Council,Corporate Services,Building Works,03.08.2021,1907309359,"67,200.00",LCR Limited
Manchester City Council,Chief Executives,Agency staff provision,04.08.2021,5105771213,"21,897.38",Osborne Richardson
Manchester City Council,Chief Executives,Agency staff provision,04.08.2021,5105771055,840.00,Isherwood Legal Limited
Manchester City Council,Childrens & Education Services,Training and Development,04.08.2021,5105771168,"1,500.00",Wipers Youth CIC
Manchester City Council,Adult Social Care,External repairs and maintenance for buildings,04.08.2021,5105770970,637.00,T F Jones Property Services Ltd
Manchester City Council,Housing Revenue Account,Northwards Reps Fee,04.08.2021,1907311134,"3,205.58",Redacted Personal Information
Manchester City Council,Regeneration Finance,Electricity,04.08.2021,5105771038,"7,047.39",Wythenshawe Forum Trust Ltd
Manchester City Council,Adult Social Care,Rents,04.08.2021,5105771161,"8,281.71",Eeven Homes Ltd.
Manchester City Council,Adult Social Care,Rents,04.08.2021,5105771130,"1,874.88",Jigsaw Homes North
Manchester City Council,Highways Services,Refuse Collection,04.08.2021,5105771204,"3,069.40",Balfour Beatty Living Places Ltd
Manchester City Council,Manchester Leisure,Security,04.08.2021,5105771171,"4,763.40",Showsec International Ltd
Manchester City Council,Manchester Leisure,Security,04.08.2021,5105771171,"2,925.48",Showsec International Ltd
Manchester City Council,Hospitality + Trading Services,Vehicle Hire Costs,04.08.2021,5105771166,"3,845.54",Fleet Dynamic Consultancy Ltd
Manchester City Council,Childrens & Education Services,Transport Coach Hire,04.08.2021,5105771242,"1,775.80",Club Radio Cars Manchester Ltd
Manchester City Council,Childrens & Education Services,Transport Coach Hire,04.08.2021,5105771137,963.00,MCR Elite Taxis Ltd
Manchester City Council,Manchester Leisure,Equipment,04.08.2021,1907302010,"1,515.00",Business On Bikes Ltd
Manchester City Council,Adult Social Care,Equipment,04.08.2021,5105770857,860.00,Invacare Limited
Manchester City Council,Adult Social Care,Building Materials for direct delivery,04.08.2021,5105771101,758.16,Medela UK Ltd
Manchester City Council,Manchester Leisure,Payments to Sub-Contractors,04.08.2021,5105771191,"1,999.00",Redacted Personal Information
Manchester City Council,Manchester Leisure,Payments to Sub-Contractors,04.08.2021,5105771169,"1,550.00",Redacted Personal Information
Manchester City Council,Manchester Leisure,Payments to Sub-Contractors,04.08.2021,5105771096,500.00,Redacted Personal Information
Manchester City Council,Highways Services,Payments to Sub-Contractors,04.08.2021,5105771039,"9,180.38",Northern Marking Limited
Manchester City Council,Highways Services,Payments to Sub-Contractors,04.08.2021,5105771095,"7,568.66",Northern Marking Limited
Manchester City Council,Highways Services,Payments to Sub-Contractors,04.08.2021,5105771117,"7,568.66",Northern Marking Limited
Manchester City Council,Highways Services,Payments to Sub-Contractors,04.08.2021,5105771040,"2,794.52",Northern Marking Limited
Manchester City Council,Highways Services,Payments to Sub-Contractors,04.08.2021,5105771093,"1,922.56",Northern Marking Limited
Manchester City Council,Highways Services,Payments to Sub-Contractors,04.08.2021,5105771092,"1,182.20",Northern Marking Limited
Manchester City Council,Highways Services,Payments to Sub-Contractors,04.08.2021,5105771098,"-7,568.66",Northern Marking Limited
Manchester City Council,Manchester Leisure,Hire of Equipment,04.08.2021,5105771100,"1,262.50",Niche Event Hire
Manchester City Council,Manchester Leisure,Hire of Equipment,04.08.2021,5105770957,"1,000.00",Space Stage Ltd
Manchester City Council,Chief Executives,Machinery and equipment repairs,04.08.2021,5105771134,695.00,Alphatec 2000 Ltd
Manchester City Council,Chief Executives,Grant Payments,04.08.2021,5105771203,"3,250.00",Quarantine
Manchester City Council,Corporate Services,Printing,04.08.2021,5105771160,758.80,Mail Solutions
Manchester City Council,Chief Executives,Printing,04.08.2021,5105771158,966.00,Mail Solutions
Manchester City Council,Chief Executives,Printing,04.08.2021,5105771159,966.00,Mail Solutions
Manchester City Council,Childrens & Education Services,Legal Fees,04.08.2021,5105771246,"3,409.70",Waddington & Son Solicitors
Manchester City Council,Childrens & Education Services,Legal Fees,04.08.2021,5105771241,"2,958.75",Waddington & Son Solicitors
Manchester City Council,Childrens & Education Services,Legal Fees,04.08.2021,5105771235,"1,474.85",Waddington & Son Solicitors
Manchester City Council,Childrens & Education Services,Legal Fees,04.08.2021,5105771233,"1,433.75",Waddington & Son Solicitors
Manchester City Council,Childrens & Education Services,Legal Fees,04.08.2021,5105771239,"1,006.25",Waddington & Son Solicitors
Manchester City Council,Childrens & Education Services,Legal Fees,04.08.2021,5105771139,751.70,Warwickshire County Council
Manchester City Council,Regeneration Finance,Professional fees,04.08.2021,5105771184,"5,200.00",AECOM Limited
Manchester City Council,Highways Services,Professional fees,04.08.2021,5105771076,"25,352.00",Balfour Beatty Living Places Ltd
Manchester City Council,Highways Services,Professional fees,04.08.2021,5105771217,"2,317.70",Balfour Beatty Living Places Ltd
Manchester City Council,Highways Services,Professional fees,04.08.2021,5105771205,751.70,Balfour Beatty Living Places Ltd
Manchester City Council,Highways Services,Professional fees,04.08.2021,5105771215,751.70,Balfour Beatty Living Places Ltd
Manchester City Council,Highways Services,Professional fees,04.08.2021,5105771216,751.70,Balfour Beatty Living Places Ltd
Manchester City Council,Highways Services,Professional fees,04.08.2021,5105771219,751.70,Balfour Beatty Living Places Ltd
Manchester City Council,Manchester Leisure,Professional fees,04.08.2021,5105771056,"2,340.00",Manchester Art Gallery
Manchester City Council,Manchester Leisure,Professional fees,04.08.2021,5105770807,"1,335.00",Common Practices Ltd
Manchester City Council,Regeneration Finance,Professional fees,04.08.2021,5105771238,"44,000.00",Jacobs UK Ltd
Manchester City Council,Regeneration Finance,Professional fees,04.08.2021,5105771248,"1,435.05",AA Projects Ltd
Manchester City Council,Corporate Services,I T Provision,04.08.2021,5105771157,"1,834.80",Taranto Systems Ltd
Manchester City Council,Corporate Services,Subsistence and Conference Expenses,04.08.2021,1907302007,"2,795.00",The Hemming Group Limited
Manchester City Council,Manchester Leisure,Grant and subscriptions awarded,04.08.2021,1907311095,"23,100.00",Alfurqan Academy
Manchester City Council,Manchester Leisure,Grant and subscriptions awarded,04.08.2021,5105771153,"1,000.00",Bangladeshi Civil Society
Manchester City Council,Chief Executives,Grant and subscriptions awarded,04.08.2021,5105771031,"7,411.00",Waters Edge Arts Ltd
Manchester City Council,Chief Executives,Grant and subscriptions awarded,04.08.2021,5105770938,"5,204.20",OmniMusic
Manchester City Council,Chief Executives,Grant and subscriptions awarded,04.08.2021,5105771094,"4,987.00",Greater Manchester Youth
Manchester City Council,Chief Executives,Grant and subscriptions awarded,04.08.2021,5105771105,"-7,411.00",Waters Edge Arts Ltd
Manchester City Council,Chief Executives,Advertising,04.08.2021,5105771128,"16,550.94",Reach Publishing Services Ltd
Manchester City Council,Chief Executives,Advertising,04.08.2021,5105771128,"4,682.06",Reach Publishing Services Ltd
Manchester City Council,Manchester Leisure,Goods purchased for resale in Council outlets,04.08.2021,5105771249,980.40,Kikkerland Europe BV
Manchester City Council,Manchester Leisure,Special Event,04.08.2021,1907295084,"4,750.00",Investment Briefings Limited
Manchester City Council,Manchester Leisure,Special Event,04.08.2021,1907308587,"2,000.00",GMC Ltd
Manchester City Council,Chief Executives,Funeral and coroner related services,04.08.2021,5105771129,"32,827.00",GMCA
Manchester City Council,Childrens & Education Services,"Print, Design & Tran",04.08.2021,5105771333,"-1,098.25",Language Line Ltd
Manchester City Council,Adult Social Care,Third party payments relating to Voluntary Organisations,04.08.2021,5105771162,"22,000.00",Supporting People In Need
Manchester City Council,Adult Social Care,Third party payments relating to Voluntary Organisations,04.08.2021,5105771132,"2,500.00",Sow the City
Manchester City Council,Adult Social Care,Third party payments relating to Voluntary Organisations,04.08.2021,5105771002,"2,290.00",Great Places Housing Association
Manchester City Council,Adult Social Care,Third party payments relating to Voluntary Organisations,04.08.2021,5105771164,"-22,000.00",Supporting People In Need
Manchester City Council,Childrens & Education Services,Payments for services,04.08.2021,5105771175,"49,433.19",The Together Trust
Manchester City Council,Childrens & Education Services,Payments for services,04.08.2021,5105771174,"8,192.71",The Together Trust
Manchester City Council,Childrens & Education Services,Payments for services,04.08.2021,5105771212,"4,133.24",The Together Trust
Manchester City Council,Childrens & Education Services,Payments for services,04.08.2021,5105771211,"1,060.15",The Together Trust
Manchester City Council,Childrens & Education Services,Payments for services,04.08.2021,5105771214,935.26,The Together Trust
Manchester City Council,Childrens & Education Services,Payments for services,04.08.2021,5105771121,891.36,DHP Care Limited
Manchester City Council,Childrens & Education Services,Payments for services,04.08.2021,5105771206,758.52,DHP Care Limited
Manchester City Council,Childrens & Education Services,Payments for services,04.08.2021,5105771222,589.00,The Together Trust
Manchester City Council,Childrens & Education Services,Payments for services,04.08.2021,5105771109,587.13,Time Specialist Support Ltd
Manchester City Council,Adult Social Care,Payments for services,04.08.2021,5105771201,"404,483.00",Manchester Active
Manchester City Council,Adult Social Care,Payments for services,04.08.2021,5105771148,"5,280.00",Kaleidoscope Project
Manchester City Council,Adult Social Care,Housing Rents Debit,04.08.2021,1907309272,"1,640.00",Redacted Personal Information
Manchester City Council,Housing General Fund,Council Dwelling Adaptations,04.08.2021,5105771197,"13,965.00",Shared Habitat Limited
Manchester City Council,Housing General Fund,Council Dwelling Adaptations,04.08.2021,5105771250,"10,940.00",Shared Habitat Limited
Manchester City Council,Housing General Fund,Council Dwelling Adaptations,04.08.2021,5105771196,"-13,965.00",Shared Habitat Limited
Manchester City Council,Housing Revenue Account,Council Dwelling Adaptations,04.08.2021,5105771062,"4,771.15",Procare Shower & Bathroom Centre Lt
Manchester City Council,Housing Revenue Account,Council Dwelling Adaptations,04.08.2021,5105771050,"1,633.39",Rexel UK Ltd
Manchester City Council,Housing Revenue Account,Council Dwelling Adaptations,04.08.2021,5105771061,"1,015.46",Rexel UK Ltd
Manchester City Council,Housing Revenue Account,Council Dwelling Adaptations,04.08.2021,5105771063,742.45,Rexel UK Ltd
Manchester City Council,Housing Revenue Account,Council Dwelling Adaptations,04.08.2021,5105771064,549.66,Procare Shower & Bathroom Centre Lt
Manchester City Council,Chief Executives,Works and associated costs for Land and Buildings,04.08.2021,5105771172,"-24,203.00",Turner & Townsend Project
Manchester City Council,Corporate Services,Works and associated costs for Land and Buildings,04.08.2021,5105771195,"11,159.64",Ameresco Limited
Manchester City Council,Corporate Services,Works and associated costs for Land and Buildings,04.08.2021,5105771195,"2,202.75",Ameresco Limited
Manchester City Council,Corporate Services,Works and associated costs for Land and Buildings,04.08.2021,5105771194,"-2,202.75",Ameresco Limited
Manchester City Council,Corporate Services,Works and associated costs for Land and Buildings,04.08.2021,5105771194,"-11,149.64",Ameresco Limited
Manchester City Council,Corporate Services,Works and associated costs for Land and Buildings,04.08.2021,5105771150,"-252,970.89",Ameresco Limited
Manchester City Council,Environment and Operations,Construction Works,04.08.2021,5105771324,"-2,300.00",JMP Consultants Ltd
Manchester City Council,Environment and Operations,Construction Works,04.08.2021,5105771322,"-11,633.00",JMP Consultants Ltd
Manchester City Council,Adult Social Care,Agency staff provision,05.08.2021,5105771299,"33,495.40",Skills & Work Solutions
Manchester City Council,Adult Social Care,Agency staff provision,05.08.2021,5105771403,"2,183.16",Reed Employment Plc
Manchester City Council,Chief Executives,Agency staff provision,05.08.2021,5105771431,"21,528.00",Cadence Resourcing Ltd
Manchester City Council,Chief Executives,Agency staff provision,05.08.2021,5105771430,"11,641.68",LAW Absolute
Manchester City Council,Chief Executives,Agency staff provision,05.08.2021,5105771429,"11,535.98",NonStop Recruitment Ltd
Manchester City Council,Chief Executives,Agency staff provision,05.08.2021,5105771394,"5,362.50",Penna PLC
Manchester City Council,Childrens & Education Services,Internal Repairs and Maintenance for buildings,05.08.2021,5105771612,"3,216.55",NU3PS
Manchester City Council,Childrens & Education Services,Internal Repairs and Maintenance for buildings,05.08.2021,5105771611,"-3,248.67",NU3PS
Manchester City Council,Highways Services,Electricity,05.08.2021,1907313107,"1,352.55",Scottish & Southern Energy Plc
Manchester City Council,Highways Services,Electricity,05.08.2021,1907313106,"1,266.54",Scottish & Southern Energy Plc
Manchester City Council,Adult Social Care,Rents,05.08.2021,5105771401,"85,993.00",Accommodation Links Ltd
Manchester City Council,Adult Social Care,Rents,05.08.2021,5105771350,"15,262.72",AJD Property Limited
Manchester City Council,Adult Social Care,Rents,05.08.2021,5105771272,"7,714.22",AJD Property Limited
Manchester City Council,Adult Social Care,Rents,05.08.2021,5105771362,"2,070.66",Jigsaw Homes North
Manchester City Council,Adult Social Care,Rents,05.08.2021,5105771363,"2,052.41",Jigsaw Homes North
Manchester City Council,Adult Social Care,Rents,05.08.2021,5105771361,"1,874.89",Jigsaw Homes North
Manchester City Council,Adult Social Care,Contract Cleaning External,05.08.2021,5105771253,"1,431.00",YD Healthcare Ltd
Manchester City Council,Corporate Services,Storage Costs,05.08.2021,5105771141,"5,875.33",Oasis UK formerly Box-It (NW)
Manchester City Council,Manchester Leisure,Grounds Maintenance,05.08.2021,5105771275,"6,805.00",Groundwork Landscapes Ltd
Manchester City Council,Manchester Leisure,Equipment,05.08.2021,1907313427,"2,095.88",RCGP 30 EUSTON SQ
Manchester City Council,Manchester Leisure,Equipment,05.08.2021,1907313208,710.00,WWW.UKPOS.COM
Manchester City Council,Childrens & Education Services,Equipment,05.08.2021,1907313830,"1,491.00",AIRBNB * HMAHSK2P28
Manchester City Council,Childrens & Education Services,Equipment,05.08.2021,1907313980,988.50,AIRBNB * HM352DS599
Manchester City Council,Childrens & Education Services,Equipment,05.08.2021,1907313444,951.30,AIRBNB * HM88XBBP4H
Manchester City Council,Childrens & Education Services,Equipment,05.08.2021,1907313426,951.30,AIRBNB * HMARS5Y5BS
Manchester City Council,Childrens & Education Services,Equipment,05.08.2021,1907313438,918.00,AIRBNB * HMKJ2JX52S
Manchester City Council,Childrens & Education Services,Equipment,05.08.2021,1907314146,840.60,AIRBNB * HMMHCRA5SF
Manchester City Council,Childrens & Education Services,Equipment,05.08.2021,1907314048,-810.00,AIRBNB * HMAHSK2P28
Manchester City Council,Childrens & Education Services,Equipment,05.08.2021,1907314163,-840.60,AIRBNB * HMMHCRA5SF
Manchester City Council,Childrens & Education Services,Equipment,05.08.2021,1907313452,-951.30,AIRBNB * HM88XBBP4H
Manchester City Council,Childrens & Education Services,Equipment,05.08.2021,1907313448,-951.30,AIRBNB * HMARS5Y5BS
Manchester City Council,Adult Social Care,Equipment,05.08.2021,5105771347,"1,417.04",Sarabec Limited
Manchester City Council,Chief Executives,Equipment,05.08.2021,1907313719,655.78,ZOOM.US 888-799-9666
Manchester City Council,Adult Social Care,Furniture,05.08.2021,5105771305,974.45,Back Care Solutions Ltd
Manchester City Council,Manchester Leisure,"Consumable items eg Toilet rolls, soap etc",05.08.2021,1907313640,786.60,MSFT * E0400F0S8T
Manchester City Council,Manchester Leisure,"Consumable items eg Toilet rolls, soap etc",05.08.2021,1907313635,660.00,ROYAL MAIL ONLINE SHOP
Manchester City Council,Manchester Leisure,"Consumable items eg Toilet rolls, soap etc",05.08.2021,1907313914,660.00,ROYAL MAIL ONLINE SHOP
Manchester City Council,Manchester Leisure,"Consumable items eg Toilet rolls, soap etc",05.08.2021,1907313395,613.20,Amazon Co.Uk
Manchester City Council,Hospitality + Trading Services,"Consumable items eg Toilet rolls, soap etc",05.08.2021,1907313317,600.00,British Pest Control Association
Manchester City Council,Childrens & Education Services,"Consumable items eg Toilet rolls, soap etc",05.08.2021,1907313643,783.00,PILLOW PARTNERS
Manchester City Council,Childrens & Education Services,"Consumable items eg Toilet rolls, soap etc",05.08.2021,1907313335,713.00,FLOOR EXPRESS
Manchester City Council,Childrens & Education Services,"Consumable items eg Toilet rolls, soap etc",05.08.2021,1907313359,708.00,CAMILLA CARPETS LTD
Manchester City Council,Childrens & Education Services,"Consumable items eg Toilet rolls, soap etc",05.08.2021,1907313508,675.00,CAMILLA CARPETS LTD
Manchester City Council,Childrens & Education Services,"Consumable items eg Toilet rolls, soap etc",05.08.2021,1907314070,515.00,WHITEGOODS
Manchester City Council,Childrens & Education Services,"Consumable items eg Toilet rolls, soap etc",05.08.2021,1907314023,501.94,Argos Business Solutions
Manchester City Council,Adult Social Care,"Consumable items eg Toilet rolls, soap etc",05.08.2021,1907313419,"2,995.05",S AND S SALES MCR LTD
Manchester City Council,Adult Social Care,"Consumable items eg Toilet rolls, soap etc",05.08.2021,1907313885,"2,240.00",SUMUP  *STUDENT LIVING MA
Manchester City Council,Adult Social Care,"Consumable items eg Toilet rolls, soap etc",05.08.2021,1907313598,"1,740.00",LANDMARK PROPERTY MANA
Manchester City Council,Adult Social Care,"Consumable items eg Toilet rolls, soap etc",05.08.2021,1907313928,"1,416.00",SAFEGROUP SERVICES LTD
Manchester City Council,Adult Social Care,"Consumable items eg Toilet rolls, soap etc",05.08.2021,1907314109,"1,292.18",TRAVELODGE P CARD ONLY
Manchester City Council,Adult Social Care,"Consumable items eg Toilet rolls, soap etc",05.08.2021,1907313993,"1,224.00",HOTEL IBIS
Manchester City Council,Adult Social Care,"Consumable items eg Toilet rolls, soap etc",05.08.2021,1907313909,"1,075.50",Premier Inn P CARD ONLY
Manchester City Council,Adult Social Care,"Consumable items eg Toilet rolls, soap etc",05.08.2021,1907313929,"1,057.00",HOLIDAY INN P CARD ONLY
Manchester City Council,Adult Social Care,"Consumable items eg Toilet rolls, soap etc",05.08.2021,1907313950,"1,052.00",HOTEL IBIS
Manchester City Council,Adult Social Care,"Consumable items eg Toilet rolls, soap etc",05.08.2021,1907313964,"1,052.00",HOTEL IBIS
Manchester City Council,Adult Social Care,"Consumable items eg Toilet rolls, soap etc",05.08.2021,1907313265,"1,000.64",PARK CITY HOTEL
Manchester City Council,Adult Social Care,"Consumable items eg Toilet rolls, soap etc",05.08.2021,1907313267,"1,000.64",PARK CITY HOTEL
Manchester City Council,Adult Social Care,"Consumable items eg Toilet rolls, soap etc",05.08.2021,1907313344,940.50,Premier Inn P CARD ONLY
Manchester City Council,Adult Social Care,"Consumable items eg Toilet rolls, soap etc",05.08.2021,1907313528,925.50,Premier Inn P CARD ONLY
Manchester City Council,Adult Social Care,"Consumable items eg Toilet rolls, soap etc",05.08.2021,1907314055,910.00,HOTEL IBIS
Manchester City Council,Adult Social Care,"Consumable items eg Toilet rolls, soap etc",05.08.2021,1907313261,900.00,Reeds Rains
Manchester City Council,Adult Social Care,"Consumable items eg Toilet rolls, soap etc",05.08.2021,1907313251,774.00,BIGDUG LIMITED
Manchester City Council,Adult Social Care,"Consumable items eg Toilet rolls, soap etc",05.08.2021,1907313976,760.00,SUMUP  *STUDENT LIVING MA
Manchester City Council,Adult Social Care,"Consumable items eg Toilet rolls, soap etc",05.08.2021,1907313612,725.00,S AND S SALES MCR LTD
Manchester City Council,Adult Social Care,"Consumable items eg Toilet rolls, soap etc",05.08.2021,1907314100,689.00,Premier Inn P CARD ONLY
Manchester City Council,Adult Social Care,"Consumable items eg Toilet rolls, soap etc",05.08.2021,1907314074,654.93,HOLIDAY INN P CARD ONLY
Manchester City Council,Adult Social Care,"Consumable items eg Toilet rolls, soap etc",05.08.2021,1907313849,646.00,Premier Inn P CARD ONLY
Manchester City Council,Adult Social Care,"Consumable items eg Toilet rolls, soap etc",05.08.2021,1907314112,568.00,HOTEL IBIS
Manchester City Council,Adult Social Care,"Consumable items eg Toilet rolls, soap etc",05.08.2021,1907313867,533.38,TRAVELODGE P CARD ONLY
Manchester City Council,Adult Social Care,"Consumable items eg Toilet rolls, soap etc",05.08.2021,1907313837,533.00,Premier Inn P CARD ONLY
Manchester City Council,Adult Social Care,"Consumable items eg Toilet rolls, soap etc",05.08.2021,1907313402,532.00,PARK CITY HOTEL
Manchester City Council,Adult Social Care,"Consumable items eg Toilet rolls, soap etc",05.08.2021,1907313969,522.00,EXP BY HOLIDAY INN MEN
Manchester City Council,Adult Social Care,"Consumable items eg Toilet rolls, soap etc",05.08.2021,1907314000,520.00,BRITANNIA HOTEL
Manchester City Council,Corporate Services,"Consumable items eg Toilet rolls, soap etc",05.08.2021,1907313943,"1,703.81",MANCHESTER CC PNP/
Manchester City Council,Hospitality + Trading Services,Building Materials for direct delivery,05.08.2021,1907313571,"2,499.51",SUMUP  *MARSTON GROUP LIM
Manchester City Council,Hospitality + Trading Services,Building Materials for direct delivery,05.08.2021,1907314029,"1,717.92",WWW.TARMAC.COM
Manchester City Council,Hospitality + Trading Services,Building Materials for direct delivery,05.08.2021,1907314015,641.35,WWW.TARMAC.COM
Manchester City Council,Manchester Leisure,Payments to Sub-Contractors,05.08.2021,5105771622,"1,625.00",Clean-Up UK Limited
Manchester City Council,Manchester Leisure,Payments to Sub-Contractors,05.08.2021,5105771111,"1,550.00",Redacted Personal Information
Manchester City Council,Manchester Leisure,Payments to Sub-Contractors,05.08.2021,5105771170,"1,550.00",Redacted Personal Information
Manchester City Council,Manchester Leisure,Payments to Sub-Contractors,05.08.2021,5105771112,"1,240.00",Redacted Personal Information
Manchester City Council,Manchester Leisure,Payments to Sub-Contractors,05.08.2021,5105771621,720.00,Clean-Up UK Limited
Manchester City Council,Chief Executives,Payments to Sub-Contractors,05.08.2021,5105771420,915.00,GAMACHU GUTTO
Manchester City Council,Highways Services,Payments to Sub-Contractors,05.08.2021,5105771327,"197,498.12",Rosgal Ltd
Manchester City Council,Highways Services,Payments to Sub-Contractors,05.08.2021,5105771310,"55,553.52",Rosgal Ltd
Manchester City Council,Highways Services,Payments to Sub-Contractors,05.08.2021,5105771179,"30,416.32",Rosgal Ltd
Manchester City Council,Manchester Leisure,Hire of Equipment,05.08.2021,5105763085,"3,581.00",Universal Tanker Solutions Ltd
Manchester City Council,Hospitality + Trading Services,Hire of Equipment,05.08.2021,5105771596,510.40,Mastacab LLP
Manchester City Council,Regeneration Finance,Training and Development,05.08.2021,5105771255,575.36,Pearson Education Ltd
Manchester City Council,Chief Executives,Grant Payments,05.08.2021,5105771398,"11,356.80",Precise Media Monitoring Ltd
Manchester City Council,Chief Executives,Printing,05.08.2021,5105771345,"7,440.00",t/a R.C.D.
Manchester City Council,Manchester Leisure,General Office expenses,05.08.2021,1907313217,"1,306.00",WWW.EARTH-ANCHORS.COM
Manchester City Council,Manchester Leisure,General Office expenses,05.08.2021,1907313218,630.00,MILLWARD & KEELING LTD
Manchester City Council,Childrens & Education Services,General Office expenses,05.08.2021,1907313689,"1,310.15",Argos Business Solutions
Manchester City Council,Childrens & Education Services,General Office expenses,05.08.2021,1907313566,912.95,Argos Business Solutions
Manchester City Council,Childrens & Education Services,General Office expenses,05.08.2021,1907313958,673.01,EE / Orange
Manchester City Council,Childrens & Education Services,General Office expenses,05.08.2021,1907313250,663.80,EE / Orange
Manchester City Council,Childrens & Education Services,General Office expenses,05.08.2021,1907313679,626.93,Argos Business Solutions
Manchester City Council,Childrens & Education Services,General Office expenses,05.08.2021,1907313713,600.00,OPTIMA LOW VISIONS SERVIC
Manchester City Council,Childrens & Education Services,General Office expenses,05.08.2021,1907313368,579.98,Argos Business Solutions
Manchester City Council,Childrens & Education Services,General Office expenses,05.08.2021,1907314117,578.00,B & Q (CARD ONLY)
Manchester City Council,Childrens & Education Services,Legal Fees,05.08.2021,5105771290,"8,610.00",Waddington & Son Solicitors
Manchester City Council,Childrens & Education Services,Legal Fees,05.08.2021,5105771311,"4,493.75",Waddington & Son Solicitors
Manchester City Council,Childrens & Education Services,Legal Fees,05.08.2021,5105771292,"4,329.70",Waddington & Son Solicitors
Manchester City Council,Childrens & Education Services,Legal Fees,05.08.2021,5105771284,"2,936.20",Waddington & Son Solicitors
Manchester City Council,Childrens & Education Services,Legal Fees,05.08.2021,5105771287,"2,753.60",Waddington & Son Solicitors
Manchester City Council,Childrens & Education Services,Legal Fees,05.08.2021,5105771294,"2,543.70",Waddington & Son Solicitors
Manchester City Council,Childrens & Education Services,Legal Fees,05.08.2021,5105771286,"2,162.50",Waddington & Son Solicitors
Manchester City Council,Childrens & Education Services,Legal Fees,05.08.2021,5105771283,"1,033.79",Waddington & Son Solicitors
Manchester City Council,Childrens & Education Services,Legal Fees,05.08.2021,5105771291,612.50,Waddington & Son Solicitors
Manchester City Council,Childrens & Education Services,Legal Fees,05.08.2021,5105771278,600.00,Waddington & Son Solicitors
Manchester City Council,Childrens & Education Services,Legal Fees,05.08.2021,5105771282,525.00,Waddington & Son Solicitors
Manchester City Council,Adult Social Care,Legal Fees,05.08.2021,5105771364,"3,650.00",Redacted Personal Information
Manchester City Council,Chief Executives,Legal Fees,05.08.2021,5105771189,"4,020.24",Waddington & Son Solicitors
Manchester City Council,Chief Executives,Legal Fees,05.08.2021,5105771187,"2,862.50",Waddington & Son Solicitors
Manchester City Council,Chief Executives,Legal Fees,05.08.2021,5105771434,"2,206.25",Weightmans LLP Solicitors
Manchester City Council,Chief Executives,Legal Fees,05.08.2021,5105771409,"1,881.25",Weightmans LLP Solicitors
Manchester City Council,Chief Executives,Legal Fees,05.08.2021,5105771186,"1,793.75",Waddington & Son Solicitors
Manchester City Council,Chief Executives,Legal Fees,05.08.2021,5105771351,"1,793.75",Waddington & Son Solicitors
Manchester City Council,Chief Executives,Legal Fees,05.08.2021,5105771408,"1,439.09",Weightmans LLP Solicitors
Manchester City Council,Chief Executives,Legal Fees,05.08.2021,5105771188,"1,147.50",Waddington & Son Solicitors
Manchester City Council,Chief Executives,Legal Fees,05.08.2021,5105771190,"-1,793.75",Waddington & Son Solicitors
Manchester City Council,Regeneration Finance,Legal Fees,05.08.2021,5105771433,"22,296.00",Eversheds Llp
Manchester City Council,Insurance Fund,Legal Fees,05.08.2021,1907308579,"19,629.64",Department For Work & Pensions
Manchester City Council,Childrens & Education Services,Professional fees,05.08.2021,1907313907,523.25,Amazon Co.Uk
Manchester City Council,Highways Services,Professional fees,05.08.2021,5105771288,"6,803.35",Balfour Beatty Living Places Ltd
Manchester City Council,Highways Services,Professional fees,05.08.2021,5105771293,"5,280.00",Balfour Beatty Living Places Ltd
Manchester City Council,Highways Services,Professional fees,05.08.2021,5105771268,751.70,Balfour Beatty Living Places Ltd
Manchester City Council,Highways Services,Professional fees,05.08.2021,5105771276,751.70,Balfour Beatty Living Places Ltd
Manchester City Council,Highways Services,Professional fees,05.08.2021,5105771296,751.70,Balfour Beatty Living Places Ltd
Manchester City Council,Highways Services,Professional fees,05.08.2021,5105771318,751.70,Balfour Beatty Living Places Ltd
Manchester City Council,Highways Services,Professional fees,05.08.2021,5105771325,626.41,Balfour Beatty Living Places Ltd
Manchester City Council,Childrens & Education Services,Signers/Interpreters,05.08.2021,5105771334,-536.65,Language Line Ltd
Manchester City Council,Chief Executives,CRB Fees,05.08.2021,5105771385,"28,728.00",Disclosure & Barring Service
Manchester City Council,Childrens & Education Services,Professional fees,05.08.2021,1907308591,500.00,Ridley & Hall Solicitors
Manchester City Council,Corporate Services,Professional fees,05.08.2021,5105771149,"10,125.00",Gleeds Management Services Limited
Manchester City Council,Corporate Services,Professional fees,05.08.2021,5105771087,"2,250.00",Gleeds Management Services Limited
Manchester City Council,Chief Executives,Professional fees,05.08.2021,5105771011,"1,580.83","Groundwork Manchester, Salford"
Manchester City Council,Regeneration Finance,Professional fees,05.08.2021,5105771180,"39,000.00",Manchester Care & Repair Ltd
Manchester City Council,Regeneration Finance,Professional fees,05.08.2021,5105771377,"2,959.27",Time-Out Cleaning Services
Manchester City Council,Corporate Services,Postage,05.08.2021,5105771339,"6,540.79",Royal Mail Group Plc
Manchester City Council,Chief Executives,Postage,05.08.2021,5105771397,"-175,956.90",Civica Election Services
Manchester City Council,Chief Executives,Mobilephone Charges,05.08.2021,1907314181,"37,916.30",EE / Orange
Manchester City Council,Chief Executives,Mobilephone Charges,05.08.2021,1907314182,"37,869.51",EE / Orange
Manchester City Council,Chief Executives,I T Provision,05.08.2021,5105771308,"1,150.00",T.I.S. Limited
Manchester City Council,Corporate Services,I T Provision,05.08.2021,5105771346,"1,300.00",Capita Business Services Ltd
Manchester City Council,Adult Social Care,I T Provision,05.08.2021,5105771371,"5,010.76",CM2000 Care Management
Manchester City Council,Insurance Fund,Bal of Rsk InsPrem,05.08.2021,1907308128,"1,000.00",Manley Park Primary School
Manchester City Council,Chief Executives,Subsistence and Conference Expenses,05.08.2021,1907313196,500.00,PARK INN HOTEL MANPC
Manchester City Council,Manchester Leisure,Grant and subscriptions awarded,05.08.2021,5105771281,"131,478.00",Manchester Active
Manchester City Council,Manchester Leisure,Grant and subscriptions awarded,05.08.2021,1907312402,500.00,Friends of Fletcher Moss Park
Manchester City Council,Adult Social Care,Grant and subscriptions awarded,05.08.2021,5105771202,"93,030.50",Riverside ECHG
Manchester City Council,Adult Social Care,Grant and subscriptions awarded,05.08.2021,5105771088,"8,760.00",Coffee4Craig Ltd
Manchester City Council,Chief Executives,Grant and subscriptions awarded,05.08.2021,5105771343,"27,229.00",Zion Arts Centre Ltd
Manchester City Council,Chief Executives,Grant and subscriptions awarded,05.08.2021,5105771273,"17,553.00",Brighter Sound Ltd
Manchester City Council,Chief Executives,Advertising,05.08.2021,1907313802,700.00,Facebook (CARD ONLY)
Manchester City Council,Chief Executives,Advertising,05.08.2021,1907314054,700.00,Facebook (CARD ONLY)
Manchester City Council,Adult Social Care,Bed & Breakfast Acc,05.08.2021,5105771435,"38,775.24",Redacted Personal Information
Manchester City Council,Adult Social Care,Bed & Breakfast Acc,05.08.2021,5105771417,"15,400.00",Intra City Construction Group
Manchester City Council,Adult Social Care,Bed & Breakfast Acc,05.08.2021,5105771379,"10,450.00",Redacted Personal Information
Manchester City Council,Adult Social Care,Bed & Breakfast Acc,05.08.2021,5105771251,"9,950.00",Redacted Personal Information
Manchester City Council,Manchester Leisure,Goods purchased for resale in Council outlets,05.08.2021,5105771259,"5,250.00",Cornflower Ltd
Manchester City Council,Manchester Leisure,Goods purchased for resale in Council outlets,05.08.2021,5105771390,"1,180.48",Stone Marketing Ltd
Manchester City Council,Manchester Leisure,Goods purchased for resale in Council outlets,05.08.2021,5105771404,"1,000.00",Crawford Henderson Limited
Manchester City Council,Manchester Leisure,Goods purchased for resale in Council outlets,05.08.2021,5105771265,559.44,Streeten Kamlish Ltd
Manchester City Council,Hospitality + Trading Services,Goods purchased for resale in Council outlets,05.08.2021,5105771352,"1,018.30",Treasured Memories Ltd
Manchester City Council,Hospitality + Trading Services,Goods purchased for resale in Council outlets,05.08.2021,5105771354,"1,016.55",Treasured Memories Ltd
Manchester City Council,Manchester Leisure,Library Materials Acquisition,05.08.2021,1907308571,975.76,Askews and Holts
Manchester City Council,Manchester Leisure,Library Materials Acquisition,05.08.2021,1907308575,640.00,ICE Data Services Europe Ltd
Manchester City Council,Childrens & Education Services,Third party payments to other Local Authorities,05.08.2021,5105771402,"14,931.15",Tor View School
Manchester City Council,Childrens & Education Services,Third party payments to other Local Authorities,05.08.2021,5105771392,"11,871.48",New Bridge School
Manchester City Council,Childrens & Education Services,Third party payments to other Local Authorities,05.08.2021,5105771432,"2,805.00",Cygnet (NW) Ltd
Manchester City Council,Childrens & Education Services,Third party payments to other Local Authorities,05.08.2021,5105771380,"2,313.74",New Bridge School
Manchester City Council,Childrens & Education Services,Third party payments to other Local Authorities,05.08.2021,5105771391,"2,019.42",New Bridge School
Manchester City Council,Childrens & Education Services,Third party payments relating to Voluntary Organisations,05.08.2021,5105771341,"15,000.00",Safe Families for Children
Manchester City Council,Adult Social Care,Third party payments relating to Voluntary Organisations,05.08.2021,5105771358,"4,200.00",George House Trust
Manchester City Council,Regeneration Finance,Third party payments relating to Voluntary Organisations,05.08.2021,5105771320,"5,417.00",Sonder Radio Ltd
Manchester City Council,Regeneration Finance,Third party payments relating to Voluntary Organisations,05.08.2021,5105771314,"-5,417.00",Sonder Radio Ltd
Manchester City Council,Childrens & Education Services,Payments for services,05.08.2021,5105771365,"28,125.00",Pure Innovations Ltd
Manchester City Council,Childrens & Education Services,Payments for services,05.08.2021,5105771368,"1,185.68",Carers Trust 4All
Manchester City Council,Childrens & Education Services,Payments for services,05.08.2021,5105771366,889.10,Carers Trust 4All
Manchester City Council,Childrens & Education Services,Payments for services,05.08.2021,5105771367,527.50,Carers Trust 4All
Manchester City Council,Childrens & Education Services,Payments for services,05.08.2021,5105771406,"-1,407.85",Allied Publicity Services (M\cr) Lt
Manchester City Council,Adult Social Care,Payments for services,05.08.2021,1907313589,843.00,HOLIDAY INN P CARD ONLY
Manchester City Council,Adult Social Care,Payments for services,05.08.2021,1907313591,843.00,HOLIDAY INN P CARD ONLY
Manchester City Council,Adult Social Care,Payments for services,05.08.2021,1907313931,833.91,HOLIDAY INN P CARD ONLY
Manchester City Council,Adult Social Care,Payments for services,05.08.2021,1907313422,802.00,Premier Inn P CARD ONLY
Manchester City Council,Adult Social Care,Payments for services,05.08.2021,1907313318,710.00,Premier Inn P CARD ONLY
Manchester City Council,Adult Social Care,Payments for services,05.08.2021,1907313331,702.00,Premier Inn P CARD ONLY
Manchester City Council,Adult Social Care,Payments for services,05.08.2021,1907313451,671.00,Premier Inn P CARD ONLY
Manchester City Council,Adult Social Care,Payments for services,05.08.2021,1907313579,656.00,Premier Inn P CARD ONLY
Manchester City Council,Adult Social Care,Payments for services,05.08.2021,1907313351,632.00,Premier Inn P CARD ONLY
Manchester City Council,Adult Social Care,Payments for services,05.08.2021,1907313562,630.00,Premier Inn P CARD ONLY
Manchester City Council,Adult Social Care,Payments for services,05.08.2021,1907313476,612.00,Premier Inn P CARD ONLY
Manchester City Council,Adult Social Care,Payments for services,05.08.2021,1907313698,594.00,Premier Inn P CARD ONLY
Manchester City Council,Adult Social Care,Payments for services,05.08.2021,1907313557,586.00,Premier Inn P CARD ONLY
Manchester City Council,Adult Social Care,Payments for services,05.08.2021,1907313966,554.00,EXP BY HOLIDAY INN MEN
Manchester City Council,Adult Social Care,Payments for services,05.08.2021,1907313840,546.00,Premier Inn P CARD ONLY
Manchester City Council,Adult Social Care,Payments for services,05.08.2021,1907313937,529.00,Premier Inn P CARD ONLY
Manchester City Council,Childrens & Education Services,Supporting People Payments,05.08.2021,5105771285,"1,818.73",Child Action Northwest
Manchester City Council,Adult Social Care,Supporting People Payments,05.08.2021,5105771285,"1,970.84",Child Action Northwest
Manchester City Council,Adult Social Care,Home Care ,05.08.2021,5105771393,"2,984.52",Standwalk Ltd
Manchester City Council,Childrens & Education Services,Supported Accommodation,05.08.2021,5105771415,556.50,Redacted Personal Information
Manchester City Council,Adult Social Care,Personal needs of client,05.08.2021,5105771307,"2,039.00",R82 Uk Ltd
Manchester City Council,Childrens & Education Services,Expenditure re Internal Trading Ordered Externally,05.08.2021,5105771376,900.00,Language Line Ltd
Manchester City Council,Chief Executives,Expenditure re Internal Trading Ordered Externally,05.08.2021,5105771397,"1,000,829.20",Civica Election Services
Manchester City Council,Chief Executives,Expenditure re Internal Trading Ordered Externally,05.08.2021,5105771397,"175,956.90",Civica Election Services
Manchester City Council,Chief Executives,Expenditure re Internal Trading Ordered Externally,05.08.2021,5105771340,"55,153.99",Civica Election Services
Manchester City Council,Housing Revenue Account,Council Dwelling Adaptations,05.08.2021,5105771423,"2,588.92",Pts Plumbing Trade Supplies
Manchester City Council,Housing Revenue Account,Council Dwelling Adaptations,05.08.2021,5105771422,"2,434.58",Rexel UK Ltd
Manchester City Council,Housing Revenue Account,Council Dwelling Adaptations,05.08.2021,5105771410,"1,354.81",Magnet Contract Kitchen Solutions
Manchester City Council,Housing Revenue Account,Council Dwelling Adaptations,05.08.2021,5105771443,"-9,330.00",Northwards Housing Limited
Manchester City Council,Chief Executives,Works and associated costs for Land and Buildings,05.08.2021,5105771395,"7,000.00",Planit
Manchester City Council,Chief Executives,Works and associated costs for Land and Buildings,05.08.2021,5105771147,"2,150.00",Urban Green Space Limited
Manchester City Council,Chief Executives,Works and associated costs for Land and Buildings,05.08.2021,5105771396,"1,250.00",Planit
Manchester City Council,Chief Executives,Works and associated costs for Land and Buildings,05.08.2021,5105771349,"-1,100.00",Buro Happold Limited
Manchester City Council,Environment and Operations,Construction Works,05.08.2021,5105771133,"125,499.85",J.Hopkins (Contractors) Ltd.
Manchester City Council,Environment and Operations,Construction Works,05.08.2021,5105771136,"23,234.34",J.Hopkins (Contractors) Ltd.
Manchester City Council,Environment and Operations,Construction Works,05.08.2021,5105771135,"20,964.41",J.Hopkins (Contractors) Ltd.
Manchester City Council,Manchester Leisure,Agency staff provision,06.08.2021,5105771634,"16,760.00",Penna PLC
Manchester City Council,Adult Social Care,Agency staff provision,06.08.2021,1907315191,"4,512.89",Reed Employment Plc
Manchester City Council,Adult Social Care,Agency staff provision,06.08.2021,5105771571,"2,183.16",Reed Employment Plc
Manchester City Council,Chief Executives,Agency staff provision,06.08.2021,5105771464,"28,033.59",Liquid Personnel Ltd
Manchester City Council,Chief Executives,Agency staff provision,06.08.2021,5105771506,"6,905.00",The Oyster Partnership Limited
Manchester City Council,Chief Executives,Agency staff provision,06.08.2021,5105771551,"6,491.25",The Oyster Partnership Limited
Manchester City Council,Chief Executives,Agency staff provision,06.08.2021,5105771505,"1,505.00",The Oyster Partnership Limited
Manchester City Council,Chief Executives,Agency staff provision,06.08.2021,5105771510,"1,209.00",The Oyster Partnership Limited
Manchester City Council,Libraries and Theatres,Training and Development,06.08.2021,5105771497,850.00,Ace Safety Academy Limited
Manchester City Council,Manchester Leisure,External repairs and maintenance for buildings,06.08.2021,5105771449,584.00,Rackline Limited
Manchester City Council,Adult Social Care,Rents,06.08.2021,5105771463,"37,519.61",Housing Social Ltd
Manchester City Council,Adult Social Care,Rents,06.08.2021,5105771539,"37,370.13",M & Q Properties Management Ltd
Manchester City Council,Adult Social Care,Rents,06.08.2021,5105771520,"8,281.71",Eeven Homes Ltd.
Manchester City Council,Adult Social Care,Rents,06.08.2021,5105771637,"5,630.71",Mosscare St Vincent's Housing
Manchester City Council,Adult Social Care,Rents,06.08.2021,5105771454,"3,169.04",AJD Property Limited
Manchester City Council,Childrens & Education Services,Contract Cleaning External,06.08.2021,5105771560,638.00,Freshwave Cleaning Services Ltd
Manchester City Council,Regeneration Finance,Contract Cleaning External,06.08.2021,5105771441,"-1,027.23",M & M Cleaning Services Ltd
Manchester City Council,Manchester Leisure,Refuse Collection,06.08.2021,5105771601,"1,147,334.31",Biffa Municipal Limited
Manchester City Council,Manchester Leisure,Refuse Collection,06.08.2021,5105771590,"87,994.52",Biffa Municipal Limited
Manchester City Council,Adult Social Care,Security,06.08.2021,5105771471,"4,284.00",UNIQUE SPECIALIST SERVICES
Manchester City Council,Adult Social Care,Security,06.08.2021,5105771460,"2,448.00",UNIQUE SPECIALIST SERVICES
Manchester City Council,Adult Social Care,Security,06.08.2021,5105771563,"1,071.00",UNIQUE SPECIALIST SERVICES
Manchester City Council,Manchester Leisure,Vehicle Fuel Costs,06.08.2021,5105771593,"1,182.40",Standard Fuels Oils
Manchester City Council,Manchester Leisure,Vehicle Fuel Costs,06.08.2021,5105771444,"-1,182.40",Standard Fuels Oils
Manchester City Council,Hospitality + Trading Services,Vehicle Hire Costs,06.08.2021,5105771631,"2,715.77",TIP Trailer Services UK Ltd
Manchester City Council,Manchester Leisure,Transport and Driver Hire,06.08.2021,5105771554,680.00,M&G Transport & Technical Services
Manchester City Council,Childrens & Education Services,Transport Coach Hire,06.08.2021,5105771513,"7,379.00",School Transport Solutions
Manchester City Council,Childrens & Education Services,Transport Coach Hire,06.08.2021,5105771658,"3,177.50",Ricks Travel
Manchester City Council,Childrens & Education Services,Transport Coach Hire,06.08.2021,5105771486,"1,932.00",Redacted Personal Information
Manchester City Council,Childrens & Education Services,Transport Coach Hire,06.08.2021,5105771498,"1,680.00",Redacted Personal Information
Manchester City Council,Childrens & Education Services,Transport Coach Hire,06.08.2021,5105771485,"1,650.00",JKR Travel
Manchester City Council,Childrens & Education Services,Transport Coach Hire,06.08.2021,5105771656,990.00,Connect Cars Ltd
Manchester City Council,Childrens & Education Services,Transport Coach Hire,06.08.2021,5105771495,843.75,Brighter Future
Manchester City Council,Hospitality + Trading Services,Equipment,06.08.2021,5105758131,"2,562.20",Rigby Taylor Ltd
Manchester City Council,Adult Social Care,Equipment,06.08.2021,1907300245,799.99,health and Care (UK) Ltd
Manchester City Council,Childrens & Education Services,Furniture,06.08.2021,5105771792,781.29,Eps Supplies Ltd
Manchester City Council,Childrens & Education Services,Furniture,06.08.2021,5105771796,646.89,Eps Supplies Ltd
Manchester City Council,Adult Social Care,Building Materials for direct delivery,06.08.2021,5105771439,505.45,Screwfix Direct T/A Trade UK
Manchester City Council,Highways Services,Building Materials for direct delivery,06.08.2021,5105771640,873.65,TARMAC
Manchester City Council,Highways Services,Building Materials for direct delivery,06.08.2021,5105771543,858.08,TARMAC
Manchester City Council,Highways Services,Building Materials for direct delivery,06.08.2021,5105771633,726.60,TARMAC
Manchester City Council,Manchester Leisure,Payments to Sub-Contractors,06.08.2021,5105771588,"15,000.00",Arboricultural Services Treework
Manchester City Council,Manchester Leisure,Payments to Sub-Contractors,06.08.2021,5105771589,"-12,000.00",Arboricultural Services Treework
Manchester City Council,Manchester Leisure,Payments to Sub-Contractors,06.08.2021,5105771587,"-15,000.00",Arboricultural Services Treework
Manchester City Council,Chief Executives,Payments to Sub-Contractors,06.08.2021,5105771644,"3,739.60",Redacted Personal Information
Manchester City Council,Chief Executives,Payments to Sub-Contractors,06.08.2021,5105771594,760.27,Redacted Personal Information
Manchester City Council,Chief Executives,Payments to Sub-Contractors,06.08.2021,5105771550,526.30,Redacted Personal Information
Manchester City Council,Highways Services,Payments to Sub-Contractors,06.08.2021,5105771574,"21,382.28",Metronet UK
Manchester City Council,Highways Services,Payments to Sub-Contractors,06.08.2021,5105771572,"1,700.00",Metronet UK
Manchester City Council,Highways Services,Payments to Sub-Contractors,06.08.2021,5105771573,876.40,Metronet UK
Manchester City Council,Regeneration Finance,Training and Development,06.08.2021,5105771559,"1,069.81",Pearson Education Ltd
Manchester City Council,Regeneration Finance,Training and Development,06.08.2021,5105771462,584.35,Pearson Education Ltd
Manchester City Council,Chief Executives,Legal Fees,06.08.2021,5105771512,"6,533.33",Russell & Russell Solicitors LLP
Manchester City Council,Chief Executives,Legal Fees,06.08.2021,1907313122,"1,450.00",Trinity Chambers (Leeds)
Manchester City Council,Chief Executives,Legal Fees,06.08.2021,5105771499,"1,250.00",Russell & Russell Solicitors LLP
Manchester City Council,Chief Executives,Legal Fees,06.08.2021,5105771436,"1,244.56",Russell & Russell Solicitors LLP
Manchester City Council,Highways Services,Legal Fees,06.08.2021,1907315193,"6,181.50",Jefferies Solicitors
Manchester City Council,Highways Services,Legal Fees,06.08.2021,1907302027,"1,200.00",Redacted Personal Information
Manchester City Council,Highways Services,Legal Fees,06.08.2021,5105771526,775.00,Redacted Personal Information
Manchester City Council,Corporate Services,Professional fees,06.08.2021,5105770797,"1,894.41",ENGIE Services Ltd
Manchester City Council,Corporate Services,Professional fees,06.08.2021,5105771606,671.88,ENGIE Services Ltd
Manchester City Council,Manchester Leisure,Professional fees,06.08.2021,5105771446,"67,560.00",Wythenshawe Forum Trust Ltd
Manchester City Council,Manchester Leisure,Professional fees,06.08.2021,5105771565,"1,000.00",Redacted Personal Information
Manchester City Council,Manchester Leisure,Professional fees,06.08.2021,5105771450,500.00,Royal Flush Marketing Ltd
Manchester City Council,Childrens & Education Services,Professional fees,06.08.2021,5105771608,"3,494.00",AECOM Limited
Manchester City Council,Childrens & Education Services,Professional fees,06.08.2021,5105771525,"1,236.47",Warwickshire County Council
Manchester City Council,Childrens & Education Services,Professional fees,06.08.2021,5105771524,"1,139.28",Warwickshire County Council
Manchester City Council,Childrens & Education Services,Professional fees,06.08.2021,1907312407,906.25,Redacted Personal Information
Manchester City Council,Childrens & Education Services,Professional fees,06.08.2021,1907312790,875.00,Redacted Personal Information
Manchester City Council,Childrens & Education Services,Professional fees,06.08.2021,1907312792,600.00,Advanced Child Care Assessments
Manchester City Council,Childrens & Education Services,Professional fees,06.08.2021,5105771618,509.99,Choice Home Tutoring Ltd
Manchester City Council,Childrens & Education Services,Professional fees,06.08.2021,5105771607,"-3,494.00",AECOM Limited
Manchester City Council,Chief Executives,Professional fees,06.08.2021,5105771613,"3,825.00",Richard Elliott Consultancy
Manchester City Council,Chief Executives,Professional fees,06.08.2021,5105771614,"3,600.00",Richard Elliott Consultancy
Manchester City Council,Regeneration Finance,Professional fees,06.08.2021,5105771461,950.00,GVA Grimley Ltd
Manchester City Council,Highways Services,Professional fees,06.08.2021,5105771266,"10,450.00",Waterman Aspen Ltd
Manchester City Council,Highways Services,Professional fees,06.08.2021,5105771264,"9,881.25",Waterman Aspen Ltd
Manchester City Council,Highways Services,Professional fees,06.08.2021,5105771260,"8,320.50",Waterman Aspen Ltd
Manchester City Council,Highways Services,Professional fees,06.08.2021,5105771267,"8,320.00",Waterman Aspen Ltd
Manchester City Council,Highways Services,Professional fees,06.08.2021,5105771270,"8,085.00",Waterman Aspen Ltd
Manchester City Council,Highways Services,Professional fees,06.08.2021,5105771262,"8,058.24",Waterman Aspen Ltd
Manchester City Council,Highways Services,Professional fees,06.08.2021,5105771271,"7,968.00",Waterman Aspen Ltd
Manchester City Council,Highways Services,Professional fees,06.08.2021,5105771261,"7,740.00",Waterman Aspen Ltd
Manchester City Council,Highways Services,Professional fees,06.08.2021,5105771258,"7,392.00",Waterman Aspen Ltd
Manchester City Council,Highways Services,Professional fees,06.08.2021,5105771263,"5,060.00",Waterman Aspen Ltd
Manchester City Council,Highways Services,Professional fees,06.08.2021,5105771457,-572.00,Pell Frischmann Consultants Ltd
Manchester City Council,Leasing,Professional fees,06.08.2021,5105771529,750.00,Link Asset Services
Manchester City Council,GMIST (Greater Mcr Integrated),Professional fees,06.08.2021,5105771579,"3,700.00",Dept of Business Energy & Ind Strat
Manchester City Council,Chief Executives,Postage,06.08.2021,5105771475,"8,788.00",Whistl North Ltd
Manchester City Council,Chief Executives,Landline Telephone,06.08.2021,1907312405,"86,351.23",BT PLC
Manchester City Council,Chief Executives,Data Links,06.08.2021,5105771496,"2,833.34",The Loop t/a Gamma Telecom Ltd
Manchester City Council,Manchester Leisure,Grant and subscriptions awarded,06.08.2021,5105771602,"44,943.30",Manchester Young Lives
Manchester City Council,Manchester Leisure,Grant and subscriptions awarded,06.08.2021,5105771603,"16,586.00",Community on Solid Ground
Manchester City Council,Manchester Leisure,Grant and subscriptions awarded,06.08.2021,5105771465,"12,200.00",N-Gage Project
Manchester City Council,Manchester Leisure,Grant and subscriptions awarded,06.08.2021,5105771604,"7,036.00",Trinity House Community Resource Ce
Manchester City Council,Adult Social Care,Funeral and coroner related services,06.08.2021,5105771541,"1,440.00",Greater Manchester Funeral Service
Manchester City Council,Adult Social Care,Bed & Breakfast Acc,06.08.2021,5105771494,"15,138.00",Redacted Personal Information
Manchester City Council,Adult Social Care,Bed & Breakfast Acc,06.08.2021,5105771487,"12,025.00",Intra City Construction Group
Manchester City Council,Adult Social Care,Bed & Breakfast Acc,06.08.2021,5105771626,"4,410.00",Medlock House Ltd
Manchester City Council,Manchester Leisure,Goods purchased for resale in Council outlets,06.08.2021,5105771470,"20,000.00",Kit Grover Limited
Manchester City Council,Manchester Leisure,Goods purchased for resale in Council outlets,06.08.2021,5105771566,"5,250.00",Cornflower Ltd
Manchester City Council,Manchester Leisure,Goods purchased for resale in Council outlets,06.08.2021,5105771466,"1,221.00",Bag It Don't Bin It Ltd
Manchester City Council,Manchester Leisure,Goods purchased for resale in Council outlets,06.08.2021,5105771467,964.00,Katch Skinner
Manchester City Council,Manchester Leisure,Goods purchased for resale in Council outlets,06.08.2021,5105771468,580.63,Stone Marketing Ltd
Manchester City Council,Hospitality + Trading Services,Goods purchased for resale in Council outlets,06.08.2021,5105771583,"1,480.00",C.J. Imports Ltd
Manchester City Council,Manchester Leisure,Special Event,06.08.2021,5105771615,"56,000.00",Walk The Plank Ltd
Manchester City Council,Corporate Services,WPS Awards,06.08.2021,5105771664,567.36,Furniture Resource Centre Ltd
Manchester City Council,Childrens & Education Services,Third party payments to other Local Authorities,06.08.2021,5105771459,"2,243.43",Warrington Borough Council
Manchester City Council,Adult Social Care,Third party payments to Health Authority,06.08.2021,5105771483,"81,411.00",NHS Central Manchester CCG
Manchester City Council,Adult Social Care,Third party payments to Health Authority,06.08.2021,5105771453,"-30,000.00",Public Health England
Manchester City Council,Childrens & Education Services,Third party payments relating to Voluntary Organisations,06.08.2021,5105771561,"4,244.75",The Big Life Company
Manchester City Council,Childrens & Education Services,Third party payments relating to Voluntary Organisations,06.08.2021,5105771649,"1,583.33",Barnardo's North West
Manchester City Council,Adult Social Care,Third party payments relating to Voluntary Organisations,06.08.2021,5105771562,"29,166.66",Manchester Carers Centre
Manchester City Council,Adult Social Care,Third party payments relating to Voluntary Organisations,06.08.2021,5105771521,"6,469.08",Talbot House Support Centre
Manchester City Council,Childrens & Education Services,Payments for services,06.08.2021,5105771619,"20,475.00",Horizon Care & Education Group Ltd
Manchester City Council,Childrens & Education Services,Payments for services,06.08.2021,5105771655,"10,747.21",Enhance EHC Ltd
Manchester City Council,Childrens & Education Services,Payments for services,06.08.2021,5105771654,"6,767.25",Cedar House School
Manchester City Council,Childrens & Education Services,Payments for services,06.08.2021,5105771489,"5,241.92",Rossendale School Priory
Manchester City Council,Childrens & Education Services,Payments for services,06.08.2021,5105771488,"5,096.18",Rossendale School Priory
Manchester City Council,Childrens & Education Services,Payments for services,06.08.2021,5105771490,"2,154.96",Jump Space Ltd
Manchester City Council,Childrens & Education Services,Payments for services,06.08.2021,5105771667,848.90,Carers Trust 4All
Manchester City Council,Childrens & Education Services,Supporting People Payments,06.08.2021,5105771642,820.80,Westfield Minibuses
Manchester City Council,Adult Social Care,Supporting People Payments,06.08.2021,5105771456,"9,157.00",Your Housing Ltd.
Manchester City Council,Childrens & Education Services,Foster Payments,06.08.2021,5105771482,"2,800.00",Gligan Fitness Ltd
Manchester City Council,Childrens & Education Services,Day Care Payments,06.08.2021,5105771532,928.00,Tiddlywinks Day Nursery Ltd
Manchester City Council,Childrens & Education Services,Day Care Payments,06.08.2021,5105771531,650.00,Brighter Beginnings Day Nursery
Manchester City Council,Adult Social Care,Personal needs of client,06.08.2021,5105771519,"2,746.00",James Leckey Design Ltd
Manchester City Council,Corporate Services,LRSG Grant pay,06.08.2021,1907315196,"9,669.21",Redacted Personal Information
Manchester City Council,Corporate Services,LRSG Grant pay,06.08.2021,1907314184,"7,426.00",Richardson Sport
Manchester City Council,Corporate Services,LRSG Grant pay,06.08.2021,1907314184,"5,600.00",Richardson Sport
Manchester City Council,Corporate Services,LRSG Grant pay,06.08.2021,1907313194,"1,867.00",Around the Box
Manchester City Council,Corporate Services,LRSG Grant pay,06.08.2021,1907314875,"1,867.00",Hope Mill Recording Studio
Manchester City Council,Chief Executives,Works and associated costs for Land and Buildings,06.08.2021,5105771504,"12,000.00",Gardiner & Theobald LLP
Manchester City Council,Chief Executives,Works and associated costs for Land and Buildings,06.08.2021,5105771632,"5,270.00",BMS Software (Northern) Ltd
Manchester City Council,Chief Executives,Works and associated costs for Land and Buildings,06.08.2021,5105771616,"187,496.51",Galliford Try Construction
Manchester City Council,Corporate Services,Infrastructure Fees,06.08.2021,5105771646,"7,897.70",Environment Agency
Manchester City Council,Manchester Leisure,GRIR,09.08.2021,5105772003,"-3,212.00",BIGDUG Ltd
Manchester City Council,Adult Social Care,Agency staff provision,09.08.2021,5105771739,791.14,Vitality 24
Manchester City Council,Chief Executives,Agency staff provision,09.08.2021,5105771909,"28,040.67",Pertemps Professional Recruitment L
Manchester City Council,Regeneration Finance,Agency staff provision,09.08.2021,5105771840,"6,666.67",Odgers Berndtson
Manchester City Council,Regeneration Finance,Gas,09.08.2021,1907305537,"1,358.59",APAM Limited
Manchester City Council,Regeneration Finance,Gas,09.08.2021,1907305538,"1,281.84",APAM Limited
Manchester City Council,Childrens & Education Services,Rents,09.08.2021,5105771886,"1,802.83",Brighter Beginnings (Newton Heath)
Manchester City Council,Adult Social Care,Rents,09.08.2021,5105771903,"84,893.00",Accommodation Links Ltd
Manchester City Council,Regeneration Finance,Contract Cleaning External,09.08.2021,5105771452,"1,026.23",M & M Cleaning Services Ltd
Manchester City Council,Regeneration Finance,Sanitary/Medcal Wast,09.08.2021,5105771939,885.76,Initial Medical Services
Manchester City Council,Manchester Leisure,Storage Costs,09.08.2021,5105771857,"1,313.15",Data Space Limited
Manchester City Council,Regeneration Finance,Storage Costs,09.08.2021,5105771686,927.78,Data Space Limited
Manchester City Council,Regeneration Finance,Storage Costs,09.08.2021,5105771688,560.31,Data Space Limited
Manchester City Council,Manchester Leisure,Vehicle Fuel Costs,09.08.2021,5105771742,"1,146.54",Standard Fuels Oils
Manchester City Council,Hospitality + Trading Services,Vehicle Fuel Costs,09.08.2021,5105771720,"-1,146.54",Standard Fuels Oils
Manchester City Council,Hospitality + Trading Services,Vehicle Hire Costs,09.08.2021,5105771942,"6,170.00",Gibsons Garden Machinery Limited
Manchester City Council,Childrens & Education Services,Transport Coach Hire,09.08.2021,5105771727,"52,206.00",APTSL
Manchester City Council,Childrens & Education Services,Transport Coach Hire,09.08.2021,5105771725,"52,013.50",Communitytransportservices.co.uk
Manchester City Council,Manchester Leisure,Equipment,09.08.2021,5105771790,"12,132.00",MGB Plastics Limited
Manchester City Council,Adult Social Care,"Consumable items eg Toilet rolls, soap etc",09.08.2021,1907313529,918.80,Amazon Co.Uk
Manchester City Council,Adult Social Care,"Consumable items eg Toilet rolls, soap etc",09.08.2021,1700122601,-918.80,Amazon Co.Uk
Manchester City Council,Adult Social Care,Building Materials for direct delivery,09.08.2021,5105771936,"1,696.50",Sarabec Limited
Manchester City Council,Chief Executives,Payments to Sub-Contractors,09.08.2021,5105771680,"1,422.00",Redacted Personal Information
Manchester City Council,Chief Executives,Payments to Sub-Contractors,09.08.2021,5105771704,"1,297.07",Redacted Personal Information
Manchester City Council,Chief Executives,Payments to Sub-Contractors,09.08.2021,5105771699,870.97,Redacted Personal Information
Manchester City Council,Highways Services,Payments to Sub-Contractors,09.08.2021,5105771729,"19,169.69",Bt Redcare
Manchester City Council,Hospitality + Trading Services,Hire of Machinery,09.08.2021,5105771749,"1,452.03",R & M Developments Ltd
Manchester City Council,Hospitality + Trading Services,Hire of Machinery,09.08.2021,5105771750,"1,038.50",R & M Developments Ltd
Manchester City Council,Hospitality + Trading Services,Catering Provisions,09.08.2021,1907316069,"33,594.79",Ralph Livesey Ltd
Manchester City Council,Adult Social Care,Stationery,09.08.2021,5105772107,"1,254.24",Banner Group Limited
Manchester City Council,Adult Social Care,Stationery,09.08.2021,5105772203,673.38,Banner Group Limited
Manchester City Council,Chief Executives,Stationery,09.08.2021,5105771736,672.00,Glendale Presentation Solutions
Manchester City Council,Childrens & Education Services,Legal Fees,09.08.2021,5105771864,"2,456.79",Weightmans LLP Solicitors
Manchester City Council,Childrens & Education Services,Legal Fees,09.08.2021,5105771862,"2,325.99",Weightmans LLP Solicitors
Manchester City Council,Adult Social Care,Legal Fees,09.08.2021,1907286384,900.00,Redacted Personal Information
Manchester City Council,Chief Executives,Legal Fees,09.08.2021,5105771951,"2,162.50",11KBW
Manchester City Council,Highways Services,Legal Fees,09.08.2021,1907316041,"5,779.50",Recovery Assist Solicitors
Manchester City Council,Highways Services,Legal Fees,09.08.2021,1907308782,"4,500.00",Thompsons Solicitors
Manchester City Council,Highways Services,Legal Fees,09.08.2021,1907314879,"2,931.00",Easthams Solicitors Limited
Manchester City Council,Highways Services,Legal Fees,09.08.2021,1907308783,"2,357.00",Thompsons Solicitors
Manchester City Council,Regeneration Finance,Professional fees,09.08.2021,5105771717,"2,628.00",Pax Energy
Manchester City Council,Regeneration Finance,Professional fees,09.08.2021,5105771808,"1,551.00",P Mcguinness & Co Ltd
Manchester City Council,Regeneration Finance,Professional fees,09.08.2021,5105771809,726.20,Alan Franklin Builders Limited
Manchester City Council,Highways Services,Professional fees,09.08.2021,5105771869,"7,186.27",Canal & River Trust
Manchester City Council,Childrens & Education Services,Signers/Interpreters,09.08.2021,5105771868,"1,976.80",Language Line Ltd
Manchester City Council,Manchester Leisure,Professional fees,09.08.2021,5105771885,"11,111.50",Read - The Reading Agency
Manchester City Council,Manchester Leisure,Professional fees,09.08.2021,5105771881,"1,800.00",Sephton & Company LLP
Manchester City Council,Childrens & Education Services,Professional fees,09.08.2021,1907301851,"2,846.55",Target Psychology Ltd
Manchester City Council,Childrens & Education Services,Professional fees,09.08.2021,1907301553,"2,393.95",Target Psychology Ltd
Manchester City Council,Childrens & Education Services,Professional fees,09.08.2021,1907312875,"1,952.65",Advanced Child Care Assessments
Manchester City Council,Childrens & Education Services,Professional fees,09.08.2021,1907314911,"1,875.00",Redacted Personal Information
Manchester City Council,Childrens & Education Services,Professional fees,09.08.2021,1907315188,"1,234.49",Education and Psychology Services
Manchester City Council,Childrens & Education Services,Professional fees,09.08.2021,5105771751,773.00,Abbott Toxicology Ltd
Manchester City Council,Childrens & Education Services,Professional fees,09.08.2021,1907302029,500.00,Pearson Solicitors And Financial Ad
Manchester City Council,Housing Revenue Account,Professional fees,09.08.2021,5105771904,"10,794.25",Northwards Housing Limited
Manchester City Council,Chief Executives,Professional fees,09.08.2021,5105771530,"2,000.00",Friends of Herristone Park
Manchester City Council,Regeneration Finance,Professional fees,09.08.2021,1907313121,500.00,Redacted Personal Information
Manchester City Council,Chief Executives,Postage,09.08.2021,5105771730,"29,516.02",Royal Mail Group Plc
Manchester City Council,Chief Executives,I T Provision,09.08.2021,5105771735,"8,800.00",T.I.S. Limited
Manchester City Council,Insurance Fund,Bal of Rsk InsPrem,09.08.2021,1907312791,"1,000.00",Manley Park Primary School
Manchester City Council,Regeneration Finance,Subsistence and Conference Expenses,09.08.2021,5105771789,"2,242.80",Pearson Education Ltd
Manchester City Council,Regeneration Finance,Subsistence and Conference Expenses,09.08.2021,5105771788,627.45,Pearson Education Ltd
Manchester City Council,Manchester Leisure,Grant and subscriptions awarded,09.08.2021,5105771822,"80,000.00",Wythenshawe Community Housing Group
Manchester City Council,Manchester Leisure,Grant and subscriptions awarded,09.08.2021,5105771605,"7,200.00",Old Moat Youth Outreach Project
Manchester City Council,Manchester Leisure,Grant and subscriptions awarded,09.08.2021,5105771681,"3,000.00",Greater Manchester Pakistani Assoc
Manchester City Council,Manchester Leisure,Grant and subscriptions awarded,09.08.2021,5105771811,760.00,Peel Estate Home Watch Group
Manchester City Council,Adult Social Care,Grant and subscriptions awarded,09.08.2021,5105771760,"95,928.00",SSG Sustainable Living
Manchester City Council,Adult Social Care,Grant and subscriptions awarded,09.08.2021,5105771702,"6,039.34",Manchester Mind
Manchester City Council,Chief Executives,Grant and subscriptions awarded,09.08.2021,5105771447,"4,736.00",M13 Youth Project
Manchester City Council,Chief Executives,Advertising,09.08.2021,5105771944,995.00,Redactive Publishing Limited
Manchester City Council,Chief Executives,Advertising,09.08.2021,5105771945,995.00,Redactive Publishing Limited
Manchester City Council,Adult Social Care,Funeral and coroner related services,09.08.2021,5105771905,"1,378.00",Greater Manchester Funeral Service
Manchester City Council,Childrens & Education Services,Third party payments to other Local Authorities,09.08.2021,5105771718,"11,919.00",The Orchards School
Manchester City Council,Childrens & Education Services,Third party payments to other Local Authorities,09.08.2021,5105771737,"3,470.61",New Bridge School
Manchester City Council,Adult Social Care,Third party payments to Health Authority,09.08.2021,1907312870,"1,188.00",Guy's and St Thomas' NHS FT
Manchester City Council,Adult Social Care,Third party payments to Health Authority,09.08.2021,1907313128,"1,179.00",Virgin Care Servs Ltd
Manchester City Council,Adult Social Care,Third party payments relating to Voluntary Organisations,09.08.2021,5105771687,"20,624.00",Stepping Stone Projects
Manchester City Council,Adult Social Care,Third party payments relating to Voluntary Organisations,09.08.2021,5105771759,"9,194.64",SSG Sustainable Living
Manchester City Council,Adult Social Care,Third party payments relating to Voluntary Organisations,09.08.2021,5105771758,"4,597.50",SSG Sustainable Living
Manchester City Council,Adult Social Care,Third party payments relating to Voluntary Organisations,09.08.2021,5105771818,"1,860.00",Reach out to the Community
Manchester City Council,Adult Social Care,Third party payments relating to Voluntary Organisations,09.08.2021,5105771831,"1,800.00",Reach out to the Community
Manchester City Council,Adult Social Care,Third party payments relating to Voluntary Organisations,09.08.2021,5105771685,"-20,624.00",Stepping Stone Projects
Manchester City Council,Chief Executives,Third party payments relating to Voluntary Organisations,09.08.2021,5105771556,"84,245.25",The Bridgewater Hall
Manchester City Council,Chief Executives,Third party payments relating to Voluntary Organisations,09.08.2021,5105771657,"84,245.25",The Bridgewater Hall
Manchester City Council,Childrens & Education Services,Payments for services,09.08.2021,5105771835,"50,598.70",Teenage Works
Manchester City Council,Childrens & Education Services,Payments for services,09.08.2021,5105771675,"6,767.25",Cedar House School
Manchester City Council,Childrens & Education Services,Payments for services,09.08.2021,5105771884,"6,630.00",MFYP Limited
Manchester City Council,Childrens & Education Services,Payments for services,09.08.2021,5105771833,"4,518.18",Chaigeley Education Foundation
Manchester City Council,Childrens & Education Services,Payments for services,09.08.2021,5105771676,"2,698.92",Redacted Personal Information
Manchester City Council,Childrens & Education Services,Payments for services,09.08.2021,5105771723,"1,880.00",Citywall
Manchester City Council,Childrens & Education Services,Payments for services,09.08.2021,1907309357,"1,349.00",Redacted Personal Information
Manchester City Council,Childrens & Education Services,Payments for services,09.08.2021,5105771893,"1,247.52",Reed Employment Plc
Manchester City Council,Childrens & Education Services,Payments for services,09.08.2021,5105771744,"1,170.25",Seashell trust
Manchester City Council,Childrens & Education Services,Payments for services,09.08.2021,5105771896,727.72,Reed Employment Plc
Manchester City Council,Childrens & Education Services,Payments for services,09.08.2021,5105771912,623.76,Reed Employment Plc
Manchester City Council,Childrens & Education Services,Payments for services,09.08.2021,5105771919,623.76,Reed Employment Plc
Manchester City Council,Childrens & Education Services,Payments for services,09.08.2021,5105771891,519.80,Reed Employment Plc
Manchester City Council,Adult Social Care,Payments for services,09.08.2021,5105771889,"38,244.23",Creative Support Ltd
Manchester City Council,Adult Social Care,Payments for services,09.08.2021,5105771684,"28,275.00",Morelife (UK) Ltd
Manchester City Council,Adult Social Care,Payments for services,09.08.2021,5105771682,"13,327.00",Morelife (UK) Ltd
Manchester City Council,Childrens & Education Services,Supported Accommodation,09.08.2021,5105771865,556.50,Redacted Personal Information
Manchester City Council,Childrens & Education Services,Personal needs of client,09.08.2021,5105771938,"1,291.92",Connevans Ltd
Manchester City Council,Housing Revenue Account,Council Dwelling Adaptations,09.08.2021,5105771711,"144,495.24",Fieldway Supplies Ltd
Manchester City Council,Housing Revenue Account,Council Dwelling Adaptations,09.08.2021,5105771332,"63,062.41",A Connolly Limited
Manchester City Council,Housing Revenue Account,Council Dwelling Adaptations,09.08.2021,5105771712,"48,293.05",B.A.A.S. Construction Ltd
Manchester City Council,Housing Revenue Account,Council Dwelling Adaptations,09.08.2021,5105771820,"6,137.00",Stannah Lift Services Ltd
Manchester City Council,Housing Revenue Account,Council Dwelling Adaptations,09.08.2021,5105771746,"2,876.04",Rexel UK Ltd
Manchester City Council,Housing Revenue Account,Council Dwelling Adaptations,09.08.2021,5105771747,"1,658.31",Magnet Contract Kitchen Solutions
Manchester City Council,Housing Revenue Account,Council Dwelling Adaptations,09.08.2021,5105771652,"-82,006.20",A Connolly Limited
Manchester City Council,Housing Revenue Account,Works and associated costs for Land and Buildings,09.08.2021,5105771578,"20,149.50",Faithful & Gould Ltd
Manchester City Council,Housing Revenue Account,Works and associated costs for Land and Buildings,09.08.2021,5105771576,"11,358.00",Faithful & Gould Ltd
Manchester City Council,Housing Revenue Account,Works and associated costs for Land and Buildings,09.08.2021,5105771577,759.00,Faithful & Gould Ltd
Manchester City Council,Corporate Services,Works and associated costs for Land and Buildings,09.08.2021,5105771165,"227,215.34",Morgan Sindall C & I Ltd
Manchester City Council,Corporate Services,Works and associated costs for Land and Buildings,09.08.2021,5105771165,"76,905.20",Morgan Sindall C & I Ltd
Manchester City Council,Childrens Services,Works and associated costs for Land and Buildings,09.08.2021,5105771741,"103,447.13",J Greenwood (Builders) Limited
Manchester City Council,Corporate Services,Works and associated costs for Land and Buildings,09.08.2021,5105771854,"121,567.20",Warden Construction Ltd
Manchester City Council,Environment and Operations,Construction Works,09.08.2021,5105771683,"13,139.47",Balfour Beatty Living Places Ltd
Manchester City Council,Environment and Operations,Construction Works,09.08.2021,5105771672,"8,392.23",GMCA
Manchester City Council,Environment and Operations,Construction Works,09.08.2021,5105771673,"-8,392.23",GMCA
Manchester City Council,Manchester Leisure,Agency staff provision,10.08.2021,5105772032,"39,820.00",Ethnic Health Forum
Manchester City Council,Chief Executives,Agency staff provision,10.08.2021,5105771989,"1,944.00",Ashberry Recruitment Ltd
Manchester City Council,Chief Executives,Agency staff provision,10.08.2021,5105772061,"1,944.00",Ashberry Recruitment Ltd
Manchester City Council,Libraries and Theatres,Training and Development,10.08.2021,5105771977,850.00,Ace Safety Academy Limited
Manchester City Council,Adult Social Care,Training and Development,10.08.2021,5105771981,"27,066.02",Greater Manchester Mental Health
Manchester City Council,Manchester Leisure,External repairs and maintenance for buildings,10.08.2021,5105771716,"1,707.05",Ashlea Ltd
Manchester City Council,Adult Social Care,External repairs and maintenance for buildings,10.08.2021,5105772205,"3,623.80",UPS Building & Maintenance Ltd
Manchester City Council,Adult Social Care,External repairs and maintenance for buildings,10.08.2021,5105772047,576.00,Pollock Lifts Ltd
Manchester City Council,Adult Social Care,External repairs and maintenance for buildings,10.08.2021,5105772204,"-3,623.80",UPS Building & Maintenance Ltd
Manchester City Council,Regeneration Finance,External repairs and maintenance for buildings,10.08.2021,5105771887,924.00,Cheshire Scaffolds Ltd
Manchester City Council,Adult Social Care,Rents,10.08.2021,5105772271,"135,206.87",District Homes Cic
Manchester City Council,Adult Social Care,Rents,10.08.2021,5105772177,"4,359.01",Housing Social Ltd
Manchester City Council,Regeneration Finance,Rents,10.08.2021,5105771982,"3,122.71",Manchester Health Academy
Manchester City Council,Regeneration Finance,Contract Cleaning External,10.08.2021,5105771967,"7,786.00",Westgrove Support Services Ltd
Manchester City Council,Adult Social Care,Refuse Collection,10.08.2021,5105772077,"5,918.33",Initial Medical Services
Manchester City Council,Regeneration Finance,Cleaning Equipment and Materials,10.08.2021,5105772136,701.41,Alliance Disposables Ltd
Manchester City Council,Adult Social Care,Security,10.08.2021,5105772039,"4,284.00",UNIQUE SPECIALIST SERVICES
Manchester City Council,Adult Social Care,Security,10.08.2021,5105772139,"4,284.00",UNIQUE SPECIALIST SERVICES
Manchester City Council,Corporate Services,Security,10.08.2021,5105772266,"-4,612.37",Siemans Mobility Limited
Manchester City Council,Corporate Services,Storage Costs,10.08.2021,5105772074,557.52,Apex Self Storage Ltd
Manchester City Council,Childrens & Education Services,Transport Coach Hire,10.08.2021,5105772550,"28,681.10",Mantax Radio Taxis Ltd
Manchester City Council,Childrens & Education Services,Transport Coach Hire,10.08.2021,5105772046,"4,129.50",Redacted Personal Information
Manchester City Council,Childrens & Education Services,Transport Coach Hire,10.08.2021,5105772019,"3,150.00",D.J. Minibus Travel
Manchester City Council,Corporate Services,Travel Season TLS,10.08.2021,5105771952,570.00,Stagecoach Manchester
Manchester City Council,Corporate Services,Travel Season TLS,10.08.2021,5105771954,570.00,Stagecoach Manchester
Manchester City Council,Corporate Services,Travel Season TLS,10.08.2021,5105771955,570.00,Stagecoach Manchester
Manchester City Council,Corporate Services,Travel Season TLS,10.08.2021,5105771958,570.00,Stagecoach Manchester
Manchester City Council,Corporate Services,Travel Season TLS,10.08.2021,5105771960,570.00,Stagecoach Manchester
Manchester City Council,Adult Social Care,Equipment,10.08.2021,5105772113,"3,000.00",NRS Healthcare
Manchester City Council,Adult Social Care,Equipment,10.08.2021,5105771965,"1,150.00",Aidapt Bathrooms Ltd
Manchester City Council,Adult Social Care,Equipment,10.08.2021,5105772255,595.20,Invacare Limited
Manchester City Council,Adult Social Care,Furniture,10.08.2021,5105772213,524.00,Furniture Resource Centre Ltd
Manchester City Council,Regeneration Finance,Furniture,10.08.2021,5105772243,"1,224.97",Data Space Limited
Manchester City Council,Highways Services,Building Materials for direct delivery,10.08.2021,5105772302,859.81,TARMAC
Manchester City Council,Highways Services,Building Materials for direct delivery,10.08.2021,5105772240,778.50,TARMAC
Manchester City Council,Highways Services,Building Materials for direct delivery,10.08.2021,5105772281,773.31,TARMAC
Manchester City Council,Highways Services,Building Materials for direct delivery,10.08.2021,5105772277,612.42,TARMAC
Manchester City Council,Manchester Leisure,Payments to Sub-Contractors,10.08.2021,5105772013,745.00,Groundwork Landscapes Ltd
Manchester City Council,Chief Executives,Payments to Sub-Contractors,10.08.2021,5105771927,"2,120.01",Redacted Personal Information
Manchester City Council,Chief Executives,Payments to Sub-Contractors,10.08.2021,5105772023,"1,139.86",Redacted Personal Information
Manchester City Council,Chief Executives,Payments to Sub-Contractors,10.08.2021,5105772236,708.64,Redacted Personal Information
Manchester City Council,Chief Executives,Payments to Sub-Contractors,10.08.2021,5105772027,619.70,Redacted Personal Information
Manchester City Council,Chief Executives,Payments to Sub-Contractors,10.08.2021,5105771928,575.28,Redacted Personal Information
Manchester City Council,Highways Services,Payments to Sub-Contractors,10.08.2021,5105772197,"66,978.19",Rosgal Ltd
Manchester City Council,Highways Services,Payments to Sub-Contractors,10.08.2021,5105771975,"30,211.36",Rosgal Ltd
Manchester City Council,Highways Services,Payments to Sub-Contractors,10.08.2021,5105772114,"16,442.95",Rosgal Ltd
Manchester City Council,Highways Services,Payments to Sub-Contractors,10.08.2021,5105771976,"14,125.17",Rosgal Ltd
Manchester City Council,Highways Services,Payments to Sub-Contractors,10.08.2021,5105772052,"8,939.83",Rosgal Ltd
Manchester City Council,Highways Services,Payments to Sub-Contractors,10.08.2021,5105772115,"8,856.25",Rosgal Ltd
Manchester City Council,Highways Services,Payments to Sub-Contractors,10.08.2021,5105772048,"6,835.45",Rosgal Ltd
Manchester City Council,Highways Services,Payments to Sub-Contractors,10.08.2021,5105771974,"6,100.31",Rosgal Ltd
Manchester City Council,Highways Services,Payments to Sub-Contractors,10.08.2021,5105772041,"6,076.08",Rosgal Ltd
Manchester City Council,Highways Services,Payments to Sub-Contractors,10.08.2021,5105772054,"5,696.07",Rosgal Ltd
Manchester City Council,Highways Services,Payments to Sub-Contractors,10.08.2021,5105772043,"5,676.83",Rosgal Ltd
Manchester City Council,Highways Services,Payments to Sub-Contractors,10.08.2021,5105772049,"5,606.18",Rosgal Ltd
Manchester City Council,Highways Services,Payments to Sub-Contractors,10.08.2021,5105772116,"3,234.68",Rosgal Ltd
Manchester City Council,Hospitality + Trading Services,Hire of Machinery,10.08.2021,5105772534,"2,486.00",H & C Plant Hire Ltd
Manchester City Council,Hospitality + Trading Services,Hire of Equipment,10.08.2021,5105772536,"8,730.65",Fast Hire UK
Manchester City Council,Hospitality + Trading Services,Machinery and equipment repairs,10.08.2021,5105772535,738.11,Fast Hire UK
Manchester City Council,Manchester Leisure,ClothsUniformLaundry,10.08.2021,5105771987,"1,675.00",Groundwork Landscapes Ltd
Manchester City Council,Regeneration Finance,Training and Development,10.08.2021,5105772218,"1,510.32",Pearson Education Ltd
Manchester City Council,Chief Executives,Printing,10.08.2021,5105771984,"3,035.00",Browns CTP Ltd
Manchester City Council,Chief Executives,Printing,10.08.2021,5105772297,"1,300.10",Psycho Peacock Limited
Manchester City Council,Adult Social Care,Stationery,10.08.2021,5105772465,"2,292.00",Banner Group Limited
Manchester City Council,Regeneration Finance,Stationery,10.08.2021,5105772498,818.50,Banner Group Limited
Manchester City Council,Childrens & Education Services,Legal Fees,10.08.2021,5105772275,562.50,Weightmans LLP Solicitors
Manchester City Council,Chief Executives,Legal Fees,10.08.2021,5105772284,"3,465.25",Weightmans LLP Solicitors
Manchester City Council,Chief Executives,Legal Fees,10.08.2021,5105772371,"3,112.50",Weightmans LLP Solicitors
Manchester City Council,Chief Executives,Legal Fees,10.08.2021,5105772257,"2,926.85",Weightmans LLP Solicitors
Manchester City Council,Chief Executives,Legal Fees,10.08.2021,5105772289,"2,281.25",Weightmans LLP Solicitors
Manchester City Council,Chief Executives,Legal Fees,10.08.2021,5105772287,"1,318.50",Weightmans LLP Solicitors
Manchester City Council,Chief Executives,Legal Fees,10.08.2021,1907309286,800.00,Trinity Chambers
Manchester City Council,Chief Executives,Legal Fees,10.08.2021,1907315150,583.33,Redacted Personal Information
Manchester City Council,Chief Executives,Legal Fees,10.08.2021,5105772014,575.00,Landmark Information Group Ltd
Manchester City Council,Regeneration Finance,Professional fees,10.08.2021,5105772313,"1,405.00",Stellar Network Solutions Ltd
Manchester City Council,Manchester Leisure,Professional fees,10.08.2021,5105772539,"5,808.38",Community Security (North West)
Manchester City Council,Manchester Leisure,Professional fees,10.08.2021,5105772546,"4,044.00",Community Security (North West)
Manchester City Council,Manchester Leisure,Professional fees,10.08.2021,5105772540,"3,981.50",Community Security (North West)
Manchester City Council,Manchester Leisure,Professional fees,10.08.2021,5105772538,"3,620.98",Community Security (North West)
Manchester City Council,Manchester Leisure,Professional fees,10.08.2021,5105772543,"3,620.98",Community Security (North West)
Manchester City Council,Manchester Leisure,Professional fees,10.08.2021,5105772035,"3,562.50",Enventure Research Ltd
Manchester City Council,Manchester Leisure,Professional fees,10.08.2021,5105772545,"3,151.50",Community Security (North West)
Manchester City Council,Childrens & Education Services,Professional fees,10.08.2021,1907315997,550.00,Central Chambers
Manchester City Council,Adult Social Care,Professional fees,10.08.2021,5105771988,710.00,Bennett Workplace Solutions Ltd
Manchester City Council,GMIST (Greater Mcr Integrated),Professional fees,10.08.2021,5105772037,"3,433.59",DeepStore
Manchester City Council,GMIST (Greater Mcr Integrated),Professional fees,10.08.2021,5105772031,580.07,DeepStore
Manchester City Council,Chief Executives,Funeral and coroner related services,10.08.2021,1907315984,"1,100.00",Redacted Personal Information
Manchester City Council,Chief Executives,Postage,10.08.2021,5105771963,"1,087.43",Whistl North Ltd
Manchester City Council,Manchester Leisure,Mobilephone Charges,10.08.2021,5105772012,"5,066.59",Vodafone Corporate
Manchester City Council,Regeneration Finance,I T Provision,10.08.2021,5105771906,900.00,Concerto Support Services
Manchester City Council,Corporate Services,I T Provision,10.08.2021,5105772267,"4,612.37",Siemans Mobility Limited
Manchester City Council,Adult Social Care,Grant and subscriptions awarded,10.08.2021,5105771979,"3,000.00",Street Support Network Ltd
Manchester City Council,Regeneration Finance,Grant and subscriptions awarded,10.08.2021,5105772356,"7,500.00",Barlow Moor Community Association
Manchester City Council,Chief Executives,Advertising,10.08.2021,5105772208,"6,448.87",Reach Publishing Services Ltd
Manchester City Council,Chief Executives,Advertising,10.08.2021,5105772210,"2,247.92",Reach Publishing Services Ltd
Manchester City Council,Chief Executives,Examination Fees,10.08.2021,5105772333,"3,643.25",ROAR Forensics Ltd
Manchester City Council,Chief Executives,Examination Fees,10.08.2021,5105772335,940.50,ROAR Forensics Ltd
Manchester City Council,Chief Executives,Examination Fees,10.08.2021,5105772268,764.75,ROAR Forensics Ltd
Manchester City Council,Childrens & Education Services,Licences Purchase,10.08.2021,5105772111,634.78,Insight Direct (Uk) Ltd
Manchester City Council,Adult Social Care,Bed & Breakfast Acc,10.08.2021,5105772258,"15,146.00",Redacted Personal Information
Manchester City Council,Highways Services,Purchase of stores for re-distribution,10.08.2021,5105772260,"1,100.28",CID 'Consider it Done'
Manchester City Council,Highways Services,Purchase of stores for re-distribution,10.08.2021,5105771953,702.62,CID 'Consider it Done'
Manchester City Council,Childrens & Education Services,Third party payments to other Local Authorities,10.08.2021,5105772062,"1,485.00",Cygnet (NW) Ltd
Manchester City Council,Childrens & Education Services,Third party payments to other Local Authorities,10.08.2021,5105772173,"1,380.00",Pennine Care In Patient Services
Manchester City Council,Adult Social Care,Third party payments to Health Authority,10.08.2021,5105771956,"10,345.54",SH:24 CIC
Manchester City Council,Childrens & Education Services,Third party payments relating to Voluntary Organisations,10.08.2021,5105772051,"2,598.75",The Big Life Company
Manchester City Council,Childrens & Education Services,Third party payments relating to Voluntary Organisations,10.08.2021,5105772053,"2,598.75",The Big Life Company
Manchester City Council,Adult Social Care,Third party payments relating to Voluntary Organisations,10.08.2021,5105772303,"16,112.00",On The Out CIC
Manchester City Council,Adult Social Care,Third party payments relating to Voluntary Organisations,10.08.2021,5105771825,"14,485.42",Breakthrough Uk Ltd
Manchester City Council,Adult Social Care,Third party payments relating to Voluntary Organisations,10.08.2021,5105771825,"3,888.94",Breakthrough Uk Ltd
Manchester City Council,Chief Executives,Third party payments relating to Voluntary Organisations,10.08.2021,5105771752,"13,448.75",Civica UK Ltd
Manchester City Council,Regeneration Finance,Third party payments relating to Voluntary Organisations,10.08.2021,5105772304,"88,132.00",Citizens Advice Manchester
Manchester City Council,Regeneration Finance,Third party payments relating to Voluntary Organisations,10.08.2021,5105772305,"34,000.00",Citizens Advice Manchester
Manchester City Council,Childrens & Education Services,Payments for services,10.08.2021,5105772217,"2,157.53",Teenage Works
Manchester City Council,Childrens & Education Services,Payments for services,10.08.2021,5105772192,"2,099.48",Fairfield Care Ltd
Manchester City Council,Childrens & Education Services,Payments for services,10.08.2021,5105772191,"1,403.56",Fairfield Care Ltd
Manchester City Council,Childrens & Education Services,Payments for services,10.08.2021,5105772193,"1,336.82",Fairfield Care Ltd
Manchester City Council,Childrens & Education Services,Payments for services,10.08.2021,5105772180,"1,262.57",Fairfield Care Ltd
Manchester City Council,Childrens & Education Services,Payments for services,10.08.2021,5105772172,956.36,DHP Care Limited
Manchester City Council,Childrens & Education Services,Payments for services,10.08.2021,5105772331,750.00,Teaching Personnel Ltd
Manchester City Council,Childrens & Education Services,Payments for services,10.08.2021,5105772334,750.00,Teaching Personnel Ltd
Manchester City Council,Childrens & Education Services,Payments for services,10.08.2021,5105772296,737.45,DHP Care Limited
Manchester City Council,Childrens & Education Services,Payments for services,10.08.2021,5105772196,668.52,DHP Care Limited
Manchester City Council,Adult Social Care,Supporting People Payments,10.08.2021,5105771764,"25,421.49",Manchester Womens Aid
Manchester City Council,Adult Social Care,Supporting People Payments,10.08.2021,5105771765,"25,421.41",Manchester Womens Aid
Manchester City Council,Adult Social Care,Supporting People Payments,10.08.2021,5105771766,"25,421.41",Manchester Womens Aid
Manchester City Council,Adult Social Care,Supporting People Payments,10.08.2021,5105771761,"14,284.87",Manchester Womens Aid
Manchester City Council,Adult Social Care,Supporting People Payments,10.08.2021,5105771762,"14,284.83",Manchester Womens Aid
Manchester City Council,Adult Social Care,Supporting People Payments,10.08.2021,5105771763,"14,284.83",Manchester Womens Aid
Manchester City Council,Adult Social Care,Supporting People Payments,10.08.2021,5105772094,"1,500.00",The Edward Mayes Trust
Manchester City Council,Adult Social Care,Personal needs of client,10.08.2021,5105772343,682.38,Prism Medical UK Carefree Division
Manchester City Council,Corporate Services,Works and associated costs for Land and Buildings,10.08.2021,5105772017,"1,300.00",CSG Acoustics Ltd
Manchester City Council,Corporate Services,Works and associated costs for Land and Buildings,10.08.2021,5105772017,"1,100.00",CSG Acoustics Ltd
Manchester City Council,Housing General Fund,Works and associated costs for Land and Buildings,10.08.2021,5105772045,"1,275.00",Aubrey Lee & Co
Manchester City Council,Chief Executives,Works and associated costs for Land and Buildings,10.08.2021,5105772561,"59,447.00",Office for Metropolitan Architectur
Manchester City Council,Housing General Fund,Works and associated costs for Land and Buildings,10.08.2021,5105771830,"5,774.69",Idverde Limited
Manchester City Council,Housing General Fund,Works and associated costs for Land and Buildings,10.08.2021,5105771827,"3,734.24",Idverde Limited
Manchester City Council,Housing General Fund,Works and associated costs for Land and Buildings,10.08.2021,5105771829,"3,564.37",Idverde Limited
Manchester City Council,Housing General Fund,Works and associated costs for Land and Buildings,10.08.2021,5105771826,"2,795.93",Idverde Limited
Manchester City Council,Manchester Leisure,Works and associated costs for Land and Buildings,10.08.2021,5105772251,"31,917.91",Seddon Construction Ltd
Manchester City Council,Corporate Services,Works and associated costs for Land and Buildings,10.08.2021,5105772044,967.20,Groundwork & Leisure Services Ltd
Manchester City Council,Corporate Services,Works and associated costs for Land and Buildings,10.08.2021,5105772350,-967.20,Groundwork & Leisure Services Ltd
Manchester City Council,Chief Executives,Works and associated costs for Land and Buildings,10.08.2021,5105772068,"1,696.26",BCL
Manchester City Council,Environment and Operations,Construction Works,10.08.2021,5105771850,"489,004.41",Balfour Beatty Living Places Ltd
Manchester City Council,Environment and Operations,Construction Works,10.08.2021,5105771861,"187,276.40",Balfour Beatty Living Places Ltd
Manchester City Council,Chief Executives,Agency staff provision,11.08.2021,5105772555,"20,944.00",Penna PLC
Manchester City Council,Chief Executives,Agency staff provision,11.08.2021,5105772568,"14,161.00",Penna PLC
Manchester City Council,Chief Executives,Agency staff provision,11.08.2021,5105772926,"4,484.83",Hays Personnel
Manchester City Council,Chief Executives,Agency staff provision,11.08.2021,5105772927,"1,920.00",Ricoh UK Ltd.
Manchester City Council,Manchester Leisure,Training and Development,11.08.2021,5105772706,"1,025.00",CSPT Ltd t/a Community Safety
Manchester City Council,Adult Social Care,Training and Development,11.08.2021,5105772591,"1,375.00",The Knowledge Academy Limited
Manchester City Council,Chief Executives,Training and Development,11.08.2021,5105772420,"4,860.00",Purple Infusion Ltd
Manchester City Council,Regeneration Finance,Preventative Maintenance Work,11.08.2021,5105772597,"206,781.07",ENGIE Services Ltd
Manchester City Council,Adult Social Care,Rents,11.08.2021,5105772460,"170,709.58",Mack Residential Letting Ltd
Manchester City Council,Adult Social Care,Rents,11.08.2021,5105772453,"127,406.05",T15 Consultancy Ltd
Manchester City Council,Adult Social Care,Rents,11.08.2021,5105772437,"85,895.57",Accommodation Links Ltd
Manchester City Council,Adult Social Care,Rents,11.08.2021,5105772457,"28,356.32",Amco Management
Manchester City Council,Manchester Leisure,Contract Cleaning External,11.08.2021,5105772408,659.25,GTS Steam Cleaners
Manchester City Council,Manchester Leisure,Refuse Collection,11.08.2021,5105772687,"2,928.00",Dickinson Environmental
Manchester City Council,Hospitality + Trading Services,Refuse Collection,11.08.2021,5105772385,"19,884.00",Biffa Municipal Limited
Manchester City Council,Regeneration Finance,Refuse Collection,11.08.2021,5105772384,"42,192.80",Biffa Municipal Limited
Manchester City Council,Adult Social Care,Security,11.08.2021,5105772425,"4,284.00",UNIQUE SPECIALIST SERVICES
Manchester City Council,Adult Social Care,Security,11.08.2021,5105772427,"3,213.00",UNIQUE SPECIALIST SERVICES
Manchester City Council,Adult Social Care,Security,11.08.2021,5105772432,"1,071.00",UNIQUE SPECIALIST SERVICES
Manchester City Council,Regeneration Finance,Grounds Maintenance,11.08.2021,5105772144,600.00,Arboricultural Services Treework
Manchester City Council,Manchester Leisure,Vehicle Fuel Costs,11.08.2021,5105772611,"-1,182.40",Standard Fuels Oils
Manchester City Council,Hospitality + Trading Services,Vehicle Repairs,11.08.2021,5105772725,"2,790.50",Advanced Vehicle Technicians Ltd
Manchester City Council,Childrens & Education Services,Transport Coach Hire,11.08.2021,5105772577,"3,982.16",Redacted Personal Information
Manchester City Council,Adult Social Care,Equipment,11.08.2021,5105772709,"1,039.55",BES Rehab
Manchester City Council,Corporate Services,Equipment,11.08.2021,5105772609,944.99,Back Care Solutions Ltd
Manchester City Council,Chief Executives,Equipment,11.08.2021,5105772459,785.60,Bennett Workplace Solutions Ltd
Manchester City Council,Highways Services,Equipment,11.08.2021,5105771892,"1,348.52",Amey Highways Lighting (Manchester)
Manchester City Council,Highways Services,Equipment,11.08.2021,5105772221,502.46,Amey Highways Lighting (Manchester)
Manchester City Council,Adult Social Care,Furniture,11.08.2021,5105772549,570.97,Furniture Resource Centre Ltd
Manchester City Council,Adult Social Care,"Consumable items eg Toilet rolls, soap etc",11.08.2021,5105772397,697.50,All 4 Pets Limited
Manchester City Council,Manchester Leisure,Payments to Sub-Contractors,11.08.2021,5105772381,"6,015.00",Arboricultural Services Treework
Manchester City Council,Manchester Leisure,Payments to Sub-Contractors,11.08.2021,5105772405,"5,494.50",RoSPA Playsafety
Manchester City Council,Manchester Leisure,Payments to Sub-Contractors,11.08.2021,5105772930,"2,737.50",Clean-Up UK Limited
Manchester City Council,Manchester Leisure,Payments to Sub-Contractors,11.08.2021,5105772551,"2,400.00",Greater M/cr Tree Station Limited
Manchester City Council,Manchester Leisure,Payments to Sub-Contractors,11.08.2021,5105772207,"1,150.00",Cornthwaite Tree Care
Manchester City Council,Manchester Leisure,Payments to Sub-Contractors,11.08.2021,5105772324,"1,085.00",Groundwork & Leisure Services Ltd
Manchester City Council,Highways Services,Payments to Sub-Contractors,11.08.2021,5105772407,"29,579.88",Rosgal Ltd
Manchester City Council,Highways Services,Payments to Sub-Contractors,11.08.2021,5105772606,"18,744.00",Balfour Beatty Living Places Ltd
Manchester City Council,Highways Services,Payments to Sub-Contractors,11.08.2021,5105772409,"17,958.33",Rosgal Ltd
Manchester City Council,Highways Services,Payments to Sub-Contractors,11.08.2021,5105772605,"14,240.00",Balfour Beatty Living Places Ltd
Manchester City Council,Highways Services,Payments to Sub-Contractors,11.08.2021,5105772600,"8,528.00",Balfour Beatty Living Places Ltd
Manchester City Council,Highways Services,Payments to Sub-Contractors,11.08.2021,5105772390,"8,043.20",Rosgal Ltd
Manchester City Council,Highways Services,Payments to Sub-Contractors,11.08.2021,5105772594,"3,944.00",Balfour Beatty Living Places Ltd
Manchester City Council,Highways Services,Payments to Sub-Contractors,11.08.2021,5105772595,"2,120.00",Balfour Beatty Living Places Ltd
Manchester City Council,Highways Services,Payments to Sub-Contractors,11.08.2021,5105772680,"1,104.66",Rhodes and Sons Construction Ltd
Manchester City Council,Hospitality + Trading Services,Hire of Machinery,11.08.2021,5105772553,"1,298.43",R & M Developments Ltd
Manchester City Council,Hospitality + Trading Services,Hire of Machinery,11.08.2021,5105772554,"1,038.50",R & M Developments Ltd
Manchester City Council,Chief Executives,Hire of Equipment,11.08.2021,5105772458,690.00,Universal Live
Manchester City Council,Chief Executives,Grant Payments,11.08.2021,5105772593,"3,750.00",Waters Edge Arts Ltd
Manchester City Council,Chief Executives,Printing,11.08.2021,5105772133,820.00,Geiger Limited
Manchester City Council,Chief Executives,Printing,11.08.2021,5105772556,-820.00,Geiger Limited
Manchester City Council,Manchester Leisure,Legal Fees,11.08.2021,5105772735,"2,800.00",Redacted Personal Information
Manchester City Council,Chief Executives,Legal Fees,11.08.2021,5105772710,"3,725.74",Weightmans LLP Solicitors
Manchester City Council,Chief Executives,Legal Fees,11.08.2021,5105772708,"2,843.75",Weightmans LLP Solicitors
Manchester City Council,Chief Executives,Legal Fees,11.08.2021,5105772412,"2,115.40",Weightmans LLP Solicitors
Manchester City Council,Chief Executives,Legal Fees,11.08.2021,5105772394,"1,774.62",Weightmans LLP Solicitors
Manchester City Council,Chief Executives,Legal Fees,11.08.2021,5105772689,"1,387.50",Weightmans LLP Solicitors
Manchester City Council,Chief Executives,Legal Fees,11.08.2021,5105772438,"1,311.50",Weightmans LLP Solicitors
Manchester City Council,Chief Executives,Legal Fees,11.08.2021,5105772392,906.25,Weightmans LLP Solicitors
Manchester City Council,Chief Executives,Legal Fees,11.08.2021,5105772715,756.25,Weightmans LLP Solicitors
Manchester City Council,Chief Executives,Legal Fees,11.08.2021,5105772417,638.50,Weightmans LLP Solicitors
Manchester City Council,Regeneration Finance,Legal Fees,11.08.2021,5105772688,"2,000.00",Kings Chambers
Manchester City Council,Highways Services,Professional fees,11.08.2021,5105772623,"4,328.00",Balfour Beatty Living Places Ltd
Manchester City Council,Highways Services,Professional fees,11.08.2021,5105772617,"3,896.00",Balfour Beatty Living Places Ltd
Manchester City Council,Highways Services,Professional fees,11.08.2021,5105772602,"3,864.00",Balfour Beatty Living Places Ltd
Manchester City Council,Highways Services,Professional fees,11.08.2021,5105772628,"3,784.00",Balfour Beatty Living Places Ltd
Manchester City Council,Highways Services,Professional fees,11.08.2021,5105772625,"2,648.00",Balfour Beatty Living Places Ltd
Manchester City Council,Highways Services,Professional fees,11.08.2021,5105772608,"2,424.00",Balfour Beatty Living Places Ltd
Manchester City Council,Highways Services,Professional fees,11.08.2021,5105772613,"1,952.00",Balfour Beatty Living Places Ltd
Manchester City Council,Highways Services,Professional fees,11.08.2021,5105772610,"1,624.00",Balfour Beatty Living Places Ltd
Manchester City Council,Highways Services,Professional fees,11.08.2021,5105772612,"1,424.00",Balfour Beatty Living Places Ltd
Manchester City Council,Highways Services,Professional fees,11.08.2021,5105772615,"1,080.00",Balfour Beatty Living Places Ltd
Manchester City Council,Highways Services,Professional fees,11.08.2021,5105772607,696.00,Balfour Beatty Living Places Ltd
Manchester City Council,Highways Services,Professional fees,11.08.2021,5105772619,632.00,Balfour Beatty Living Places Ltd
Manchester City Council,Corporate Services,Signers/Interpreters,11.08.2021,5105772323,-745.68,Language Line Ltd
Manchester City Council,Childrens & Education Services,Professional fees,11.08.2021,1907315999,"4,500.00",Central Chambers
Manchester City Council,Childrens & Education Services,Professional fees,11.08.2021,5105772587,855.00,The Owl Centre
Manchester City Council,Childrens & Education Services,Professional fees,11.08.2021,1907312868,700.05,Mental Health Associates Ltd
Manchester City Council,Childrens & Education Services,Professional fees,11.08.2021,1700122698,-800.00,St Johns Buildings-Barristers
Manchester City Council,Corporate Services,Professional fees,11.08.2021,5105771146,"4,645.00",Urban Green Space Limited
Manchester City Council,Chief Executives,Professional fees,11.08.2021,5105772659,"4,250.00",Penna PLC
Manchester City Council,Chief Executives,Professional fees,11.08.2021,5105772455,"3,000.00",Pilat Europe Ltd
Manchester City Council,Regeneration Finance,Professional fees,11.08.2021,5105772739,"13,750.00",Think Trinity Limited
Manchester City Council,Highways Services,Professional fees,11.08.2021,5105772131,"10,198.25",Pell Frischmann Consultants Ltd
Manchester City Council,Highways Services,Professional fees,11.08.2021,5105772117,"7,232.00",Pell Frischmann Consultants Ltd
Manchester City Council,Highways Services,Professional fees,11.08.2021,5105772132,"3,306.00",Pell Frischmann Consultants Ltd
Manchester City Council,Highways Services,Professional fees,11.08.2021,5105772112,"2,470.00",Pell Frischmann Consultants Ltd
Manchester City Council,Highways Services,Professional fees,11.08.2021,5105772090,"1,624.50",Pell Frischmann Consultants Ltd
Manchester City Council,Highways Services,Professional fees,11.08.2021,5105772098,"1,482.00",Pell Frischmann Consultants Ltd
Manchester City Council,Chief Executives,Landline Telephone,11.08.2021,1907316660,655.56,Daisy Corporate Services Trading
Manchester City Council,Chief Executives,Telecoms Maintenance,11.08.2021,5105772418,"1,730.00",T.I.S. Limited
Manchester City Council,Corporate Services,Mobilephone Charges,11.08.2021,5105772374,985.50,EE/T-Mobile
Manchester City Council,Manchester Leisure,Grant and subscriptions awarded,11.08.2021,5105772731,"279,330.00",University Of Manchester
Manchester City Council,Manchester Leisure,Grant and subscriptions awarded,11.08.2021,5105772717,"75,000.00",Young Manchester
Manchester City Council,Manchester Leisure,Grant and subscriptions awarded,11.08.2021,5105772736,"2,000.00",Emerge 3Rs
Manchester City Council,Chief Executives,Grant and subscriptions awarded,11.08.2021,5105772358,"20,920.00",Inspired Taskforce CIC
Manchester City Council,Chief Executives,Grant and subscriptions awarded,11.08.2021,5105772566,"-20,920.00",Inspired Taskforce CIC
Manchester City Council,Adult Social Care,Bed & Breakfast Acc,11.08.2021,5105772718,"31,162.00",Redacted Personal Information
Manchester City Council,Adult Social Care,Bed & Breakfast Acc,11.08.2021,5105772360,"7,755.00",Hala Guest House
Manchester City Council,Adult Social Care,Bed & Breakfast Acc,11.08.2021,5105772389,"6,975.00",Redacted Personal Information
Manchester City Council,Manchester Leisure,Goods purchased for resale in Council outlets,11.08.2021,5105772598,826.57,U Studio Design Ltd
Manchester City Council,Housing Revenue Account,Removal and Storage of Furniture,11.08.2021,5105772675,746.38,Master Moves Ltd
Manchester City Council,Manchester Leisure,Special Event,11.08.2021,5105772580,668.00,SilverbackUk
Manchester City Council,Manchester Leisure,Special Event,11.08.2021,5105772585,614.00,SilverbackUk
Manchester City Council,Manchester Leisure,Special Event,11.08.2021,5105772579,504.00,SilverbackUk
Manchester City Council,Corporate Services,WPS Awards,11.08.2021,5105772685,950.49,Furniture Resource Centre Ltd
Manchester City Council,Corporate Services,WPS Awards,11.08.2021,5105772325,880.70,Furniture Resource Centre Ltd
Manchester City Council,Corporate Services,WPS Awards,11.08.2021,5105772640,807.77,Furniture Resource Centre Ltd
Manchester City Council,Corporate Services,WPS Awards,11.08.2021,5105771870,801.06,Furniture Resource Centre Ltd
Manchester City Council,Corporate Services,WPS Awards,11.08.2021,5105772391,731.27,Furniture Resource Centre Ltd
Manchester City Council,Corporate Services,WPS Awards,11.08.2021,5105772684,677.03,Furniture Resource Centre Ltd
Manchester City Council,Corporate Services,WPS Awards,11.08.2021,5105772673,670.09,Furniture Resource Centre Ltd
Manchester City Council,Corporate Services,WPS Awards,11.08.2021,5105772379,665.30,Furniture Resource Centre Ltd
Manchester City Council,Corporate Services,WPS Awards,11.08.2021,5105772683,665.30,Furniture Resource Centre Ltd
Manchester City Council,Corporate Services,WPS Awards,11.08.2021,5105772657,664.33,Furniture Resource Centre Ltd
Manchester City Council,Corporate Services,WPS Awards,11.08.2021,5105772658,664.33,Furniture Resource Centre Ltd
Manchester City Council,Corporate Services,WPS Awards,11.08.2021,5105772666,664.33,Furniture Resource Centre Ltd
Manchester City Council,Corporate Services,WPS Awards,11.08.2021,5105772634,661.21,Furniture Resource Centre Ltd
Manchester City Council,Corporate Services,WPS Awards,11.08.2021,5105772638,599.24,Furniture Resource Centre Ltd
Manchester City Council,General Fund,Levies,11.08.2021,1907212847,"3,752,540.00",GMCA
Manchester City Council,Childrens & Education Services,Third party payments relating to Voluntary Organisations,11.08.2021,5105772644,"3,090.09",Manchester Settlement
Manchester City Council,Adult Social Care,Third party payments relating to Voluntary Organisations,11.08.2021,5105772669,"1,629.00",Alzheimers Society (Mcr Branch)
Manchester City Council,Childrens & Education Services,Payments for services,11.08.2021,5105772707,"4,173.00",National Offender Mgt Services
Manchester City Council,Childrens & Education Services,Payments for services,11.08.2021,5105772382,"1,200.00",Sendcode CIC
Manchester City Council,Childrens & Education Services,Payments for services,11.08.2021,5105772575,754.00,Fairfield Care Ltd
Manchester City Council,Childrens & Education Services,Payments for services,11.08.2021,5105770732,"-4,173.00",National Offender Mgt Services
Manchester City Council,Adult Social Care,Payments for services,11.08.2021,5105772380,"38,244.23",Creative Support Ltd
Manchester City Council,Adult Social Care,Supporting People Payments,11.08.2021,5105772402,"25,421.41",Manchester Womens Aid
Manchester City Council,Adult Social Care,Supporting People Payments,11.08.2021,5105772401,"14,284.83",Manchester Womens Aid
Manchester City Council,Childrens & Education Services,Supported Accommodation,11.08.2021,5105772636,"1,913.60",Manchester Settlement
Manchester City Council,Childrens & Education Services,Supported Accommodation,11.08.2021,5105772703,556.50,Redacted Personal Information
Manchester City Council,Chief Executives,Personal needs of client,11.08.2021,5105772269,"3,560.00",Cornflower Ltd
Manchester City Council,Adult Social Care,Housing Rents Debit,11.08.2021,1907315151,"3,993.76",Redacted Personal Information
Manchester City Council,Housing Revenue Account,Council Dwelling Adaptations,11.08.2021,5105772712,"396,518.26",Emanuel Whittaker Ltd
Manchester City Council,Housing Revenue Account,Council Dwelling Adaptations,11.08.2021,5105772592,"84,554.88",A Connolly Limited
Manchester City Council,Corporate Services,Works and associated costs for Land and Buildings,11.08.2021,5105772589,"8,900.00",Ramboll UK Limited
Manchester City Council,Corporate Services,Works and associated costs for Land and Buildings,11.08.2021,5105772590,"4,972.00",Ramboll UK Limited
Manchester City Council,Manchester Leisure,Works and associated costs for Land and Buildings,11.08.2021,1907309282,"1,200.00",Oxford Archaeology Ltd
Manchester City Council,Corporate Services,Works and associated costs for Land and Buildings,11.08.2021,5105772259,967.20,Groundwork & Leisure Services Ltd
Manchester City Council,Corporate Services,Works and associated costs for Land and Buildings,11.08.2021,5105772442,895.20,Groundwork & Leisure Services Ltd
Manchester City Council,Corporate Services,Works and associated costs for Land and Buildings,11.08.2021,5105772349,-967.20,Groundwork & Leisure Services Ltd
Manchester City Council,Chief Executives,Works and associated costs for Land and Buildings,11.08.2021,5105772630,"56,270.19",Engie Regeneration Ltd
Manchester City Council,Chief Executives,Vehicle Plant Furniture and Equipment,11.08.2021,5105772099,"1,085.20",Insight Direct (Uk) Ltd
Manchester City Council,Environment and Operations,Construction Works,11.08.2021,5105772050,"16,300.00",N D Oliver & Co Ltd
Manchester City Council,Environment and Operations,Construction Works,11.08.2021,5105772235,"3,324.88",GMCA
Manchester City Council,Environment and Operations,Construction Works,11.08.2021,5105772222,706.18,Amey Highways Lighting (Manchester)
Manchester City Council,Chief Executives,Basic Pay,12.08.2021,5105772837,740.00,Isherwood Legal Limited
Manchester City Council,Manchester Leisure,Agency staff provision,12.08.2021,5105772219,"36,249.00",Caribbean & African
Manchester City Council,Adult Social Care,Agency staff provision,12.08.2021,5105772939,"1,023.52",Vitality 24
Manchester City Council,Chief Executives,Agency staff provision,12.08.2021,5105772985,"21,000.00",Triad Resourcing
Manchester City Council,Chief Executives,Agency staff provision,12.08.2021,5105772949,"4,800.00",Capita Resourcing Limited
Manchester City Council,Adult Social Care,Training and Development,12.08.2021,5105772797,"-39,900.00",Disabled Living
Manchester City Council,Childrens & Education Services,Training and Development,12.08.2021,5105772886,"5,000.00",One Education Ltd
Manchester City Council,Manchester Leisure,External repairs and maintenance for buildings,12.08.2021,5105772888,"1,980.00",Sign-It-Up
Manchester City Council,Manchester Leisure,External repairs and maintenance for buildings,12.08.2021,5105772782,700.00,Willfab Ltd
Manchester City Council,Regeneration Finance,External repairs and maintenance for buildings,12.08.2021,5105772862,"11,850.00",Besa Publications Ltd
Manchester City Council,Regeneration Finance,Gas,12.08.2021,1907320532,"4,538.32",British Gas Plc
Manchester City Council,Regeneration Finance,Heating Oil,12.08.2021,1907320529,"8,610.30",Standard Fuels Oils
Manchester City Council,Adult Social Care,Rents,12.08.2021,5105773032,"85,217.00",Accommodation Links Ltd
Manchester City Council,Adult Social Care,Rents,12.08.2021,5105772884,"17,406.41",Housing Social Ltd
Manchester City Council,Adult Social Care,Rents,12.08.2021,5105772764,"4,603.37",Houses4Homes 4U Ltd
Manchester City Council,Adult Social Care,Rents,12.08.2021,5105772762,"4,359.01",Housing Social Ltd
Manchester City Council,Adult Social Care,Rents,12.08.2021,5105772912,"-1,829.28",Anchor Trust
Manchester City Council,Regeneration Finance,Rates,12.08.2021,5105772759,"38,204.78",Wythenshawe Forum Trust Ltd
Manchester City Council,Manchester Leisure,Contract Cleaning External,12.08.2021,5105772821,"7,350.00",Clearview Event Services Limited
Manchester City Council,Manchester Leisure,Contract Cleaning External,12.08.2021,5105772908,"3,086.25",GTS Steam Cleaners
Manchester City Council,Manchester Leisure,Contract Cleaning External,12.08.2021,5105772907,581.75,GTS Steam Cleaners
Manchester City Council,Manchester Leisure,Contract Cleaning External,12.08.2021,5105772987,509.25,GTS Steam Cleaners
Manchester City Council,Adult Social Care,Contract Cleaning External,12.08.2021,5105772919,750.00,Fishers Cleaning Services Ltd
Manchester City Council,Adult Social Care,Contract Cleaning External,12.08.2021,5105772920,690.00,Fishers Cleaning Services Ltd
Manchester City Council,Regeneration Finance,Refuse Collection,12.08.2021,1907320432,"4,874.20",Shred-It Ltd
Manchester City Council,Adult Social Care,Security,12.08.2021,5105772428,"3,213.00",UNIQUE SPECIALIST SERVICES
Manchester City Council,Adult Social Care,Security,12.08.2021,5105772429,"3,213.00",UNIQUE SPECIALIST SERVICES
Manchester City Council,Adult Social Care,Security,12.08.2021,5105772430,"3,213.00",UNIQUE SPECIALIST SERVICES
Manchester City Council,Adult Social Care,Security,12.08.2021,5105772431,"3,213.00",UNIQUE SPECIALIST SERVICES
Manchester City Council,Adult Social Care,Security,12.08.2021,5105772799,"3,213.00",UNIQUE SPECIALIST SERVICES
Manchester City Council,Adult Social Care,Security,12.08.2021,5105772801,"3,213.00",UNIQUE SPECIALIST SERVICES
Manchester City Council,Adult Social Care,Security,12.08.2021,5105772803,"3,213.00",UNIQUE SPECIALIST SERVICES
Manchester City Council,Adult Social Care,Security,12.08.2021,5105772807,"3,213.00",UNIQUE SPECIALIST SERVICES
Manchester City Council,Adult Social Care,Security,12.08.2021,5105772434,"1,071.00",UNIQUE SPECIALIST SERVICES
Manchester City Council,Adult Social Care,Security,12.08.2021,5105772436,"1,071.00",UNIQUE SPECIALIST SERVICES
Manchester City Council,Adult Social Care,Security,12.08.2021,5105772439,"1,071.00",UNIQUE SPECIALIST SERVICES
Manchester City Council,Adult Social Care,Security,12.08.2021,5105772440,"1,071.00",UNIQUE SPECIALIST SERVICES
Manchester City Council,Adult Social Care,Security,12.08.2021,5105772792,"1,071.00",UNIQUE SPECIALIST SERVICES
Manchester City Council,Adult Social Care,Security,12.08.2021,5105772796,"1,071.00",UNIQUE SPECIALIST SERVICES
Manchester City Council,Adult Social Care,Security,12.08.2021,5105772809,"1,071.00",UNIQUE SPECIALIST SERVICES
Manchester City Council,Adult Social Care,Security,12.08.2021,5105772822,"1,071.00",UNIQUE SPECIALIST SERVICES
Manchester City Council,Adult Social Care,Security,12.08.2021,5105772791,"-1,071.00",UNIQUE SPECIALIST SERVICES
Manchester City Council,Adult Social Care,Security,12.08.2021,5105772794,"-1,071.00",UNIQUE SPECIALIST SERVICES
Manchester City Council,Adult Social Care,Security,12.08.2021,5105772808,"-1,071.00",UNIQUE SPECIALIST SERVICES
Manchester City Council,Adult Social Care,Security,12.08.2021,5105772810,"-1,071.00",UNIQUE SPECIALIST SERVICES
Manchester City Council,Adult Social Care,Security,12.08.2021,5105772798,"-3,213.00",UNIQUE SPECIALIST SERVICES
Manchester City Council,Adult Social Care,Security,12.08.2021,5105772800,"-3,213.00",UNIQUE SPECIALIST SERVICES
Manchester City Council,Adult Social Care,Security,12.08.2021,5105772802,"-3,213.00",UNIQUE SPECIALIST SERVICES
Manchester City Council,Adult Social Care,Security,12.08.2021,5105772805,"-3,213.00",UNIQUE SPECIALIST SERVICES
Manchester City Council,Manchester Leisure,Grounds Maintenance,12.08.2021,5105772765,552.13,Scott Avenue Allotment Society
Manchester City Council,Hospitality + Trading Services,Vehicle Hire Costs,12.08.2021,5105773007,"27,593.24",F.R.Sharrock Ltd
Manchester City Council,Hospitality + Trading Services,Vehicle Hire Costs,12.08.2021,5105772980,"1,782.00",Gibsons Garden Machinery Limited
Manchester City Council,Hospitality + Trading Services,Vehicle Repairs,12.08.2021,5105772865,890.63,Advanced Vehicle Technicians Ltd
Manchester City Council,Hospitality + Trading Services,Vehicle Repairs,12.08.2021,5105772866,676.00,Advanced Vehicle Technicians Ltd
Manchester City Council,Hospitality + Trading Services,Vehicle Repairs,12.08.2021,5105772867,574.87,Advanced Vehicle Technicians Ltd
Manchester City Council,Childrens & Education Services,Transport Coach Hire,12.08.2021,5105772769,"22,638.00",M Travel
Manchester City Council,Childrens & Education Services,Transport Coach Hire,12.08.2021,5105771507,"8,155.00",Hastings Private Hire
Manchester City Council,Childrens & Education Services,Transport Coach Hire,12.08.2021,5105772704,"4,892.50",Redacted Personal Information
Manchester City Council,Childrens & Education Services,Transport Coach Hire,12.08.2021,5105771185,"3,428.00",MS Minibuses Ltd
Manchester City Council,Childrens & Education Services,Transport Coach Hire,12.08.2021,5105772813,"1,430.00",Liddle Hackney Carriage
Manchester City Council,Childrens & Education Services,Transport Coach Hire,12.08.2021,5105773008,"1,126.20",Club Radio Cars Manchester Ltd
Manchester City Council,Corporate Services,Travel Season TLS,12.08.2021,5105771005,"1,079.75",Northern Trains Limited
Manchester City Council,Manchester Leisure,Equipment,12.08.2021,5105772897,"1,138.00",MRM Street Furniture Ltd
Manchester City Council,Adult Social Care,Equipment,12.08.2021,5105772751,"11,400.00",Direct Healthcare Group Ltd
Manchester City Council,Adult Social Care,Equipment,12.08.2021,5105772906,"2,626.00",Tunstall Healthcare (UK) Ltd
Manchester City Council,Manchester Leisure,Furniture,12.08.2021,5105772889,"1,785.50",Sign-It-Up
Manchester City Council,Childrens & Education Services,Furniture,12.08.2021,5105771836,749.95,Bennett Workplace Solutions Ltd
Manchester City Council,Adult Social Care,Building Materials for direct delivery,12.08.2021,5105772881,939.42,Sarabec Limited
Manchester City Council,Highways Services,Building Materials for direct delivery,12.08.2021,5105773017,894.41,TARMAC
Manchester City Council,Chief Executives,Payments to Sub-Contractors,12.08.2021,5105772827,942.16,Redacted Personal Information
Manchester City Council,Chief Executives,Payments to Sub-Contractors,12.08.2021,5105772778,579.95,Redacted Personal Information
Manchester City Council,Chief Executives,Payments to Sub-Contractors,12.08.2021,5105772775,567.23,Redacted Personal Information
Manchester City Council,Chief Executives,Payments to Sub-Contractors,12.08.2021,5105772878,501.53,Redacted Personal Information
Manchester City Council,Highways Services,Payments to Sub-Contractors,12.08.2021,5105772831,"8,618.94",Rosgal Ltd
Manchester City Council,Highways Services,Payments to Sub-Contractors,12.08.2021,5105772834,"7,991.17",Rosgal Ltd
Manchester City Council,Highways Services,Payments to Sub-Contractors,12.08.2021,5105772812,"6,549.61",Rosgal Ltd
Manchester City Council,Highways Services,Payments to Sub-Contractors,12.08.2021,5105772833,"6,197.46",Rosgal Ltd
Manchester City Council,Highways Services,Payments to Sub-Contractors,12.08.2021,5105772832,"6,009.80",Rosgal Ltd
Manchester City Council,Highways Services,Payments to Sub-Contractors,12.08.2021,5105772771,968.83,Rhodes and Sons Construction Ltd
Manchester City Council,Hospitality + Trading Services,Hire of Machinery,12.08.2021,5105772971,871.20,Gibsons Garden Machinery Limited
Manchester City Council,Hospitality + Trading Services,Hire of Machinery,12.08.2021,5105772968,660.00,Gibsons Garden Machinery Limited
Manchester City Council,Hospitality + Trading Services,Hire of Machinery,12.08.2021,5105772970,660.00,Gibsons Garden Machinery Limited
Manchester City Council,Hospitality + Trading Services,Hire of Machinery,12.08.2021,5105772976,660.00,Gibsons Garden Machinery Limited
Manchester City Council,Childrens & Education Services,Catering,12.08.2021,5105772984,900.00,Manchester Black Health Forum
Manchester City Council,Manchester Leisure,Printing,12.08.2021,5105772887,"1,588.00",Sign-It-Up
Manchester City Council,Chief Executives,Printing,12.08.2021,5105772898,"3,674.00",NB Colour Print Limited
Manchester City Council,Chief Executives,Printing,12.08.2021,5105772840,"1,472.00",Chapel Press Ltd
Manchester City Council,Chief Executives,Printing,12.08.2021,5105772557,820.00,Geiger Limited
Manchester City Council,Chief Executives,Printing,12.08.2021,5105772899,678.00,NB Colour Print Limited
Manchester City Council,Manchester Leisure,Publications,12.08.2021,5105772859,549.56,Askews and Holts
Manchester City Council,Chief Executives,Stationery,12.08.2021,5105772820,616.00,Quadient UK Ltd (Consumables)
Manchester City Council,Manchester Leisure,Legal Fees,12.08.2021,5105772836,"1,500.00",Redacted Personal Information
Manchester City Council,Childrens & Education Services,Legal Fees,12.08.2021,5105772788,"2,743.75",Russell & Russell Solicitors LLP
Manchester City Council,Childrens & Education Services,Legal Fees,12.08.2021,5105772998,"2,425.00",Waddington & Son Solicitors
Manchester City Council,Childrens & Education Services,Legal Fees,12.08.2021,5105773031,"1,596.29",Waddington & Son Solicitors
Manchester City Council,Childrens & Education Services,Legal Fees,12.08.2021,5105773000,"1,423.85",Waddington & Son Solicitors
Manchester City Council,Childrens & Education Services,Legal Fees,12.08.2021,5105772991,"1,325.00",Waddington & Son Solicitors
Manchester City Council,Childrens & Education Services,Legal Fees,12.08.2021,5105772956,650.00,Waddington & Son Solicitors
Manchester City Council,Childrens & Education Services,Legal Fees,12.08.2021,5105772997,561.25,Waddington & Son Solicitors
Manchester City Council,Highways Services,Legal Fees,12.08.2021,1907315995,"25,958.00",CKE LAw
Manchester City Council,Highways Services,Legal Fees,12.08.2021,1907316758,"1,100.00",Redacted Personal Information
Manchester City Council,Highways Services,Legal Fees,12.08.2021,5105773052,750.00,Redacted Personal Information
Manchester City Council,Insurance Fund,Legal Fees,12.08.2021,1907315995,"6,000.00",CKE LAw
Manchester City Council,Highways Services,Professional fees,12.08.2021,5105772603,"11,704.00",Balfour Beatty Living Places Ltd
Manchester City Council,Highways Services,Professional fees,12.08.2021,5105772599,"3,688.00",Balfour Beatty Living Places Ltd
Manchester City Council,Manchester Leisure,Professional fees,12.08.2021,5105773022,"16,500.00",Read - The Reading Agency
Manchester City Council,Childrens & Education Services,Professional fees,12.08.2021,5105772986,"45,709.70",Welfare Call (LAC) Ltd
Manchester City Council,Childrens & Education Services,Professional fees,12.08.2021,5105773023,"1,800.00",Redacted Personal Information
Manchester City Council,Adult Social Care,Professional fees,12.08.2021,5105772883,"101,703.00",NE1 Procurement Services Limited
Manchester City Council,Adult Social Care,Professional fees,12.08.2021,5105773012,"1,113.58",Wythenshawe Community Housing Group
Manchester City Council,Chief Executives,Professional fees,12.08.2021,5105772756,"2,771.35",Foreign and Commonwealth Office
Manchester City Council,Regeneration Finance,Professional fees,12.08.2021,5105772842,"1,749.00",Jacobs UK Ltd
Manchester City Council,Chief Executives,Funeral and coroner related services,12.08.2021,5105772825,"19,203.78",Central Mcr Uni Hospital t/a
Manchester City Council,Chief Executives,Postage,12.08.2021,5105772642,"5,425.74",Whistl North Ltd
Manchester City Council,Chief Executives,Postage,12.08.2021,5105772633,"2,211.81",Whistl North Ltd
Manchester City Council,Chief Executives,Postage,12.08.2021,5105772749,-511.00,Royal Mail Group Plc
Manchester City Council,Chief Executives,Postage,12.08.2021,5105772648,-798.25,Whistl North Ltd
Manchester City Council,Chief Executives,I T Provision,12.08.2021,5105772734,765.94,Nominet UK
Manchester City Council,Adult Social Care,I T Provision,12.08.2021,5105773016,"4,934.55",CM2000 Care Management
Manchester City Council,Corporate Services,I T Provision,12.08.2021,5105772451,"15,067.00",Siemans Mobility Limited
Manchester City Council,Regeneration Finance,Subsistence and Conference Expenses,12.08.2021,5105772988,"9,000.00",Tribal Education
Manchester City Council,Manchester Leisure,Cash Collection,12.08.2021,5105771143,"4,746.00",APCOA PARKING UK Ltd
Manchester City Council,Manchester Leisure,Cash Collection,12.08.2021,5105771142,"3,758.50",APCOA PARKING UK Ltd
Manchester City Council,Manchester Leisure,Grant and subscriptions awarded,12.08.2021,5105772772,"40,128.00",City in the Community
Manchester City Council,Housing Revenue Account,Private Finance and Public Private partnership initiatives,12.08.2021,5105772761,"1,978.69",Switch2 Energey Limited
Manchester City Council,Chief Executives,Advertising,12.08.2021,5105773010,"1,000.00",Mumsnet Limited
Manchester City Council,Adult Social Care,Funeral and coroner related services,12.08.2021,5105772839,"2,743.00",Greater Manchester Funeral Service
Manchester City Council,Adult Social Care,Funeral and coroner related services,12.08.2021,5105772838,"1,329.00",Greater Manchester Funeral Service
Manchester City Council,Adult Social Care,Funeral and coroner related services,12.08.2021,5105772789,"1,275.00",Greater Manchester Funeral Service
Manchester City Council,Adult Social Care,Funeral and coroner related services,12.08.2021,5105772877,744.00,Greater Manchester Funeral Service
Manchester City Council,Chief Executives,Examination Fees,12.08.2021,5105772790,741.00,ROAR Forensics Ltd
Manchester City Council,Adult Social Care,Bed & Breakfast Acc,12.08.2021,5105772870,"7,215.00",Intra City Construction Group
Manchester City Council,Adult Social Care,Bed & Breakfast Acc,12.08.2021,5105772768,"6,090.00",Redacted Personal Information
Manchester City Council,Highways Services,Purchase of stores for re-distribution,12.08.2021,5105772403,"11,149.92",Castings Services
Manchester City Council,Highways Services,Purchase of stores for re-distribution,12.08.2021,5105772876,"4,336.08",Castings Services
Manchester City Council,Manchester Leisure,Library Materials Acquisition,12.08.2021,1907315933,656.74,Askews and Holts
Manchester City Council,Manchester Leisure,Special Event,12.08.2021,5105772586,584.00,SilverbackUk
Manchester City Council,Manchester Leisure,Special Event,12.08.2021,5105772588,542.00,SilverbackUk
Manchester City Council,Chief Executives,Funeral and coroner related services,12.08.2021,5105772825,"26,552.38",Central Mcr Uni Hospital t/a
Manchester City Council,Corporate Services,WPS Awards,12.08.2021,5105773005,887.26,Furniture Resource Centre Ltd
Manchester City Council,Corporate Services,WPS Awards,12.08.2021,5105772767,813.76,Furniture Resource Centre Ltd
Manchester City Council,Corporate Services,WPS Awards,12.08.2021,5105772871,677.03,Furniture Resource Centre Ltd
Manchester City Council,Corporate Services,WPS Awards,12.08.2021,5105772951,545.68,Furniture Resource Centre Ltd
Manchester City Council,Adult Social Care,Third party payments to Health Authority,12.08.2021,5105771911,"162,404.00",Greater Manchester Mental Health
Manchester City Council,Adult Social Care,Third party payments to Health Authority,12.08.2021,5105772954,"116,824.00",Greater Manchester Mental Health
Manchester City Council,Adult Social Care,Third party payments to Health Authority,12.08.2021,5105772954,"32,916.00",Greater Manchester Mental Health
Manchester City Council,Adult Social Care,Third party payments to Health Authority,12.08.2021,5105772954,"12,664.00",Greater Manchester Mental Health
Manchester City Council,Adult Social Care,Third party payments to Health Authority,12.08.2021,5105772953,"-162,404.00",Greater Manchester Mental Health
Manchester City Council,Childrens & Education Services,Third party payments relating to Voluntary Organisations,12.08.2021,5105772863,691.75,The Big Life Company
Manchester City Council,Adult Social Care,Third party payments relating to Voluntary Organisations,12.08.2021,5105772903,"5,000.00",George House Trust
Manchester City Council,Adult Social Care,Third party payments relating to Voluntary Organisations,12.08.2021,5105772885,"5,000.00",Manchester Care & Repair Ltd
Manchester City Council,Childrens & Education Services,Payments for services,12.08.2021,5105771620,"8,041.64",Belmont School Ltd
Manchester City Council,Adult Social Care,Payments for services,12.08.2021,5105772891,"38,184.00",Greater Manchester Mental Health
Manchester City Council,Adult Social Care,Supporting People Payments,12.08.2021,5105772753,"5,000.00",Great Places Housing Association
Manchester City Council,Childrens & Education Services,Supported Accommodation,12.08.2021,5105772793,556.50,Redacted Personal Information
Manchester City Council,Childrens & Education Services,Supported Accommodation,12.08.2021,5105772795,556.50,Redacted Personal Information
Manchester City Council,Childrens & Education Services,Supported Accommodation,12.08.2021,5105772776,535.64,Redacted Personal Information
Manchester City Council,Childrens & Education Services,Supported Accommodation,12.08.2021,5105772777,535.64,Redacted Personal Information
Manchester City Council,Childrens & Education Services,Supported Accommodation,12.08.2021,5105772779,535.64,Redacted Personal Information
Manchester City Council,Childrens & Education Services,Supported Accommodation,12.08.2021,5105772780,535.64,Redacted Personal Information
Manchester City Council,Adult Social Care,Personal needs of client,12.08.2021,5105772918,"3,007.00",James Leckey Design Ltd
Manchester City Council,Adult Social Care,Personal needs of client,12.08.2021,5105770755,"2,921.00",James Leckey Design Ltd
Manchester City Council,Adult Social Care,Personal needs of client,12.08.2021,5105772346,"1,433.02",Prism Medical UK Carefree Division
Manchester City Council,Adult Social Care,Personal needs of client,12.08.2021,5105772119,585.07,Prism Medical UK Carefree Division
Manchester City Council,Corporate Services,LRSG Grant pay,12.08.2021,1907320591,"12,000.00",Ian Fryer Freshly does it
Manchester City Council,Childrens & Education Services,Expenditure re Internal Trading Ordered Externally,12.08.2021,5105771875,"1,138.40",Language Line Ltd
Manchester City Council,Housing Revenue Account,Council Dwelling Adaptations,12.08.2021,5105772890,"4,490.56",Rexel UK Ltd
Manchester City Council,Housing Revenue Account,Council Dwelling Adaptations,12.08.2021,5105772868,"1,683.96",Rexel UK Ltd
Manchester City Council,Housing Revenue Account,Council Dwelling Adaptations,12.08.2021,5105771745,"1,628.21",Pts Plumbing Trade Supplies
Manchester City Council,Manchester Leisure,Works and associated costs for Land and Buildings,12.08.2021,5105772601,"423,371.00",RFL governing body (LTD)
Manchester City Council,Corporate Services,Works and associated costs for Land and Buildings,12.08.2021,5105772574,"45,124.13",Ove Arup & Partners Ltd
Manchester City Council,Chief Executives,Works and associated costs for Land and Buildings,12.08.2021,5105772055,"62,899.94",Turner & Townsend Cost
Manchester City Council,Chief Executives,Works and associated costs for Land and Buildings,12.08.2021,5105770782,"10,260.00",Turner & Townsend Project
Manchester City Council,Chief Executives,Works and associated costs for Land and Buildings,12.08.2021,5105772456,"2,250.00",Urban Green Space Limited
Manchester City Council,Corporate Services,Works and associated costs for Land and Buildings,12.08.2021,5105772819,"46,194.24",R Development Ltd
Manchester City Council,Chief Executives,Works and associated costs for Land and Buildings,12.08.2021,5105772757,"5,396.16",Engie Regeneration Ltd
Manchester City Council,Chief Executives,Vehicle Plant Furniture and Equipment,12.08.2021,5105770820,"2,376.00",T.I.S. Limited
Manchester City Council,Environment and Operations,Construction Works,12.08.2021,5105772452,"5,778.75",R & M Developments Ltd
Manchester City Council,Environment and Operations,Construction Works,12.08.2021,5105772740,"1,650.00",Conservation Contracts Northwest
Manchester City Council,Chief Executives,Agency staff provision,13.08.2021,5105773154,"1,180.00",Isherwood Legal Limited
Manchester City Council,Chief Executives,Agency staff provision,13.08.2021,5105773080,760.00,Isherwood Legal Limited
Manchester City Council,Chief Executives,Agency staff provision,13.08.2021,5105773135,523.00,Osborne Richardson
Manchester City Council,Adult Social Care,Training and Development,13.08.2021,5105773263,"1,467.00",TutorCad
Manchester City Council,Regeneration Finance,Internal Repairs and Maintenance for buildings,13.08.2021,5105773074,"55,851.26",ENGIE Services Ltd
Manchester City Council,Regeneration Finance,Internal Repairs and Maintenance for buildings,13.08.2021,5105773073,"55,593.14",ENGIE Services Ltd
Manchester City Council,Regeneration Finance,Internal Repairs and Maintenance for buildings,13.08.2021,5105773045,"1,630.00",Electricity NW Construction & Maint
Manchester City Council,Regeneration Finance,External repairs and maintenance for buildings,13.08.2021,5105773279,-995.00,BAT Fabrications
Manchester City Council,Regeneration Finance,Electricity,13.08.2021,5105773266,"4,716.57",Wythenshawe Forum Trust Ltd
Manchester City Council,Adult Social Care,Rents,13.08.2021,5105773274,"32,366.89",United Property Management Ltd
Manchester City Council,Adult Social Care,Rents,13.08.2021,5105773257,"13,071.35",K L Properties
Manchester City Council,Adult Social Care,Rents,13.08.2021,5105773106,"4,359.01",Housing Social Ltd
Manchester City Council,Adult Social Care,Rents,13.08.2021,1907320755,"1,350.00",PICK MY PAD LTD
Manchester City Council,Adult Social Care,Rents,13.08.2021,5105773127,652.78,Jigsaw Homes North
Manchester City Council,Regeneration Finance,Contract Cleaning External,13.08.2021,5105773268,"4,681.92",Wythenshawe Forum Trust Ltd
Manchester City Council,Regeneration Finance,Contract Cleaning External,13.08.2021,5105773326,"2,326.47",Alliance Disposables Ltd
Manchester City Council,Regeneration Finance,Contract Cleaning External,13.08.2021,5105773327,"1,112.23",Alliance Disposables Ltd
Manchester City Council,Regeneration Finance,Contract Cleaning External,13.08.2021,5105773328,"1,016.10",Alliance Disposables Ltd
Manchester City Council,Manchester Leisure,Refuse Collection,13.08.2021,5105773192,"56,952.70",Redgate Holdings Ltd
Manchester City Council,Manchester Leisure,Cleaning Equipment and Materials,13.08.2021,5105773198,"21,877.60",Redgate Holdings Ltd
Manchester City Council,Corporate Services,Storage Costs,13.08.2021,5105772966,"5,952.23",Oasis UK formerly Box-It (NW)
Manchester City Council,Manchester Leisure,Grounds Maintenance,13.08.2021,5105773194,"10,747.99",Redgate Holdings Ltd
Manchester City Council,Manchester Leisure,Grounds Maintenance,13.08.2021,5105773090,757.83,Fallowfield Horticultural &
Manchester City Council,Manchester Leisure,Grounds Maintenance,13.08.2021,5105773235,665.91,Ivy Green Allotments
Manchester City Council,Hospitality + Trading Services,Vehicle Fuel Costs,13.08.2021,5105773238,"18,428.17",Standard Fuels Oils
Manchester City Council,Hospitality + Trading Services,Vehicle Fuel Costs,13.08.2021,5105773273,"10,366.15",Standard Fuels Oils
Manchester City Council,Hospitality + Trading Services,Vehicle Fuel Costs,13.08.2021,5105773240,"10,220.02",Standard Fuels Oils
Manchester City Council,Hospitality + Trading Services,Vehicle Fuel Costs,13.08.2021,5105773272,"10,219.19",Standard Fuels Oils
Manchester City Council,Hospitality + Trading Services,Vehicle Hire Costs,13.08.2021,5105773246,"1,800.00",Peter Douglass Platforms
Manchester City Council,Hospitality + Trading Services,Vehicle Hire Costs,13.08.2021,5105773247,"1,300.00",Peter Douglass Platforms
Manchester City Council,Housing Revenue Account,Travel,13.08.2021,5105773245,"7,623.76",Northwards Housing Limited
Manchester City Council,Childrens & Education Services,Transport Coach Hire,13.08.2021,5105771969,"29,086.25",Royton Minibuses Ltd
Manchester City Council,Childrens & Education Services,Transport Coach Hire,13.08.2021,5105772135,"11,816.56",Redacted Personal Information
Manchester City Council,Adult Social Care,Equipment,13.08.2021,5105773129,"7,416.00",Invacare Limited
Manchester City Council,Adult Social Care,Equipment,13.08.2021,5105773078,"2,100.00",Herida Healthcare Plc
Manchester City Council,Corporate Services,Equipment,13.08.2021,1907312915,"1,425.00",Fire Risk Consultancy Ltd
Manchester City Council,Chief Executives,Equipment,13.08.2021,5105773089,"1,259.00",Bennett Workplace Solutions Ltd
Manchester City Council,Adult Social Care,"Consumable items eg Toilet rolls, soap etc",13.08.2021,5105772400,806.00,All 4 Pets Limited
Manchester City Council,Adult Social Care,"Consumable items eg Toilet rolls, soap etc",13.08.2021,5105773140,-806.00,All 4 Pets Limited
Manchester City Council,Manchester Leisure,Disposables,13.08.2021,5105773196,"59,036.90",Redgate Holdings Ltd
Manchester City Council,Adult Social Care,Building Materials for direct delivery,13.08.2021,5105773237,"1,480.00",Illingworth Ingham (M/cR)
Manchester City Council,Manchester Leisure,Payments to Sub-Contractors,13.08.2021,5105772572,"3,900.00",Ramora Ltd
Manchester City Council,Manchester Leisure,Payments to Sub-Contractors,13.08.2021,5105773153,936.81,Ramora Ltd
Manchester City Council,Manchester Leisure,Payments to Sub-Contractors,13.08.2021,5105773205,650.00,Groundwork Landscapes Ltd
Manchester City Council,Chief Executives,Payments to Sub-Contractors,13.08.2021,5105773244,"2,689.45",T/A Janus
Manchester City Council,Chief Executives,Payments to Sub-Contractors,13.08.2021,5105773243,"1,319.30",T/A Janus
Manchester City Council,Highways Services,Payments to Sub-Contractors,13.08.2021,5105773076,"19,173.76",Rosgal Ltd
Manchester City Council,Highways Services,Payments to Sub-Contractors,13.08.2021,5105773171,"6,021.54",Rosgal Ltd
Manchester City Council,Highways Services,Payments to Sub-Contractors,13.08.2021,5105773100,"-6,021.54",Rosgal Ltd
Manchester City Council,Manchester Leisure,Liquid Contnr Recycl,13.08.2021,5105773195,"1,597.60",Redgate Holdings Ltd
Manchester City Council,Manchester Leisure,Recycling Facilities,13.08.2021,5105773193,"37,079.62",Redgate Holdings Ltd
Manchester City Council,Chief Executives,Grant Payments,13.08.2021,5105773060,"4,000.00",Manchester Jewish Museum
Manchester City Council,Corporate Services,Printing,13.08.2021,5105773160,"2,088.00",Mail Solutions
Manchester City Council,Corporate Services,Printing,13.08.2021,5105773181,-696.00,Mail Solutions
Manchester City Council,Chief Executives,Publications,13.08.2021,5105773057,590.00,Wildy & Sons Ltd
Manchester City Council,Childrens & Education Services,Legal Fees,13.08.2021,5105773036,"5,457.82",Waddington & Son Solicitors
Manchester City Council,Childrens & Education Services,Legal Fees,13.08.2021,5105773035,"3,768.15",Waddington & Son Solicitors
Manchester City Council,Childrens & Education Services,Legal Fees,13.08.2021,5105773092,"3,725.00",Waddington & Son Solicitors
Manchester City Council,Childrens & Education Services,Legal Fees,13.08.2021,5105773037,"3,712.50",Waddington & Son Solicitors
Manchester City Council,Childrens & Education Services,Legal Fees,13.08.2021,5105773040,"1,811.25",Waddington & Son Solicitors
Manchester City Council,Childrens & Education Services,Legal Fees,13.08.2021,5105773091,"1,452.25",Waddington & Son Solicitors
Manchester City Council,Childrens & Education Services,Legal Fees,13.08.2021,5105773093,"1,256.33",Waddington & Son Solicitors
Manchester City Council,Childrens & Education Services,Legal Fees,13.08.2021,5105773094,"1,225.00",Waddington & Son Solicitors
Manchester City Council,Childrens & Education Services,Legal Fees,13.08.2021,5105773039,675.00,Waddington & Son Solicitors
Manchester City Council,Chief Executives,Legal Fees,13.08.2021,5105773095,"3,930.00",Waddington & Son Solicitors
Manchester City Council,Chief Executives,Legal Fees,13.08.2021,5105773056,"2,500.00",Kings Chambers
Manchester City Council,Chief Executives,Legal Fees,13.08.2021,5105773283,"2,275.00",Russell & Russell Solicitors LLP
Manchester City Council,Chief Executives,Legal Fees,13.08.2021,1907320714,"1,800.00",Kings Chambers
Manchester City Council,Chief Executives,Legal Fees,13.08.2021,5105773098,"1,723.75",Waddington & Son Solicitors
Manchester City Council,Chief Executives,Legal Fees,13.08.2021,5105773285,"1,653.98",Russell & Russell Solicitors LLP
Manchester City Council,Chief Executives,Legal Fees,13.08.2021,5105773097,"1,487.50",Waddington & Son Solicitors
Manchester City Council,Chief Executives,Legal Fees,13.08.2021,5105773099,"1,462.50",Waddington & Son Solicitors
Manchester City Council,Chief Executives,Legal Fees,13.08.2021,5105773284,750.00,Russell & Russell Solicitors LLP
Manchester City Council,Chief Executives,Legal Fees,13.08.2021,5105773096,"-3,930.00",Waddington & Son Solicitors
Manchester City Council,Insurance Fund,Legal Fees,13.08.2021,5105773139,"4,300.00",Redacted Personal Information
Manchester City Council,Highways Services,Professional fees,13.08.2021,5105773223,"1,575.00",The Fountain Company Ltd
Manchester City Council,Highways Services,Professional fees,13.08.2021,5105773224,525.00,The Fountain Company Ltd
Manchester City Council,Highways Services,Professional fees,13.08.2021,5105773222,"-1,668.00",The Fountain Company Ltd
Manchester City Council,Childrens & Education Services,Signers/Interpreters,13.08.2021,5105772993,"3,330.40",Language Line Ltd
Manchester City Council,Manchester Leisure,Professional fees,13.08.2021,5105772861,"1,680.00",Willfab Ltd
Manchester City Council,Childrens & Education Services,Professional fees,13.08.2021,5105773112,"1,000.00",Achievement for All (3AS) Ltd
Manchester City Council,Childrens & Education Services,Professional fees,13.08.2021,1907319590,678.57,Forensic Testing Service Ltd
Manchester City Council,Childrens & Education Services,Professional fees,13.08.2021,1907319743,600.00,Central Chambers
Manchester City Council,Highways Services,Professional fees,13.08.2021,5105771458,571.00,Pell Frischmann Consultants Ltd
Manchester City Council,Chief Executives,Funeral and coroner related services,13.08.2021,5105773269,"2,153.80",Redacted Personal Information
Manchester City Council,Chief Executives,Funeral and coroner related services,13.08.2021,5105773270,"1,000.00",Redacted Personal Information
Manchester City Council,Chief Executives,Funeral and coroner related services,13.08.2021,5105773267,830.70,Redacted Personal Information
Manchester City Council,Chief Executives,Landline Telephone,13.08.2021,1907296282,827.77,Daisy Corporate Services Trading
Manchester City Council,Adult Social Care,I T Provision,13.08.2021,5105773157,"4,712.50",The Networking People (TNP) Ltd
Manchester City Council,Chief Executives,ICT Sup & Maintnance,13.08.2021,5105773070,"40,597.00",ESRI (Uk) Ltd
Manchester City Council,Chief Executives,ICT Sup & Maintnance,13.08.2021,5105772252,690.00,Finastra
Manchester City Council,Insurance Fund,Med Mal Insurance,13.08.2021,1907320756,789.60,Redacted Personal Information
Manchester City Council,Adult Social Care,Grant and subscriptions awarded,13.08.2021,5105773233,"16,210.27",Manchester People First
Manchester City Council,Adult Social Care,Grant and subscriptions awarded,13.08.2021,5105772558,"11,806.50",LGBT Foundation
Manchester City Council,Adult Social Care,Grant and subscriptions awarded,13.08.2021,5105772559,"11,806.50",LGBT Foundation
Manchester City Council,Adult Social Care,Grant and subscriptions awarded,13.08.2021,5105773209,883.46,Manchester People First
Manchester City Council,Adult Social Care,Grant and subscriptions awarded,13.08.2021,5105773210,883.46,Manchester People First
Manchester City Council,Adult Social Care,Grant and subscriptions awarded,13.08.2021,5105773231,883.46,Manchester People First
Manchester City Council,Adult Social Care,Grant and subscriptions awarded,13.08.2021,5105773232,883.46,Manchester People First
Manchester City Council,Chief Executives,Grant and subscriptions awarded,13.08.2021,5105771120,"7,411.00",Waters Edge Arts Ltd
Manchester City Council,Chief Executives,Grant and subscriptions awarded,13.08.2021,5105773044,"6,973.34",Inspired Taskforce CIC
Manchester City Council,Manchester Leisure,Tipping - Tonnage,13.08.2021,5105773199,"100,106.99",Redgate Holdings Ltd
Manchester City Council,Manchester Leisure,Tipping - Skips,13.08.2021,5105773197,"39,950.37",Redgate Holdings Ltd
Manchester City Council,Adult Social Care,Funeral and coroner related services,13.08.2021,5105773156,"1,477.00",Greater Manchester Funeral Service
Manchester City Council,Hospitality + Trading Services,Funeral and coroner related services,13.08.2021,5105773229,"2,185.00",Obitus
Manchester City Council,Corporate Services,Licences Purchase,13.08.2021,5105773054,"2,940.00",Software Limited
Manchester City Council,Housing Revenue Account,Licences Purchase,13.08.2021,5105773161,"22,744.00",Aareon UK Ltd
Manchester City Council,Regeneration Finance,Removal and Storage of Furniture,13.08.2021,5105772705,"6,700.40",BCL
Manchester City Council,Regeneration Finance,Removal and Storage of Furniture,13.08.2021,5105772702,"1,078.20",BCL
Manchester City Council,Regeneration Finance,Removal and Storage of Furniture,13.08.2021,5105773082,758.29,Master Moves Ltd
Manchester City Council,Highways Services,Purchase of stores for re-distribution,13.08.2021,5105773271,974.40,Instarmac Group Ltd
Manchester City Council,Corporate Services,WPS Awards,13.08.2021,5105773117,"1,511.49",Furniture Resource Centre Ltd
Manchester City Council,Corporate Services,WPS Awards,13.08.2021,5105773120,527.60,Furniture Resource Centre Ltd
Manchester City Council,Childrens & Education Services,Third party payments to other Local Authorities,13.08.2021,5105773108,"3,875.42",Bolton Mbc
Manchester City Council,Childrens & Education Services,Third party payments to other Local Authorities,13.08.2021,5105773077,"2,105.00",Etchells Primary School
Manchester City Council,Childrens & Education Services,Third party payments to other Local Authorities,13.08.2021,5105773075,842.00,Etchells Primary School
Manchester City Council,Adult Social Care,Third party payments to other Local Authorities,13.08.2021,5105773085,"33,256.00",Burnley Borough Council
Manchester City Council,Childrens & Education Services,Third party payments relating to Voluntary Organisations,13.08.2021,5105773236,"84,944.00",Action For Children Services Ltd
Manchester City Council,Adult Social Care,Third party payments relating to Voluntary Organisations,13.08.2021,5105772961,"13,265.64",Great Places Housing Association
Manchester City Council,Regeneration Finance,Third party payments relating to Voluntary Organisations,13.08.2021,5105773155,"67,503.00",Pure Innovations Ltd
Manchester City Council,Childrens & Education Services,Payments for services,13.08.2021,5105773125,"56,526.00",SOL Christian Academy
Manchester City Council,Childrens & Education Services,Payments for services,13.08.2021,5105773124,"25,732.00",SOL Christian Academy
Manchester City Council,Childrens & Education Services,Payments for services,13.08.2021,1907315993,"10,248.00",V.A.S.E. Academy Ltd
Manchester City Council,Childrens & Education Services,Payments for services,13.08.2021,5105773068,"3,150.00",Keys PCE Limited
Manchester City Council,Childrens & Education Services,Payments for services,13.08.2021,5105773064,"2,985.00",Keys PCE Limited
Manchester City Council,Childrens & Education Services,Payments for services,13.08.2021,1907299368,"1,769.63",MPECC Ltd
Manchester City Council,Childrens & Education Services,Payments for services,13.08.2021,5105773259,623.76,Reed Employment Plc
Manchester City Council,Childrens & Education Services,Payments for services,13.08.2021,5105773258,584.78,Reed Employment Plc
Manchester City Council,Childrens & Education Services,Payments for services,13.08.2021,5105773158,506.75,Gorse Hill Studios
Manchester City Council,Adult Social Care,Payments for services,13.08.2021,5105773116,"8,155.00",Turning Point
Manchester City Council,Adult Social Care,Payments for services,13.08.2021,5105773113,"5,359.00",Turning Point
Manchester City Council,Childrens & Education Services,Supporting People Payments,13.08.2021,5105773282,"66,338.40",Career Connect
Manchester City Council,Adult Social Care,Home Care ,13.08.2021,5105773251,"1,033.80",Standwalk Ltd
Manchester City Council,Adult Social Care,Home Care ,13.08.2021,5105773230,775.35,Standwalk Ltd
Manchester City Council,Adult Social Care,Supported Accommodation,13.08.2021,5105773254,"5,150.32",Hilldale Housing Association
Manchester City Council,Adult Social Care,Supported Accommodation,13.08.2021,5105773134,"2,520.00",SLC Paragon
Manchester City Council,Adult Social Care,Supported Accommodation,13.08.2021,5105773348,680.40,Alliance Disposables Ltd
Manchester City Council,Corporate Services,Contribution to PATROL,13.08.2021,5105773048,"4,942.20",PATROL
Manchester City Council,Housing General Fund,Council Dwelling Adaptations,13.08.2021,5105773186,"11,220.00",Shared Habitat Limited
Manchester City Council,Corporate Services,Works and associated costs for Land and Buildings,13.08.2021,5105773006,"6,500.00",GVA Grimley Ltd
Manchester City Council,Housing Revenue Account,Works and associated costs for Land and Buildings,13.08.2021,5105773200,"125,665.67",Northern Gateway (FEC) No.10 Limite
Manchester City Council,Chief Executives,Works and associated costs for Land and Buildings,13.08.2021,5105772853,"9,000.00",NE1 Procurement Services Limited
Manchester City Council,Chief Executives,Works and associated costs for Land and Buildings,13.08.2021,5105772850,"6,048.00",NE1 Procurement Services Limited
Manchester City Council,Chief Executives,Works and associated costs for Land and Buildings,13.08.2021,5105771424,"14,117.00",Morgan Sindall C & I Ltd
Manchester City Council,Corporate Services,Works and associated costs for Land and Buildings,13.08.2021,5105772934,"2,500.00",Green-Tech Ltd
Manchester City Council,Corporate Services,Works and associated costs for Land and Buildings,13.08.2021,5105772690,"2,400.00",BCL
Manchester City Council,Chief Executives,Vehicle Plant Furniture and Equipment,13.08.2021,5105773228,"196,243.57",Insight Direct (Uk) Ltd
Manchester City Council,Environment and Operations,Construction Works,13.08.2021,5105772965,"18,540.00",Hawkins Brown Design Ltd
Manchester City Council,Adult Social Care,Agency staff provision,15.08.2021,5105773481,"9,062.50",Healthwork Ltd
Manchester City Council,Childrens & Education Services,Subsistence and Conference Expenses,15.08.2021,5105773408,612.42,Diversity Travel Ltd
Manchester City Council,Childrens & Education Services,Subsistence and Conference Expenses,15.08.2021,5105773409,601.32,Diversity Travel Ltd
Manchester City Council,Chief Executives,Agency staff provision,16.08.2021,5105773316,"42,050.45",Liquid Personnel Ltd
Manchester City Council,Chief Executives,Agency staff provision,16.08.2021,5105773486,"4,338.16",NonStop Recruitment Ltd
Manchester City Council,Chief Executives,Agency staff provision,16.08.2021,5105773534,983.00,Osborne Richardson
Manchester City Council,Chief Executives,Agency staff provision,16.08.2021,5105773539,503.00,Osborne Richardson
Manchester City Council,Regeneration Finance,Agency staff provision,16.08.2021,5105773338,"8,000.00",Odgers Berndtson
Manchester City Council,Insurance Fund,Insurance,16.08.2021,5105773367,"551,576.48",Redacted Personal Information
Manchester City Council,Insurance Fund,Fdlty Grntee Ins Prm,16.08.2021,1907321804,"20,160.00",Redacted Personal Information
Manchester City Council,Chief Executives,Internal Repairs and Maintenance for buildings,16.08.2021,5105773473,"4,699.23",Bruntwood Estates Alpha
Manchester City Council,Regeneration Finance,External repairs and maintenance for buildings,16.08.2021,5105773333,995.00,BAT Fabrications
Manchester City Council,Adult Social Care,Rents,16.08.2021,5105773422,"92,411.99",MJ Rental Ltd
Manchester City Council,Adult Social Care,Rents,16.08.2021,5105773337,"4,603.37",Houses4Homes 4U Ltd
Manchester City Council,Adult Social Care,Rents,16.08.2021,5105773301,"4,233.72",Houses4Homes 4U Ltd
Manchester City Council,Adult Social Care,Rents,16.08.2021,5105773339,"2,316.32",M&D Residential Ltd
Manchester City Council,Regeneration Finance,Rents,16.08.2021,1907320867,"10,062.13",Moss Side Millennium Powerhouse Ltd
Manchester City Council,Regeneration Finance,Contract Cleaning External,16.08.2021,5105773047,"1,063.19",M & M Cleaning Services Ltd
Manchester City Council,Regeneration Finance,Contract Cleaning External,16.08.2021,5105773651,"1,027.23",M & M Cleaning Services Ltd
Manchester City Council,Regeneration Finance,Contract Cleaning External,16.08.2021,5105773640,"-1,026.23",M & M Cleaning Services Ltd
Manchester City Council,Manchester Leisure,Security,16.08.2021,5105773184,"5,841.36",Showsec International Ltd
Manchester City Council,Manchester Leisure,Security,16.08.2021,5105773185,"5,164.46",Showsec International Ltd
Manchester City Council,Manchester Leisure,Security,16.08.2021,5105773187,"4,033.44",Showsec International Ltd
Manchester City Council,Manchester Leisure,Security,16.08.2021,5105773189,"3,193.14",Showsec International Ltd
Manchester City Council,Manchester Leisure,Security,16.08.2021,5105773084,"3,025.08",Showsec International Ltd
Manchester City Council,Manchester Leisure,Security,16.08.2021,5105773188,"3,025.08",Showsec International Ltd
Manchester City Council,Regeneration Finance,Grounds Maintenance,16.08.2021,5105773421,"1,900.00",Arboricultural Services Treework
Manchester City Council,Hospitality + Trading Services,Vehicle Hire Costs,16.08.2021,5105773487,"1,800.00",Peter Douglass Platforms
Manchester City Council,Hospitality + Trading Services,Vehicle Hire Costs,16.08.2021,5105773488,"1,300.00",Peter Douglass Platforms
Manchester City Council,Corporate Services,Transport Taxis,16.08.2021,1907321812,"13,906.60",Street Cars
Manchester City Council,Corporate Services,Transport Taxis,16.08.2021,1907321792,"10,796.60",Street Cars
Manchester City Council,Childrens & Education Services,Transport Coach Hire,16.08.2021,5105773668,"7,014.00",Street Cars
Manchester City Council,Childrens & Education Services,Transport Coach Hire,16.08.2021,5105773524,"6,505.00",New City Cars Ltd
Manchester City Council,Childrens & Education Services,Transport Coach Hire,16.08.2021,5105773476,"2,792.50",Ricks Travel
Manchester City Council,Childrens & Education Services,Equipment,16.08.2021,5105772737,"1,224.00",Tough Furniture Ltd
Manchester City Council,Childrens & Education Services,"Consumable items eg Toilet rolls, soap etc",16.08.2021,5105773531,594.00,Cellmark
Manchester City Council,Adult Social Care,"Consumable items eg Toilet rolls, soap etc",16.08.2021,5105773390,806.00,All 4 Pets Limited
Manchester City Council,Hospitality + Trading Services,Grant Payments,16.08.2021,5105773497,"6,000.00",Fresh Produce Consortium ( UK )
Manchester City Council,Regeneration Finance,Grant Payments,16.08.2021,5105773485,"8,822.18",Objective Keystone Ltd
Manchester City Council,Childrens & Education Services,Legal Fees,16.08.2021,5105773280,"5,395.00",11KBW
Manchester City Council,Adult Social Care,Legal Fees,16.08.2021,5105773420,"2,450.00",11KBW
Manchester City Council,Housing Revenue Account,Legal Fees,16.08.2021,1907307196,850.00,Blue Marble Asset Management Ltd
Manchester City Council,Chief Executives,Legal Fees,16.08.2021,5105773289,"5,912.50",Weightmans LLP Solicitors
Manchester City Council,Chief Executives,Legal Fees,16.08.2021,5105773302,"5,637.50",Weightmans LLP Solicitors
Manchester City Council,Chief Executives,Legal Fees,16.08.2021,5105773306,"3,831.25",Weightmans LLP Solicitors
Manchester City Council,Chief Executives,Legal Fees,16.08.2021,1907321801,"3,600.00",Kings Chambers
Manchester City Council,Chief Executives,Legal Fees,16.08.2021,5105773303,"3,018.75",Weightmans LLP Solicitors
Manchester City Council,Chief Executives,Legal Fees,16.08.2021,5105773290,"2,950.00",Weightmans LLP Solicitors
Manchester City Council,Chief Executives,Legal Fees,16.08.2021,5105773288,"2,226.25",Weightmans LLP Solicitors
Manchester City Council,Chief Executives,Legal Fees,16.08.2021,5105773287,"2,185.37",Weightmans LLP Solicitors
Manchester City Council,Chief Executives,Legal Fees,16.08.2021,5105773307,"2,057.50",Weightmans LLP Solicitors
Manchester City Council,Chief Executives,Legal Fees,16.08.2021,5105773308,"1,800.00",Weightmans LLP Solicitors
Manchester City Council,Chief Executives,Legal Fees,16.08.2021,5105773304,"1,793.75",Weightmans LLP Solicitors
Manchester City Council,Chief Executives,Legal Fees,16.08.2021,5105773305,"1,056.25",Weightmans LLP Solicitors
Manchester City Council,Regeneration Finance,Professional fees,16.08.2021,5105772940,"3,153.60",Pax Energy
Manchester City Council,Regeneration Finance,Professional fees,16.08.2021,5105773393,"-3,153.60",Pax Energy
Manchester City Council,Highways Services,Professional fees,16.08.2021,5105773475,"2,700.00",Ramora Ltd
Manchester City Council,Manchester Leisure,Professional fees,16.08.2021,1907320879,"7,044.12",Swan Films Ltd
Manchester City Council,Manchester Leisure,Professional fees,16.08.2021,5105770809,"2,042.50",Common Practices Ltd
Manchester City Council,Childrens & Education Services,Professional fees,16.08.2021,5105773397,"6,695.00",One Education Ltd
Manchester City Council,Childrens & Education Services,Professional fees,16.08.2021,1907319639,"4,150.00",Central Chambers
Manchester City Council,Childrens & Education Services,Professional fees,16.08.2021,1907319597,660.00,Advanced Child Care Assessments
Manchester City Council,Adult Social Care,Professional fees,16.08.2021,5105773445,"95,177.00",NE1 Procurement Services Limited
Manchester City Council,Housing Revenue Account,Professional fees,16.08.2021,5105773355,"8,990.13",Morgan Sindall Property
Manchester City Council,Regeneration Finance,Professional fees,16.08.2021,5105773494,"2,700.00",Redacted Personal Information
Manchester City Council,Regeneration Finance,Professional fees,16.08.2021,5105773495,800.00,Redacted Personal Information
Manchester City Council,Highways Services,Professional fees,16.08.2021,5105773500,"7,187.00",Mace Cost Consultancy Ltd
Manchester City Council,Highways Services,Professional fees,16.08.2021,5105773499,"6,359.00",Mace Cost Consultancy Ltd
Manchester City Council,Corporate Services,Tracing fees,16.08.2021,5105773523,"2,117.95",Experian Limited
Manchester City Council,Manchester Leisure,ICT Sup & Maintnance,16.08.2021,5105773423,"30,000.00",Aareon UK Ltd
Manchester City Council,Chief Executives,ICT Sup & Maintnance,16.08.2021,5105773474,"13,020.00",Liquidlogic Ltd
Manchester City Council,Manchester Leisure,I T Provision,16.08.2021,5105773513,"2,900.00",Covergold Ltd
Manchester City Council,Manchester Leisure,I T Provision,16.08.2021,5105773514,"1,350.00",Covergold Ltd
Manchester City Council,Insurance Fund,InsPremUnal all rsk,16.08.2021,5105773368,"24,024.00",Redacted Personal Information
Manchester City Council,Insurance Fund,InsPremUnal all rsk,16.08.2021,5105773366,"6,720.00",Redacted Personal Information
Manchester City Council,Insurance Fund,Med Mal Insurance,16.08.2021,1907321803,"30,296.00",Redacted Personal Information
Manchester City Council,Manchester Leisure,Grant and subscriptions awarded,16.08.2021,1907320597,"13,500.00",Ibad Ur Rahman Trust
Manchester City Council,Manchester Leisure,Grant and subscriptions awarded,16.08.2021,5105773357,"3,013.60",Barlow Moor Community Association
Manchester City Council,Manchester Leisure,Grant and subscriptions awarded,16.08.2021,5105773358,"1,500.00",Healthy Me Healthy Communities
Manchester City Council,Manchester Leisure,Grant and subscriptions awarded,16.08.2021,5105773356,"1,000.00",Ryder Brow Community
Manchester City Council,Manchester Leisure,Grant and subscriptions awarded,16.08.2021,5105773319,500.00,Harpurhey Neighbourhood Project
Manchester City Council,Chief Executives,Grant and subscriptions awarded,16.08.2021,5105773361,"9,523.00",Manchester Camerata
Manchester City Council,Housing Revenue Account,Private Finance and Public Private partnership initiatives,16.08.2021,5105773472,"494,160.99",Grove Village Ltd
Manchester City Council,Adult Social Care,Bed & Breakfast Acc,16.08.2021,5105773482,"40,738.10",Redacted Personal Information
Manchester City Council,Adult Social Care,Bed & Breakfast Acc,16.08.2021,5105773502,"20,919.00",Redacted Personal Information
Manchester City Council,Adult Social Care,Bed & Breakfast Acc,16.08.2021,5105773275,"15,406.00",Redacted Personal Information
Manchester City Council,Adult Social Care,Bed & Breakfast Acc,16.08.2021,5105773469,"11,424.00",Redacted Personal Information
Manchester City Council,Manchester Leisure,Library Materials Acquisition,16.08.2021,1907321689,"1,802.40",Peters Bookselling Services
Manchester City Council,Manchester Leisure,Library Materials Acquisition,16.08.2021,1907321690,"1,024.76",Peters Bookselling Services
Manchester City Council,Manchester Leisure,Library Materials Acquisition,16.08.2021,1907321654,598.12,Martin-Lavell Limited
Manchester City Council,Manchester Leisure,Special Event,16.08.2021,5105773109,800.00,Star Autos Ltd
Manchester City Council,Childrens & Education Services,Schools Exp (non py),16.08.2021,5105773515,"5,600.00",The Parochial Church Council
Manchester City Council,Corporate Services,WPS Awards,16.08.2021,5105773510,887.26,Furniture Resource Centre Ltd
Manchester City Council,Corporate Services,WPS Awards,16.08.2021,5105773509,880.70,Furniture Resource Centre Ltd
Manchester City Council,Corporate Services,WPS Awards,16.08.2021,5105773518,823.03,Furniture Resource Centre Ltd
Manchester City Council,Corporate Services,WPS Awards,16.08.2021,5105773493,802.03,Furniture Resource Centre Ltd
Manchester City Council,Corporate Services,WPS Awards,16.08.2021,5105773516,677.03,Furniture Resource Centre Ltd
Manchester City Council,Corporate Services,WPS Awards,16.08.2021,5105773496,664.33,Furniture Resource Centre Ltd
Manchester City Council,Childrens & Education Services,Third party payments to other Local Authorities,16.08.2021,5105773544,"14,432.92",Priestnall School
Manchester City Council,Childrens & Education Services,Third party payments to other Local Authorities,16.08.2021,5105773477,"3,256.00",St Joseph's Catholic Primary School
Manchester City Council,Adult Social Care,Third party payments relating to Voluntary Organisations,16.08.2021,5105773522,"3,100.00",Manchester Care & Repair Ltd
Manchester City Council,Childrens & Education Services,Payments for services,16.08.2021,5105773297,"1,247.52",Reed Employment Plc
Manchester City Council,Childrens & Education Services,Payments for services,16.08.2021,5105773296,727.72,Reed Employment Plc
Manchester City Council,Childrens & Education Services,Payments for services,16.08.2021,5105773298,524.22,Reed Employment Plc
Manchester City Council,Childrens & Education Services,Payments for services,16.08.2021,5105773293,519.80,Reed Employment Plc
Manchester City Council,Adult Social Care,Supporting People Payments,16.08.2021,5105773340,"7,281.00",One Manchester Limited
Manchester City Council,Adult Social Care,Personal needs of client,16.08.2021,5105773506,"1,628.00",Neater Solutions Ltd
Manchester City Council,Childrens Services,Works and associated costs for Land and Buildings,16.08.2021,5105773277,744.00,WYG Engineering Ltd
Manchester City Council,Corporate Services,Works and associated costs for Land and Buildings,16.08.2021,5105773374,"65,000.00",Purcell Architecture Limited
Manchester City Council,Corporate Services,Works and associated costs for Land and Buildings,16.08.2021,5105773375,"50,123.60",Ove Arup & Partners Ltd
Manchester City Council,Corporate Services,Works and associated costs for Land and Buildings,16.08.2021,5105773383,"37,000.00",Faithful & Gould Ltd
Manchester City Council,Corporate Services,Works and associated costs for Land and Buildings,16.08.2021,5105773385,"32,698.00",Mace Ltd
Manchester City Council,Corporate Services,Works and associated costs for Land and Buildings,16.08.2021,5105772059,"13,210.00",Turner & Townsend Project
Manchester City Council,Corporate Services,Works and associated costs for Land and Buildings,16.08.2021,5105771617,"12,304.87",ISG Construction Limited
Manchester City Council,Corporate Services,Works and associated costs for Land and Buildings,16.08.2021,5105773373,"9,850.00",Purcell Architecture Limited
Manchester City Council,Corporate Services,Works and associated costs for Land and Buildings,16.08.2021,5105773379,"9,360.00",Purcell Architecture Limited
Manchester City Council,Corporate Services,Works and associated costs for Land and Buildings,16.08.2021,5105773385,"7,200.00",Mace Ltd
Manchester City Council,Corporate Services,Works and associated costs for Land and Buildings,16.08.2021,5105773371,"5,034.75",Ove Arup & Partners Ltd
Manchester City Council,Corporate Services,Works and associated costs for Land and Buildings,16.08.2021,5105773384,"5,000.00",Faithful & Gould Ltd
Manchester City Council,Corporate Services,Works and associated costs for Land and Buildings,16.08.2021,5105773378,"3,000.00",Purcell Architecture Limited
Manchester City Council,Corporate Services,Works and associated costs for Land and Buildings,16.08.2021,5105773376,"2,175.00",Planit
Manchester City Council,Corporate Services,Works and associated costs for Land and Buildings,16.08.2021,5105773385,"2,000.00",Mace Ltd
Manchester City Council,Corporate Services,Works and associated costs for Land and Buildings,16.08.2021,5105773372,"1,767.00",Purcell Architecture Limited
Manchester City Council,Corporate Services,Works and associated costs for Land and Buildings,16.08.2021,5105773360,"1,123.88",Ove Arup & Partners Ltd
Manchester City Council,Corporate Services,Works and associated costs for Land and Buildings,16.08.2021,5105773380,"1,034.52",Faithful & Gould Ltd
Manchester City Council,Corporate Services,Works and associated costs for Land and Buildings,16.08.2021,5105773385,680.00,Mace Ltd
Manchester City Council,Housing General Fund,Works and associated costs for Land and Buildings,16.08.2021,5105772760,954.00,Jacobs UK Ltd
Manchester City Council,Chief Executives,Works and associated costs for Land and Buildings,16.08.2021,5105773320,"11,980.98",Turner & Townsend Project
Manchester City Council,Chief Executives,Works and associated costs for Land and Buildings,16.08.2021,5105773351,"11,980.98",Turner & Townsend Project
Manchester City Council,Chief Executives,Works and associated costs for Land and Buildings,16.08.2021,5105773443,"10,053.39",NE1 Procurement Services Limited
Manchester City Council,Chief Executives,Works and associated costs for Land and Buildings,16.08.2021,5105773466,"-11,980.98",Turner & Townsend Project
Manchester City Council,Chief Executives,Works and associated costs for Land and Buildings,16.08.2021,5105773467,"-11,980.98",Turner & Townsend Project
Manchester City Council,Childrens Services,Works and associated costs for Land and Buildings,16.08.2021,5105773398,"600,335.82",ISG Construction Limited
Manchester City Council,Corporate Services,Works and associated costs for Land and Buildings,16.08.2021,5105773424,"1,676.69",R Development Ltd
Manchester City Council,Manchester Leisure,Agency staff provision,17.08.2021,5105773589,"36,249.00",Black Health Agency
Manchester City Council,Chief Executives,Agency staff provision,17.08.2021,5105773576,"13,759.00",Osbourne Thomas Ltd
Manchester City Council,Corporate Services,Training and Development,17.08.2021,5105773710,"6,000.00",Life In Colour Coaching Limited
Manchester City Council,Chief Executives,Training and Development,17.08.2021,5105773547,"10,500.00",Ginger Dog.Com
Manchester City Council,Manchester Leisure,External repairs and maintenance for buildings,17.08.2021,5105773781,"16,199.03",Laing O'Rourke Construction Ltd
Manchester City Council,Manchester Leisure,External repairs and maintenance for buildings,17.08.2021,5105773721,"1,277.40",Sign-It-Up
Manchester City Council,Childrens & Education Services,Gas,17.08.2021,5105773553,"17,037.70",Manchester School Services Limited
Manchester City Council,Adult Social Care,Rents,17.08.2021,5105773545,"109,523.58",Manchester Housing Group Ltd
Manchester City Council,Adult Social Care,Rents,17.08.2021,5105773616,"57,914.93",B & A Properties
Manchester City Council,Adult Social Care,Rents,17.08.2021,5105773678,"38,831.64",Housing Social Ltd
Manchester City Council,Adult Social Care,Rents,17.08.2021,5105773740,"12,984.67",K L Properties
Manchester City Council,Adult Social Care,Rents,17.08.2021,5105773755,"4,603.37",Houses4Homes 4U Ltd
Manchester City Council,Adult Social Care,Rents,17.08.2021,5105773679,"4,359.01",Housing Social Ltd
Manchester City Council,Adult Social Care,Rents,17.08.2021,1907322078,500.00,Redacted Personal Information
Manchester City Council,Adult Social Care,M/cr Council Tax,17.08.2021,1907321623,781.76,MCC Council Tax (int)
Manchester City Council,Adult Social Care,Water - Metered,17.08.2021,5105773741,633.59,Water Plus Limited
Manchester City Council,Adult Social Care,Water - Metered,17.08.2021,5105773689,529.37,Water Plus Limited
Manchester City Council,Childrens & Education Services,Contract Cleaning External,17.08.2021,5105773671,"6,337.50",Tiddlywinks Nursery-Clayton No.4 Ac
Manchester City Council,Hospitality + Trading Services,Refuse Collection,17.08.2021,5105773722,"74,898.83",Fairfield Environmental Serv Ltd
Manchester City Council,Hospitality + Trading Services,Security,17.08.2021,5105773559,"7,557.40",Showsec International Ltd
Manchester City Council,Regeneration Finance,Hire of Premises,17.08.2021,5105773701,"3,780.00",Grove Village Residents association
Manchester City Council,Childrens & Education Services,Grounds Maintenance,17.08.2021,5105773610,"1,121.00",Tiddlywinks Nursery-Clayton No.4 Ac
Manchester City Council,Regeneration Finance,Grounds Maintenance,17.08.2021,5105773724,500.00,Arboricultural Services Treework
Manchester City Council,Childrens & Education Services,Transport Coach Hire,17.08.2021,5105773582,"9,000.00",Galaxy Transport (Manchester) Ltd
Manchester City Council,Childrens & Education Services,Transport Coach Hire,17.08.2021,5105773674,"3,885.00",AA Buses
Manchester City Council,Childrens & Education Services,Transport Coach Hire,17.08.2021,5105773675,"3,681.00",Home to School Travel Ltd
Manchester City Council,Childrens & Education Services,Transport Coach Hire,17.08.2021,5105773646,"2,322.00",Redacted Personal Information
Manchester City Council,Childrens & Education Services,Transport Coach Hire,17.08.2021,5105772138,"2,193.00",Redacted Personal Information
Manchester City Council,Childrens & Education Services,Transport Coach Hire,17.08.2021,5105773606,"1,498.00",Saltax Ltd
Manchester City Council,Childrens & Education Services,Transport Coach Hire,17.08.2021,5105773645,"-2,322.00",Redacted Personal Information
Manchester City Council,Manchester Leisure,Equipment,17.08.2021,5105773739,"2,175.00",Massey & Harris (Engrg) Ltd
Manchester City Council,Manchester Leisure,Equipment,17.08.2021,5105773746,"1,517.75",Kompan Ltd
Manchester City Council,Manchester Leisure,Equipment,17.08.2021,5105773748,"1,517.75",Kompan Ltd
Manchester City Council,Manchester Leisure,Equipment,17.08.2021,5105773750,"1,470.86",Kompan Ltd
Manchester City Council,Manchester Leisure,Equipment,17.08.2021,5105773749,"-1,470.86",Kompan Ltd
Manchester City Council,Manchester Leisure,Equipment,17.08.2021,5105773745,"-1,517.75",Kompan Ltd
Manchester City Council,Manchester Leisure,Equipment,17.08.2021,5105773747,"-1,517.75",Kompan Ltd
Manchester City Council,Hospitality + Trading Services,Equipment,17.08.2021,5105773744,"9,000.00",DP Structures Ltd
Manchester City Council,Adult Social Care,Equipment,17.08.2021,5105773588,"5,952.00",Invacare Limited
Manchester City Council,Adult Social Care,Equipment,17.08.2021,5105773561,"4,400.00",R82 Uk Ltd
Manchester City Council,Corporate Services,Equipment,17.08.2021,5105773572,"3,745.00",Systemlink 2000 Ltd
Manchester City Council,Manchester Leisure,Furniture,17.08.2021,5105773635,"2,423.60",Sign-It-Up
Manchester City Council,Manchester Leisure,Building Materials for direct delivery,17.08.2021,5105773609,"1,950.00",One Green World
Manchester City Council,Manchester Leisure,Building Materials for direct delivery,17.08.2021,5105773607,600.00,One Green World
Manchester City Council,Highways Services,Building Materials for direct delivery,17.08.2021,5105773549,735.00,O'Connor Concrete Ltd
Manchester City Council,Manchester Leisure,Payments to Sub-Contractors,17.08.2021,5105773725,"9,000.00",Arboricultural Services Treework
Manchester City Council,Manchester Leisure,Payments to Sub-Contractors,17.08.2021,5105773601,"1,856.26",Ramora Ltd
Manchester City Council,Manchester Leisure,Payments to Sub-Contractors,17.08.2021,5105773601,"1,748.80",Ramora Ltd
Manchester City Council,Manchester Leisure,Payments to Sub-Contractors,17.08.2021,5105773726,"1,050.00",Arboricultural Services Treework
Manchester City Council,Chief Executives,Payments to Sub-Contractors,17.08.2021,5105772272,"2,775.00",Redacted Personal Information
Manchester City Council,Chief Executives,Payments to Sub-Contractors,17.08.2021,5105773647,"-2,775.00",Redacted Personal Information
Manchester City Council,Highways Services,Payments to Sub-Contractors,17.08.2021,5105773720,"57,902.89",Rosgal Ltd
Manchester City Council,Highways Services,Payments to Sub-Contractors,17.08.2021,5105773723,"9,375.00",Rosgal Ltd
Manchester City Council,Hospitality + Trading Services,Hire of Machinery,17.08.2021,5105773621,"1,381.14",R & M Developments Ltd
Manchester City Council,Hospitality + Trading Services,Hire of Machinery,17.08.2021,5105773571,"1,322.06",R & M Developments Ltd
Manchester City Council,Hospitality + Trading Services,Hire of Machinery,17.08.2021,5105773558,"1,038.50",R & M Developments Ltd
Manchester City Council,Hospitality + Trading Services,Hire of Machinery,17.08.2021,5105773579,"1,038.50",R & M Developments Ltd
Manchester City Council,Hospitality + Trading Services,Hire of Machinery,17.08.2021,5105773580,706.79,R & M Developments Ltd
Manchester City Council,Hospitality + Trading Services,Hire of Machinery,17.08.2021,5105773592,706.79,R & M Developments Ltd
Manchester City Council,Childrens & Education Services,Training and Development,17.08.2021,1907320868,550.00,RNH Shaikh-Patel
Manchester City Council,Regeneration Finance,Training and Development,17.08.2021,5105773703,"1,243.72",Pearson Education Ltd
Manchester City Council,Manchester Leisure,Grant Payments,17.08.2021,5105773605,"2,520.00",Artifax Software Ltd
Manchester City Council,Chief Executives,Printing,17.08.2021,5105773738,"2,318.00",Impression (Bolton) Ltd
Manchester City Council,Chief Executives,Printing,17.08.2021,5105773756,"1,075.00",PPL Sport and Leisure Ltd
Manchester City Council,Chief Executives,Printing,17.08.2021,5105773634,"1,055.00",Browns CTP Ltd
Manchester City Council,Childrens & Education Services,Legal Fees,17.08.2021,1907321991,"13,535.00",Liberata
Manchester City Council,Childrens & Education Services,Legal Fees,17.08.2021,1907321993,"8,090.00",Liberata
Manchester City Council,Childrens & Education Services,Legal Fees,17.08.2021,5105773692,"3,987.50",Waddington & Son Solicitors
Manchester City Council,Childrens & Education Services,Legal Fees,17.08.2021,1907321992,"3,725.00",Liberata
Manchester City Council,Childrens & Education Services,Legal Fees,17.08.2021,1907321990,850.00,Liberata
Manchester City Council,Childrens & Education Services,Legal Fees,17.08.2021,1907321994,680.00,Liberata
Manchester City Council,Chief Executives,Legal Fees,17.08.2021,1907321988,"19,720.00",Liberata
Manchester City Council,Chief Executives,Legal Fees,17.08.2021,1907321996,"5,913.50",Liberata
Manchester City Council,Chief Executives,Legal Fees,17.08.2021,1907316075,"2,737.50",Redacted Personal Information
Manchester City Council,Highways Services,Legal Fees,17.08.2021,1907322079,"4,345.00",Graham Coffey & Co
